Ref No,Fund Type,Dept,Cost Centre Description    ,Description    ,Creditor Name    ,GL Code Net Amount,Payment date        
2,Revenue,CAHD,North - bed purchasing and direct  payments,Respite Planned - Residential, Amber House,6804.00, 27-Aug-2019
3,Revenue,CAHD,North - bed purchasing and direct  payments,Respite Planned - Residential, Amber House,4644.85, 27-Aug-2019
4,Revenue,CAHD,South - Bed Purchasing and Direct payments,Permanent Nursing, Stanley House,6211.88, 27-Aug-2019
5,Revenue,CAHD,Jointly Funded H&SC Packages,Permanent Nursing, Stanley House,1776.56, 27-Aug-2019
6,Revenue,CAHD,North - bed purchasing and direct  payments,Permanent Nursing, Stanley House,8209.68, 27-Aug-2019
7,Revenue,CAHD,Central - Bed Purchasing and Direct Payments,Permanent Nursing, Stanley House,5210.60, 27-Aug-2019
8,Revenue,CAHD,Central - Bed Purchasing and Direct Payments,Permanent Nursing, Stanley House,3678.07, 27-Aug-2019
9,Revenue,CAHD,Central - Bed Purchasing and Direct Payments,Permanent Nursing, Stanley House,3371.56, 27-Aug-2019
10,Revenue,CAHD,MH Purchasing - Younger,Permanent Nursing, Stanley House,4738.16, 27-Aug-2019
11,Revenue,CAHD,Jointly Funded H&SC Packages,Permanent Nursing, Stanley House,4522.60, 27-Aug-2019
12,Revenue,CAHD,18-25 Year Olds,Permanent Residential,1 St Georges House,13333.52, 27-Aug-2019
13,Revenue,CAHD,CSC - Asylum Seekers - Unaccompanied,Adults - Family Support,1625 Independent People,1184.97, 01-Aug-2019
14,Revenue,CAHD,CSC - LAC Housing Support Grants,Grants to Voluntary Bodies,1625 Independent People,3343.00, 02-Aug-2019
15,Revenue,CAHD,CSC - LAC Housing Support Grants,Grants to Voluntary Bodies,1625 Independent People,3343.00, 02-Aug-2019
16,Revenue,CAHD,CSC - LAC Housing Support Grants,Grants to Voluntary Bodies,1625 Independent People,3343.00, 02-Aug-2019
17,Revenue,CAHD,CSC - LAC Housing Support Grants,Grants to Voluntary Bodies,1625 Independent People,3343.00, 02-Aug-2019
18,Revenue,CAHD,CSC - Care Leavers Independent Living,Grants to Voluntary Bodies,1625 Independent People,13266.00, 02-Aug-2019
19,Revenue,CAHD,CSC - Care Leavers Independent Living,Grants to Voluntary Bodies,1625 Independent People,1013.10, 02-Aug-2019
20,Revenue,CAHD,Supporting People Programme,Grants to Voluntary Bodies,1625 Independent People,15167.00, 01-Aug-2019
21,Revenue,CAHD,Supporting People Programme,Grants to Voluntary Bodies,1625 Independent People,10046.00, 01-Aug-2019
22,Revenue,CAHD,Supporting People Programme,Grants to Voluntary Bodies,1625 Independent People,15167.00, 30-Aug-2019
23,Revenue,CAHD,Supporting People Programme,Grants to Voluntary Bodies,1625 Independent People,10046.00, 30-Aug-2019
24,Revenue,CAHD,North - bed purchasing and direct  payments,Permanent Nursing,1St Floor Lingfield House,2268.32, 27-Aug-2019
25,Revenue,CAHD,Central - Community based support,Day Care / Social Activities,3 Trees Community Support Ltd,395.28, 07-Aug-2019
26,Revenue,CAHD,Central - Community based support,Other Small Contracts,3 Trees Community Support Ltd,5170.32, 07-Aug-2019
27,Revenue,CAHD,Central - Community based support,Supported Living,3 Trees Community Support Ltd,5565.23, 07-Aug-2019
28,Revenue,CAHD,North - Community based support,Day Care / Social Activities,3 Trees Community Support Ltd,673.44, 07-Aug-2019
29,Revenue,CAHD,Central - Community based support,Day Care / Social Activities,3 Trees Community Support Ltd,390.40, 22-Aug-2019
30,Revenue,CAHD,Central - Community based support,Other Small Contracts,3 Trees Community Support Ltd,5165.44, 22-Aug-2019
31,Revenue,CAHD,Central - Community based support,Supported Living,3 Trees Community Support Ltd,5571.12, 22-Aug-2019
32,Revenue,CAHD,North - Community based support,Day Care / Social Activities,3 Trees Community Support Ltd,673.44, 22-Aug-2019
33,Revenue,CAHD,Central - Community based support,Day Care / Social Activities,3 Trees Community Support Ltd,390.40, 22-Aug-2019
34,Revenue,CAHD,Central - Community based support,Other Small Contracts,3 Trees Community Support Ltd,5165.44, 22-Aug-2019
35,Revenue,CAHD,Central - Community based support,Supported Living,3 Trees Community Support Ltd,5567.64, 22-Aug-2019
36,Revenue,CAHD,North - Community based support,Day Care / Social Activities,3 Trees Community Support Ltd,653.92, 22-Aug-2019
37,Revenue,CAHD,South - Bed Purchasing and Direct payments,Permanent Residential,5Th Floor Harlech Court,16667.12, 27-Aug-2019
38,Revenue,CAHD,South - Bed Purchasing and Direct payments,Permanent Residential,5Th Floor Harlech Court,10419.52, 27-Aug-2019
39,Revenue,CAHD,S28A cases,Permanent Residential,5Th Floor Harlech Court,10904.68, 27-Aug-2019
40,Revenue,CAHD,South - Bed Purchasing and Direct payments,Permanent Residential,5Th Floor Harlech Court,11436.40, 27-Aug-2019
41,Revenue,CAHD,North - bed purchasing and direct  payments,Permanent Residential,5Th Floor Harlech Court,12498.56, 27-Aug-2019
42,Revenue,CAHD,North - bed purchasing and direct  payments,Permanent Residential,5Th Floor Harlech Court,10537.24, 27-Aug-2019
43,Revenue,CAHD,North - bed purchasing and direct  payments,Permanent Residential,5Th Floor Harlech Court,9071.12, 27-Aug-2019
44,Revenue,CAHD,Learning Difficulties Development Fund,Other Supplies & Services,A Clean Sweep Co-operative Ltd,2504.00, 01-Aug-2019
45,Revenue,CAHD,Care Management Team - North,Other Supplies & Services,A E Horder (Contracting) Limited,838.23, 15-Aug-2019
46,Revenue,CAHD,North - Community based support,Day Care / Social Activities,About Me Care and Support Limited,626.08, 08-Aug-2019
47,Revenue,CAHD,North - Community based support,Day Care / Social Activities,About Me Care and Support Limited,603.72, 08-Aug-2019
48,Revenue,CAHD,Training Budget - Children`s Social Serv,Training Expenses,AC Education Ltd,550.00, 08-Aug-2019
49,Revenue,CAHD,Section 117 Placements MH Younger,Permanent Residential,Acorn Care Providers,6608.20, 27-Aug-2019
50,Revenue,CAHD,North - S117,Permanent Residential,Acorn Care Providers,3900.00, 27-Aug-2019
51,Revenue,CAHD,Jointly Funded H&SC Packages,Permanent Residential,Acorn Care Providers,2100.00, 27-Aug-2019
52,Revenue,CAHD,MH Purchasing - Younger,Permanent Residential,Acorn Care Providers,6144.00, 27-Aug-2019
53,Revenue,CAHD,Training - Adult Services,Training Expenses,Acorn Health & Safety Limited,477.00, 01-Aug-2019
54,Revenue,CAHD,Training - Adult Services,Training Expenses,Acorn Health & Safety Limited,422.75, 01-Aug-2019
55,Revenue,CAHD,Training - Adult Services,Training Expenses,Acorn Health & Safety Limited,477.00, 08-Aug-2019
56,Revenue,CAHD,Training Budget - Children`s Social Serv,Training Expenses,Acorn Health & Safety Limited,479.00, 08-Aug-2019
57,Revenue,CAHD,Training - Adult Services,Training Expenses,Acorn Health & Safety Limited,432.25, 29-Aug-2019
58,Revenue,CAHD,CSC - Agency Fostering,Foster Parent Allowances,Action for Children,6975.00, 23-Aug-2019
59,Revenue,CAHD,CSC - Professional Fees Foster Carers,Adults - Family Support,Adam & Amanda Gibbons,539.43, 09-Aug-2019
60,Revenue,CAHD,West of England Partnership,Professional Fees,Adrian Davis Associates,3900.00, 09-Aug-2019
61,Revenue,CAHD,South - community based support,Other Small Contracts,Advantedge Commercial Finance Limited,628.32, 13-Aug-2019
62,Revenue,CAHD,South - community based support,Other Small Contracts,Advantedge Commercial Finance Limited,799.68, 13-Aug-2019
63,Revenue,CAHD,North - Community based support,Other Small Contracts,Advantedge Commercial Finance Limited,1323.28, 13-Aug-2019
64,Revenue,CAHD,South - community based support,Other Small Contracts,Advantedge Commercial Finance Limited,742.56, 13-Aug-2019
65,Revenue,CAHD,South - community based support,Other Small Contracts,Advantedge Commercial Finance Limited,2094.40, 13-Aug-2019
66,Revenue,CAHD,South - community based support,Other Small Contracts,Advantedge Commercial Finance Limited,947.24, 13-Aug-2019
67,Revenue,CAHD,South - community based support,Other Small Contracts,Advantedge Commercial Finance Limited,685.44, 13-Aug-2019
68,Revenue,CAHD,North - Community based support,Other Small Contracts,Advantedge Commercial Finance Limited,799.68, 13-Aug-2019
69,Revenue,CAHD,Extra Care Housing,Private & Voluntary Home Care,Agincare UK Limited,23256.50, 01-Aug-2019
70,Revenue,CAHD,Extra Care Housing,Private & Voluntary Home Care,Agincare UK Limited,23256.50, 30-Aug-2019
71,Revenue,CAHD,Extra Care Housing,Private & Voluntary Home Care,Agincare UK Limited,11253.50, 01-Aug-2019
72,Revenue,CAHD,Extra Care Housing,Private & Voluntary Home Care,Agincare UK Limited,11253.50, 30-Aug-2019
73,Revenue,CAHD,Extra Care Housing,Private & Voluntary Home Care,Agincare UK Limited,27590.00, 02-Aug-2019
74,Revenue,CAHD,Extra Care Housing,Private & Voluntary Home Care,Agincare UK Limited,6383.52, 21-Aug-2019
75,Revenue,CAHD,Extra Care Housing,Private & Voluntary Home Care,Agincare UK Limited,531.92, 21-Aug-2019
76,Revenue,CAHD,Extra Care Housing,Private & Voluntary Home Care,Agincare UK Limited,3883.91, 19-Aug-2019
77,Revenue,CAHD,Extra Care Housing,Private & Voluntary Home Care,Agincare UK Limited,2980.74, 19-Aug-2019
78,Revenue,CAHD,Prison Assessments & Costs,Other Supplies & Services,Agincare UK Limited,7396.00, 23-Aug-2019
79,Revenue,CAHD,Prison Assessments & Costs,Other Supplies & Services,Agincare UK Limited,6482.25, 27-Aug-2019
80,Revenue,CAHD,18-25 Year Olds,Permanent Residential,Alexander House,12155.16, 27-Aug-2019
81,Revenue,CAHD,South - community based support,Other Small Contracts,AliMo Care Ltd,500.76, 07-Aug-2019
82,Revenue,CAHD,North - Community based support,Other Small Contracts,AliMo Care Ltd,121.68, 07-Aug-2019
83,Revenue,CAHD,South - community based support,Other Small Contracts,AliMo Care Ltd,514.80, 27-Aug-2019
84,Revenue,CAHD,North - Community based support,Other Small Contracts,AliMo Care Ltd,121.68, 27-Aug-2019
85,Revenue,CAHD,South - community based support,Other Small Contracts,AliMo Care Ltd,444.60, 22-Aug-2019
86,Revenue,CAHD,North - Community based support,Other Small Contracts,AliMo Care Ltd,126.36, 22-Aug-2019
87,Revenue,CAHD,North - bed purchasing and direct  payments,Fees & Charges Income - General,Allambie Court,1449.96, 27-Aug-2019
88,Revenue,CAHD,North - bed purchasing and direct  payments,Permanent Nursing,Allambie Court,2320.44, 27-Aug-2019
89,Revenue,CAHD,North - bed purchasing and direct  payments,Permanent Nursing,Amerind Grove Nursing Home,2706.32, 27-Aug-2019
90,Revenue,CAHD,A & CL - Employability 18/19,Computer Equipment - Purchase,Amey Computer Services,1974.00, 14-Aug-2019
91,Revenue,CAHD,CSC - Agency Fostering,Foster Parent Allowances,Amicus Foster Care Ltd,5070.67, 02-Aug-2019
92,Revenue,CAHD,CSC - Agency Fostering,Foster Parent Allowances,Amicus Foster Care Ltd,3262.44, 02-Aug-2019
93,Revenue,CAHD,CSC - Parent & Child Assessments,Foster Parent Allowances,Amicus Foster Care Ltd,7625.38, 22-Aug-2019
94,Revenue,CAHD,CSC - Agency Fostering,Foster Parent Allowances,Amicus Foster Care Ltd,4879.00, 02-Aug-2019
95,Revenue,CAHD,CSC - Agency Fostering,Foster Parent Allowances,Amicus Foster Care Ltd,5514.28, 02-Aug-2019
96,Revenue,CAHD,CSC - Agency Fostering,Foster Parent Allowances,Amicus Foster Care Ltd,807.16, 01-Aug-2019
97,Revenue,CAHD,CSC - Parent & Child Assessments,Foster Parent Allowances,Amicus Foster Care Ltd,7625.38, 27-Aug-2019
98,Revenue,CAHD,Supporting People Programme,Grants to Voluntary Bodies,Anchor Hanover Group,1039.00, 01-Aug-2019
99,Revenue,CAHD,Supporting People Programme,Grants to Voluntary Bodies,Anchor Hanover Group,1039.00, 30-Aug-2019
100,Revenue,CAHD,Supporting People Programme,Grants to Voluntary Bodies,Anchor Hanover Group,847.00, 01-Aug-2019
101,Revenue,CAHD,Supporting People Programme,Grants to Voluntary Bodies,Anchor Hanover Group,847.00, 30-Aug-2019
102,Revenue,CAHD,CSC - Section 17 0-25,Preventative Assistance,Angel Care Support Limited,3066.00, 28-Aug-2019
103,Revenue,CAHD,Training Budget - Children`s Social Serv,Training Expenses,Individual,950.00, 15-Aug-2019
104,Revenue,CAHD,CSC - Vinney Green Secure Unit,External Lecturers Fees,Individual,1405.00, 29-Aug-2019
105,Revenue,CAHD,Jointly Funded H&SC Packages,Permanent Residential,Ash View House,1111.40, 27-Aug-2019
106,Revenue,CAHD,South - Bed Purchasing and Direct payments,Permanent Residential,Ash View House,5421.04, 27-Aug-2019
107,Revenue,CAHD,S117 Placements PCT,Permanent Residential,Ash View House,7556.32, 27-Aug-2019
108,Revenue,CAHD,18-25 Year Olds,Permanent Residential,Ash View House,7099.52, 27-Aug-2019
109,Revenue,CAHD,Section 117 Placements MH Younger,Permanent Residential,Ash View House,4924.12, 27-Aug-2019
110,Revenue,CAHD,Jointly Funded H&SC Packages,Permanent Residential,Ash View House,2110.40, 27-Aug-2019
111,Revenue,CAHD,South - S117,Permanent Residential,Ash View House,6692.80, 27-Aug-2019
112,Revenue,CAHD,18-25 Year Olds,Permanent Residential,Ash View House,6615.52, 27-Aug-2019
113,Revenue,CAHD,Bed and Breakfast,Storage & Removal,Ashley Guest Houses Limited,1120.00, 19-Aug-2019
114,Revenue,CAHD,Bed and Breakfast,Storage & Removal,Ashley Guest Houses Limited,1120.00, 05-Aug-2019
115,Revenue,CAHD,North - bed purchasing and direct  payments,Permanent Residential,Aspects 2 Limited,7231.88, 27-Aug-2019
116,Revenue,CAHD,Supporting People Programme,Grants to Voluntary Bodies,Aspects and Milestones Trust,3441.00, 01-Aug-2019
117,Revenue,CAHD,Supporting People Programme,Grants to Voluntary Bodies,Aspects and Milestones Trust,1725.00, 01-Aug-2019
118,Revenue,CAHD,Supporting People Programme,Grants to Voluntary Bodies,Aspects and Milestones Trust,3441.00, 30-Aug-2019
119,Revenue,CAHD,Supporting People Programme,Grants to Voluntary Bodies,Aspects and Milestones Trust,1725.00, 30-Aug-2019
120,Revenue,CAHD,A & CL - Employability 18/19,Consultants Fees,Aspiro Education Ltd,3600.00, 09-Aug-2019
121,Revenue,CAHD,Training - Adult Services,Training Expenses,AssistKD,790.00, 13-Aug-2019
122,Revenue,CAHD,South - Bed Purchasing and Direct payments,Adults - Family Support,Ategi Limited,14361.02, 21-Aug-2019
123,Revenue,CAHD,Independent Special Placements - Post 16,Other Private Contractors,Aurora Hedgeway School,17258.67, 16-Aug-2019
124,Revenue,CAHD,Independent Special Placements - Pre 16,Other Private Contractors,Aurora Hedgeway School,15154.33, 30-Aug-2019
125,Revenue,CAHD,Independent Special Placements - Pre 16,Other Private Contractors,Aurora Hedgeway School,15154.33, 30-Aug-2019
126,Revenue,CAHD,Independent Special Placements - Pre 16,Other Private Contractors,Aurora Hedgeway School,15154.33, 30-Aug-2019
127,Revenue,CAHD,Independent Special Placements - Post 16,Other Private Contractors,Aurora Hedgeway School,15114.67, 30-Aug-2019
128,Revenue,CAHD,Independent Special Placements - Pre 16,Other Private Contractors,Aurora Hedgeway School,15154.33, 30-Aug-2019
129,Revenue,CAHD,Independent Special Placements - Pre 16,Other Private Contractors,Aurora Hedgeway School,15154.33, 30-Aug-2019
130,Revenue,CAHD,Independent Special Placements - Pre 16,Other Private Contractors,Aurora Hedgeway School,20948.67, 30-Aug-2019
131,Revenue,CAHD,Independent Special Placements - Pre 16,Other Private Contractors,Aurora Hedgeway School,15154.33, 30-Aug-2019
132,Revenue,CAHD,Independent Special Placements - Pre 16,Other Private Contractors,Aurora Hedgeway School,16984.00, 30-Aug-2019
133,Revenue,CAHD,Independent Special Placements - Pre 16,Other Private Contractors,Aurora Hedgeway School,27638.33, 30-Aug-2019
134,Revenue,CAHD,Independent Special Placements - Pre 16,Other Private Contractors,Aurora Hedgeway School,22260.33, 30-Aug-2019
135,Revenue,CAHD,Independent Special Placements - Post 16,Other Private Contractors,Aurora Hedgeway School,18225.33, 30-Aug-2019
136,Revenue,CAHD,Independent Special Placements - Pre 16,Other Private Contractors,Aurora Hedgeway School,15154.33, 30-Aug-2019
137,Revenue,CAHD,Independent Special Placements - Post 16,Other Private Contractors,Aurora Hedgeway School,19773.00, 30-Aug-2019
138,Revenue,CAHD,Independent Special Placements - Pre 16,Other Private Contractors,Aurora Hedgeway School,15154.33, 30-Aug-2019
139,Revenue,CAHD,Independent Special Placements - Pre 16,Other Private Contractors,Aurora Hedgeway School,17258.67, 30-Aug-2019
140,Revenue,CAHD,Independent Special Placements - Post 16,Other Private Contractors,Aurora Hedgeway School,17258.67, 30-Aug-2019
141,Revenue,CAHD,Independent Special Placements - Pre 16,Other Private Contractors,Aurora Hedgeway School,18225.33, 30-Aug-2019
142,Revenue,CAHD,South - Bed Purchasing and Direct payments,Permanent Residential,Autism Specialised Care Homes,6506.88, 27-Aug-2019
143,Revenue,CAHD,North - bed purchasing and direct  payments,Permanent Residential,Avery Homes Downend Limited,4200.00, 27-Aug-2019
144,Revenue,CAHD,North - bed purchasing and direct  payments,Permanent Residential,Avery Homes Downend Limited,4300.80, 27-Aug-2019
145,Revenue,CAHD,North - bed purchasing and direct  payments,Fees & Charges Income - General,Avery Homes Downend Limited,755.77, 27-Aug-2019
146,Revenue,CAHD,North - bed purchasing and direct  payments,Permanent Residential,Avery Homes Downend Limited,8904.29, 27-Aug-2019
147,Revenue,CAHD,North - bed purchasing and direct  payments,Fees & Charges Income - General,Avery Homes Downend Limited,8904.29, 27-Aug-2019
148,Revenue,CAHD,North - bed purchasing and direct  payments,Permanent Residential,Avery Homes Downend Limited,5420.00, 27-Aug-2019
149,Revenue,CAHD,North - bed purchasing and direct  payments,Fees & Charges Income - General,Avery Homes Downend Limited,580.43, 27-Aug-2019
150,Revenue,CAHD,North - bed purchasing and direct  payments,Permanent Residential,Avery Homes Downend Limited,18776.43, 27-Aug-2019
151,Revenue,CAHD,North - bed purchasing and direct  payments,Fees & Charges Income - General,Avery Homes Downend Limited,972.96, 27-Aug-2019
152,Revenue,CAHD,North - bed purchasing and direct  payments,Fees & Charges Income - General,Avery Homes Downend Limited,1952.23, 27-Aug-2019
153,Revenue,CAHD,North - bed purchasing and direct  payments,Permanent Residential,Avery Homes Downend Limited,4420.00, 27-Aug-2019
154,Revenue,CAHD,CSC - Asylum Seekers - Unaccompanied,Legal Fees,Avon & Bristol Law Centre,660.10, 09-Aug-2019
155,Revenue,CAHD,CSC - Asylum Seekers - Unaccompanied,Interpreting & Translation,Avon & Bristol Law Centre,470.18, 09-Aug-2019
156,Revenue,CAHD,CSC - LAC - Counselling & Therapy,Other Supplies & Services,Avon & Wiltshire Mental Health,15000.00, 01-Aug-2019
157,Revenue,CAHD,Younger Adult Mental Health,Health Services (Third Party Payments),Avon & Wiltshire Mental Health,1693.33, 08-Aug-2019
158,Revenue,CAHD,MECC Making Every Contact Count,Other Small Contracts,Avon Local Pharmaceutical Committee,14000.00, 12-Aug-2019
159,Revenue,CAHD,South - Bed Purchasing and Direct payments,Permanent Residential,Avon Valley Care Home,6788.57, 27-Aug-2019
160,Revenue,CAHD,South - Bed Purchasing and Direct payments,Permanent Residential,Avon Valley Care Home,4101.43, 27-Aug-2019
161,Revenue,CAHD,South - Bed Purchasing and Direct payments,Permanent Residential,Avon Valley Care Home,9857.14, 27-Aug-2019
162,Revenue,CAHD,Early Years High Needs Support,Other Private Contractors,Baker Street Nursery & Pre-School,910.13, 21-Aug-2019
163,Revenue,CAHD,Pensions - Non DSG,Annual Pension,Bath & North East Somerset Council,109739.97, 07-Aug-2019
164,Revenue,CAHD,Independent Special Placements - Pre 16,Other Private Contractors,Bath Road Priory,77550.00, 27-Aug-2019
165,Revenue,CAHD,Independent Special Placements - Pre 16,Other Private Contractors,Bath Road Priory,2217.93, 23-Aug-2019
166,Revenue,CAHD,Pathway 3 - (Complex Beds),Permanent Nursing,Beaufort Care Ltd,11142.00, 01-Aug-2019
167,Revenue,CAHD,South Glos Users in South Glos Homes,Permanent Nursing,Beaufort Grange Care Home,662.24, 27-Aug-2019
168,Revenue,CAHD,South Glos Users in South Glos Homes,Permanent Nursing,Beaufort Grange Care Home,3145.64, 27-Aug-2019
169,Revenue,CAHD,South Glos Users in South Glos Homes,Permanent Nursing,Beaufort Grange Care Home,1061.93, 27-Aug-2019
170,Revenue,CAHD,South Glos Users in South Glos Homes,Permanent Nursing,Beaufort Grange Care Home,662.24, 27-Aug-2019
171,Revenue,CAHD,South Glos Users in South Glos Homes,Permanent Nursing,Beaufort Grange Care Home,662.24, 27-Aug-2019
172,Revenue,CAHD,South Glos Users in South Glos Homes,Permanent Nursing,Beaufort Grange Care Home,662.24, 27-Aug-2019
173,Revenue,CAHD,South Glos Users in South Glos Homes,Permanent Nursing,Beaufort Grange Care Home,3145.64, 27-Aug-2019
174,Revenue,CAHD,South Glos Users in South Glos Homes,Permanent Nursing,Beaufort Grange Care Home,1152.31, 27-Aug-2019
175,Revenue,CAHD,South Glos Users in South Glos Homes,Permanent Nursing,Beaufort Grange Care Home,662.24, 27-Aug-2019
176,Revenue,CAHD,South Glos Users in South Glos Homes,Permanent Nursing,Beaufort Grange Care Home,3145.64, 27-Aug-2019
177,Revenue,CAHD,South Glos Users in South Glos Homes,Permanent Nursing,Beaufort Grange Care Home,926.37, 27-Aug-2019
178,Revenue,CAHD,South Glos Users in South Glos Homes,Permanent Nursing,Beaufort Grange Care Home,790.80, 27-Aug-2019
179,Revenue,CAHD,South Glos Users in South Glos Homes,Permanent Nursing,Beaufort Grange Care Home,662.24, 27-Aug-2019
180,Revenue,CAHD,South Glos Users in South Glos Homes,Permanent Nursing,Beaufort Grange Care Home,662.24, 27-Aug-2019
181,Revenue,CAHD,South Glos Users in South Glos Homes,Permanent Nursing,Beaufort Grange Care Home,662.24, 27-Aug-2019
182,Revenue,CAHD,South Glos Users in South Glos Homes,Permanent Nursing,Beaufort Grange Care Home,708.80, 27-Aug-2019
183,Revenue,CAHD,South Glos Users in South Glos Homes,Permanent Nursing,Beaufort Grange Care Home,662.24, 27-Aug-2019
184,Revenue,CAHD,South Glos Users in South Glos Homes,Permanent Nursing,Beaufort Grange Care Home,662.24, 27-Aug-2019
185,Revenue,CAHD,South Glos Users in South Glos Homes,Permanent Nursing,Beaufort Grange Care Home,662.24, 27-Aug-2019
186,Revenue,CAHD,North - S117,Permanent Nursing,Beaufort Grange Care Home,4877.04, 27-Aug-2019
187,Revenue,CAHD,South Glos Users in South Glos Homes,Permanent Nursing,Beaufort Grange Care Home,662.24, 27-Aug-2019
188,Revenue,CAHD,South Glos Users in South Glos Homes,Permanent Nursing,Beaufort Grange Care Home,662.24, 27-Aug-2019
189,Revenue,CAHD,South Glos Users in South Glos Homes,Permanent Nursing,Beaufort Grange Care Home,662.24, 27-Aug-2019
190,Revenue,CAHD,South Glos Users in South Glos Homes,Permanent Nursing,Beaufort Grange Care Home,662.24, 27-Aug-2019
191,Revenue,CAHD,South Glos Users in South Glos Homes,Permanent Nursing,Beaufort Grange Care Home,662.24, 27-Aug-2019
192,Revenue,CAHD,South Glos Users in South Glos Homes,Permanent Nursing,Beaufort Grange Care Home,3145.64, 27-Aug-2019
193,Revenue,CAHD,South Glos Users in South Glos Homes,Permanent Nursing,Beaufort Grange Care Home,662.24, 27-Aug-2019
194,Revenue,CAHD,South Glos Users in South Glos Homes,Permanent Nursing,Beaufort Grange Care Home,662.24, 27-Aug-2019
195,Revenue,CAHD,South Glos Users in South Glos Homes,Permanent Nursing,Beaufort Grange Care Home,662.24, 27-Aug-2019
196,Revenue,CAHD,North - S117,Permanent Nursing,Beaufort Grange Care Home,5005.76, 27-Aug-2019
197,Revenue,CAHD,North - S117,Permanent Nursing,Beaufort Grange Care Home,715.11, 27-Aug-2019
198,Revenue,CAHD,South Glos Users in South Glos Homes,Permanent Nursing,Beaufort Grange Care Home,662.24, 27-Aug-2019
199,Revenue,CAHD,South Glos Users in South Glos Homes,Permanent Nursing,Beaufort Grange Care Home,662.24, 27-Aug-2019
200,Revenue,CAHD,South Glos Users in South Glos Homes,Permanent Nursing,Beaufort Grange Care Home,3682.87, 27-Aug-2019
201,Revenue,CAHD,South Glos Users in South Glos Homes,Permanent Nursing,Beaufort Grange Care Home,3145.64, 27-Aug-2019
202,Revenue,CAHD,South Glos Users in South Glos Homes,Permanent Nursing,Beaufort Grange Care Home,2033.49, 27-Aug-2019
203,Revenue,CAHD,South Glos Users in South Glos Homes,Permanent Nursing,Beaufort Grange Care Home,662.24, 27-Aug-2019
204,Revenue,CAHD,South Glos Users in South Glos Homes,Permanent Nursing,Beaufort Grange Care Home,662.24, 27-Aug-2019
205,Revenue,CAHD,South Glos Users in South Glos Homes,Permanent Nursing,Beaufort Grange Care Home,662.24, 27-Aug-2019
206,Revenue,CAHD,South Glos Users in South Glos Homes,Permanent Nursing,Beaufort Grange Care Home,677.83, 27-Aug-2019
207,Revenue,CAHD,South Glos Users in South Glos Homes,Permanent Nursing,Beaufort Grange Care Home,662.24, 27-Aug-2019
208,Revenue,CAHD,South Glos Users in South Glos Homes,Permanent Nursing,Beaufort Grange Care Home,662.24, 27-Aug-2019
209,Revenue,CAHD,South Glos Users in South Glos Homes,Permanent Nursing,Beaufort Grange Care Home,662.24, 27-Aug-2019
210,Revenue,CAHD,South - Bed Purchasing and Direct payments,Permanent Residential,Beaufort Grange Care Home,5156.20, 27-Aug-2019
211,Revenue,CAHD,South Glos Users in South Glos Homes,Permanent Nursing,Beaufort Grange Care Home,3145.64, 27-Aug-2019
212,Revenue,CAHD,South Glos Users in South Glos Homes,Permanent Nursing,Beaufort Grange Care Home,1242.69, 27-Aug-2019
213,Revenue,CAHD,South Glos Users in South Glos Homes,Permanent Nursing,Beaufort Grange Care Home,662.24, 27-Aug-2019
214,Revenue,CAHD,South Glos Users in South Glos Homes,Permanent Nursing,Beaufort Grange Care Home,662.24, 27-Aug-2019
215,Revenue,CAHD,South Glos Users in South Glos Homes,Permanent Nursing,Beaufort Grange Care Home,662.24, 27-Aug-2019
216,Revenue,CAHD,South Glos Users in South Glos Homes,Permanent Nursing,Beaufort Grange Care Home,662.24, 27-Aug-2019
217,Revenue,CAHD,South Glos Users in South Glos Homes,Permanent Nursing,Beaufort Grange Care Home,662.24, 27-Aug-2019
218,Revenue,CAHD,South Glos Users in South Glos Homes,Permanent Nursing,Beaufort Grange Care Home,662.24, 27-Aug-2019
219,Revenue,CAHD,South Glos Users in South Glos Homes,Permanent Nursing,Beaufort Grange Care Home,662.24, 27-Aug-2019
220,Revenue,CAHD,South Glos Users in South Glos Homes,Permanent Nursing,Beaufort Grange Care Home,662.24, 27-Aug-2019
221,Revenue,CAHD,South Glos Users in South Glos Homes,Permanent Nursing,Beaufort Grange Care Home,662.24, 27-Aug-2019
222,Revenue,CAHD,South Glos Users in South Glos Homes,Permanent Nursing,Beaufort Grange Care Home,2578.01, 27-Aug-2019
223,Revenue,CAHD,South Glos Users in South Glos Homes,Permanent Nursing,Beaufort Grange Care Home,662.24, 27-Aug-2019
224,Revenue,CAHD,South Glos Users in South Glos Homes,Permanent Nursing,Beaufort Grange Care Home,662.24, 27-Aug-2019
225,Revenue,CAHD,South Glos Users in South Glos Homes,Permanent Nursing,Beaufort Grange Care Home,662.24, 27-Aug-2019
226,Revenue,CAHD,South Glos Users in South Glos Homes,Permanent Nursing,Beaufort Grange Care Home,662.24, 27-Aug-2019
227,Revenue,CAHD,South Glos Users in South Glos Homes,Permanent Nursing,Beaufort Grange Care Home,662.24, 27-Aug-2019
228,Revenue,CAHD,North - bed purchasing and direct  payments,Permanent Residential,Beaufort House,2549.56, 27-Aug-2019
229,Revenue,CAHD,Central - Bed Purchasing and Direct Payments,Permanent Residential,Beaufort House,2867.20, 27-Aug-2019
230,Revenue,CAHD,Central - Bed Purchasing and Direct Payments,Permanent Residential,Beaufort House,2775.60, 27-Aug-2019
231,Revenue,CAHD,North - bed purchasing and direct  payments,Permanent Residential,Beaufort House,2571.40, 27-Aug-2019
232,Revenue,CAHD,South - Bed Purchasing and Direct payments,Permanent Residential,Beaufort House,2536.84, 27-Aug-2019
233,Revenue,CAHD,Central - Bed Purchasing and Direct Payments,Respite Emergency - Residential,Beaufort House,3278.57, 27-Aug-2019
234,Revenue,CAHD,North - bed purchasing and direct  payments,Permanent Residential,Beaufort House,3072.00, 27-Aug-2019
235,Revenue,CAHD,Central - Bed Purchasing and Direct Payments,Permanent Residential,Beaufort House,2775.60, 27-Aug-2019
236,Revenue,CAHD,North - bed purchasing and direct  payments,Permanent Residential,Beaufort House,2699.92, 27-Aug-2019
237,Revenue,CAHD,South - Bed Purchasing and Direct payments,Permanent Residential,Beaufort House,2713.00, 27-Aug-2019
238,Revenue,CAHD,Central - Bed Purchasing and Direct Payments,Respite Planned - Residential,Beaufort House,3278.57, 27-Aug-2019
239,Revenue,CAHD,South - Bed Purchasing and Direct payments,Permanent Residential,Beech House,2959.64, 27-Aug-2019
240,Revenue,CAHD,South Glos Users in South Glos Homes,Permanent Nursing,Beech House,662.24, 27-Aug-2019
241,Revenue,CAHD,South Glos Users in South Glos Homes,Permanent Nursing,Beech House,662.24, 27-Aug-2019
242,Revenue,CAHD,South Glos Users in South Glos Homes,Permanent Nursing,Beech House,662.24, 27-Aug-2019
243,Revenue,CAHD,South Glos Users in South Glos Homes,Permanent Nursing,Beech House,662.24, 27-Aug-2019
244,Revenue,CAHD,South Glos Users in South Glos Homes,Permanent Nursing,Beech House,662.24, 27-Aug-2019
245,Revenue,CAHD,South Glos Users in South Glos Homes,Permanent Nursing,Beech House,662.24, 27-Aug-2019
246,Revenue,CAHD,South Glos Users in South Glos Homes,Permanent Nursing,Beech House,662.24, 27-Aug-2019
247,Revenue,CAHD,South Glos Users in South Glos Homes,Permanent Nursing,Beech House,662.24, 27-Aug-2019
248,Revenue,CAHD,South Glos Users in South Glos Homes,Permanent Nursing,Beech House,662.24, 27-Aug-2019
249,Revenue,CAHD,North - bed purchasing and direct  payments,Permanent Nursing,Beech House,3547.76, 27-Aug-2019
250,Revenue,CAHD,South Glos Users in South Glos Homes,Permanent Nursing,Beech House,662.24, 27-Aug-2019
251,Revenue,CAHD,North - bed purchasing and direct  payments,Permanent Residential,Beech House,2959.64, 27-Aug-2019
252,Revenue,CAHD,South Glos Users in South Glos Homes,Permanent Nursing,Beech House,662.24, 27-Aug-2019
253,Revenue,CAHD,South Glos Users in South Glos Homes,Permanent Nursing,Beech House,1087.97, 27-Aug-2019
254,Revenue,CAHD,South Glos Users in South Glos Homes,Permanent Nursing,Beech House,662.24, 27-Aug-2019
255,Revenue,CAHD,North - bed purchasing and direct  payments,Permanent Nursing,Beech House,4283.20, 27-Aug-2019
256,Revenue,CAHD,South Glos Users in South Glos Homes,Permanent Nursing,Beech House,662.24, 27-Aug-2019
257,Revenue,CAHD,South Glos Users in South Glos Homes,Permanent Nursing,Beech House,662.24, 27-Aug-2019
258,Revenue,CAHD,South Glos Users in South Glos Homes,Permanent Nursing,Beech House,662.24, 27-Aug-2019
259,Revenue,CAHD,South Glos Users in South Glos Homes,Permanent Nursing,Beech House,662.24, 27-Aug-2019
260,Revenue,CAHD,North - bed purchasing and direct  payments,Permanent Nursing,Beech House,3993.60, 27-Aug-2019
261,Revenue,CAHD,South Glos Users in South Glos Homes,Permanent Nursing,Beech House,662.24, 27-Aug-2019
262,Revenue,CAHD,South Glos Users in South Glos Homes,Permanent Nursing,Beech House,662.24, 27-Aug-2019
263,Revenue,CAHD,South Glos Users in South Glos Homes,Permanent Nursing,Beech House,662.24, 27-Aug-2019
264,Revenue,CAHD,North - bed purchasing and direct  payments,Permanent Residential,Beech House,4069.48, 27-Aug-2019
265,Revenue,CAHD,South Glos Users in South Glos Homes,Permanent Nursing,Beech House,662.24, 27-Aug-2019
266,Revenue,CAHD,North - bed purchasing and direct  payments,Permanent Residential,Beech House,4075.52, 27-Aug-2019
267,Revenue,CAHD,South Glos Users in South Glos Homes,Permanent Nursing,Beech House,662.24, 27-Aug-2019
268,Revenue,CAHD,North - bed purchasing and direct  payments,Permanent Nursing,Beech House,4223.56, 27-Aug-2019
269,Revenue,CAHD,South Glos Users in South Glos Homes,Permanent Nursing,Beech House,662.24, 27-Aug-2019
270,Revenue,CAHD,South Glos Users in South Glos Homes,Permanent Nursing,Beech House,662.24, 27-Aug-2019
271,Revenue,CAHD,South Glos Users in South Glos Homes,Permanent Nursing,Beech House,662.24, 27-Aug-2019
272,Revenue,CAHD,South Glos Users in South Glos Homes,Permanent Nursing,Beech House,3145.64, 27-Aug-2019
273,Revenue,CAHD,South Glos Users in South Glos Homes,Permanent Nursing,Beech House,662.24, 27-Aug-2019
274,Revenue,CAHD,South Glos Users in South Glos Homes,Permanent Nursing,Beech House,610.05, 27-Aug-2019
275,Revenue,CAHD,South Glos Users in South Glos Homes,Permanent Nursing,Beech House,662.24, 27-Aug-2019
276,Revenue,CAHD,South Glos Users in South Glos Homes,Permanent Nursing,Beech House,2010.37, 27-Aug-2019
277,Revenue,CAHD,South Glos Users in South Glos Homes,Permanent Nursing,Beech House,662.24, 27-Aug-2019
278,Revenue,CAHD,North - bed purchasing and direct  payments,Permanent Residential,Beech House,4280.32, 27-Aug-2019
279,Revenue,CAHD,Statemented Support Payments to OLAs,Other L.A.'s - General,Beechen Cliff School,719.29, 29-Aug-2019
280,Revenue,CAHD,South Glos Users in South Glos Homes,Permanent Nursing,Beechwood Care Home,1028.00, 27-Aug-2019
281,Revenue,CAHD,18-25 Year Olds,Permanent Residential,Beechwood Court,15254.92, 27-Aug-2019
282,Revenue,CAHD,North - bed purchasing and direct  payments,Permanent Residential,Beechwood Court,14717.16, 27-Aug-2019
283,Revenue,CAHD,Jointly Funded H&SC Packages,Permanent Residential,Beechwood Court,3641.84, 27-Aug-2019
284,Revenue,CAHD,South - S117,Permanent Residential,Bidna House,3692.64, 27-Aug-2019
285,Revenue,CAHD,CSC - Care Leavers Support Costs,"Provisions (Food, etc)",Big Yellow Self Storage Company Limited,1825.01, 09-Aug-2019
286,Revenue,CAHD,Tobacco Control,Other Supplies & Services,Bionical Solutions Limited,1012.50, 30-Aug-2019
287,Revenue,CAHD,Central - Community based support,Other Small Contracts,Blakehill Healthcare Ltd,1281.25, 06-Aug-2019
288,Revenue,CAHD,Central - Community based support,Other Small Contracts,Blakehill Healthcare Ltd,1400.00, 06-Aug-2019
289,Revenue,CAHD,Central - Community based support,Other Small Contracts,Blakehill Healthcare Ltd,1150.00, 27-Aug-2019
290,Revenue,CAHD,Central - Community based support,Other Small Contracts,Blakehill Healthcare Ltd,912.50, 06-Aug-2019
291,Revenue,CAHD,Central - Community based support,Other Small Contracts,Blakehill Healthcare Ltd,1750.00, 27-Aug-2019
292,Revenue,CAHD,Central - Community based support,Other Small Contracts,Blakehill Healthcare Ltd,5637.50, 02-Aug-2019
293,Revenue,CAHD,Central - Community based support,Other Small Contracts,Blakehill Healthcare Ltd,2183.34, 27-Aug-2019
294,Revenue,CAHD,Central - Community based support,Other Small Contracts,Blakehill Healthcare Ltd,695.83, 07-Aug-2019
295,Revenue,CAHD,Central - Community based support,Other Small Contracts,Blakehill Healthcare Ltd,1156.25, 06-Aug-2019
296,Revenue,CAHD,Central - Community based support,Other Small Contracts,Blakehill Healthcare Ltd,1650.00, 28-Aug-2019
297,Revenue,CAHD,Central - Community based support,Other Small Contracts,Blakehill Healthcare Ltd,2791.67, 28-Aug-2019
298,Revenue,CAHD,South Glos Users in South Glos Homes,Permanent Nursing,Blossom Field,662.24, 27-Aug-2019
299,Revenue,CAHD,South - Bed Purchasing and Direct payments,Permanent Nursing,Blossom Field,4780.36, 27-Aug-2019
300,Revenue,CAHD,South - Bed Purchasing and Direct payments,Permanent Nursing,Blossom Field,4268.18, 27-Aug-2019
301,Revenue,CAHD,South Glos Users in South Glos Homes,Permanent Nursing,Blossom Field,662.24, 27-Aug-2019
302,Revenue,CAHD,North - S117,Permanent Nursing,Blossom Field,3693.56, 27-Aug-2019
303,Revenue,CAHD,South Glos Users in South Glos Homes,Permanent Nursing,Blossom Field,662.24, 27-Aug-2019
304,Revenue,CAHD,North - bed purchasing and direct  payments,Permanent Nursing,Blossom Field,4730.40, 27-Aug-2019
305,Revenue,CAHD,South Glos Users in South Glos Homes,Permanent Nursing,Blossom Field,662.24, 27-Aug-2019
306,Revenue,CAHD,North - bed purchasing and direct  payments,Permanent Nursing,Blossom Field,4770.40, 27-Aug-2019
307,Revenue,CAHD,South Glos Users in South Glos Homes,Permanent Nursing,Blossom Field,662.24, 27-Aug-2019
308,Revenue,CAHD,South Glos Users in South Glos Homes,Permanent Nursing,Blossom Field,662.24, 27-Aug-2019
309,Revenue,CAHD,North - bed purchasing and direct  payments,Permanent Nursing,Blossom Field,3891.20, 27-Aug-2019
310,Revenue,CAHD,South Glos Users in South Glos Homes,Permanent Nursing,Blossom Field,662.24, 27-Aug-2019
311,Revenue,CAHD,Bed Purchasing - Southmead Hospital,Permanent Nursing,Blossom Field,5000.00, 27-Aug-2019
312,Revenue,CAHD,South Glos Users in South Glos Homes,Permanent Nursing,Blossom Field,2459.75, 27-Aug-2019
313,Revenue,CAHD,South Glos Users in South Glos Homes,Permanent Nursing,Blossom Field,662.24, 27-Aug-2019
314,Revenue,CAHD,South Glos Users in South Glos Homes,Permanent Nursing,Blossom Field,662.24, 27-Aug-2019
315,Revenue,CAHD,South Glos Users in South Glos Homes,Permanent Nursing,Blossom Field,655.23, 27-Aug-2019
316,Revenue,CAHD,South - Bed Purchasing and Direct payments,Permanent Nursing,Blossom Field,4413.08, 27-Aug-2019
317,Revenue,CAHD,South Glos Users in South Glos Homes,Permanent Nursing,Blossom Field,662.24, 27-Aug-2019
318,Revenue,CAHD,North - bed purchasing and direct  payments,Permanent Nursing,Blossom Field,3533.92, 27-Aug-2019
319,Revenue,CAHD,South Glos Users in South Glos Homes,Permanent Nursing,Blossom Field,662.24, 27-Aug-2019
320,Revenue,CAHD,North - bed purchasing and direct  payments,Permanent Nursing,Blossom Field,4799.88, 27-Aug-2019
321,Revenue,CAHD,South Glos Users in South Glos Homes,Permanent Nursing,Blossom Field,662.24, 27-Aug-2019
322,Revenue,CAHD,South Glos Users in South Glos Homes,Permanent Nursing,Blossom Field,662.24, 27-Aug-2019
323,Revenue,CAHD,North - bed purchasing and direct  payments,Permanent Nursing,Blossom Field,4800.00, 27-Aug-2019
324,Revenue,CAHD,North - bed purchasing and direct  payments,Permanent Nursing,Blossom Field,1200.00, 27-Aug-2019
325,Revenue,CAHD,South Glos Users in South Glos Homes,Permanent Nursing,Blossom Field,662.24, 27-Aug-2019
326,Revenue,CAHD,Central - Bed Purchasing and Direct Payments,Permanent Nursing,Blossom Field,1200.00, 27-Aug-2019
327,Revenue,CAHD,South Glos Users in South Glos Homes,Permanent Nursing,Blossom Field,2152.28, 27-Aug-2019
328,Revenue,CAHD,South Glos Users in South Glos Homes,Permanent Nursing,Blossom Field,662.24, 27-Aug-2019
329,Revenue,CAHD,South Glos Users in South Glos Homes,Permanent Nursing,Blossom Field,662.24, 27-Aug-2019
330,Revenue,CAHD,Central - Bed Purchasing and Direct Payments,Permanent Nursing,Blossom Field,4267.36, 27-Aug-2019
331,Revenue,CAHD,South Glos Users in South Glos Homes,Permanent Nursing,Blossom Field,662.24, 27-Aug-2019
332,Revenue,CAHD,South Glos Users in South Glos Homes,Permanent Nursing,Blossom Field,662.24, 27-Aug-2019
333,Revenue,CAHD,South Glos Users in South Glos Homes,Permanent Nursing,Blossom Field,662.24, 27-Aug-2019
334,Revenue,CAHD,North - bed purchasing and direct  payments,Permanent Nursing,Blossom Field,4267.36, 27-Aug-2019
335,Revenue,CAHD,South Glos Users in South Glos Homes,Permanent Nursing,Blossom Field,662.24, 27-Aug-2019
336,Revenue,CAHD,South Glos Users in South Glos Homes,Permanent Nursing,Blossom Field,662.24, 27-Aug-2019
337,Revenue,CAHD,South Glos Users in South Glos Homes,Permanent Nursing,Blossom Field,543.98, 27-Aug-2019
338,Revenue,CAHD,Central - Bed Purchasing and Direct Payments,Respite Planned - Nursing,Blossom Field,4800.00, 27-Aug-2019
339,Revenue,CAHD,Central - Bed Purchasing and Direct Payments,Respite Planned - Nursing,Blossom Field,3600.00, 27-Aug-2019
340,Revenue,CAHD,South Glos Users in South Glos Homes,Permanent Nursing,Blossom Field,662.24, 27-Aug-2019
341,Revenue,CAHD,South Glos Users in South Glos Homes,Permanent Nursing,Blossom Field,3121.99, 27-Aug-2019
342,Revenue,CAHD,South Glos Users in South Glos Homes,Permanent Nursing,Blossom Field,1671.98, 27-Aug-2019
343,Revenue,CAHD,South Glos Users in South Glos Homes,Permanent Nursing,Blossom Field,662.24, 27-Aug-2019
344,Revenue,CAHD,North - bed purchasing and direct  payments,Permanent Nursing,Blossom Field,3634.96, 27-Aug-2019
345,Revenue,CAHD,South Glos Users in South Glos Homes,Permanent Nursing,Blossom Field,662.24, 27-Aug-2019
346,Revenue,CAHD,North - bed purchasing and direct  payments,Permanent Nursing,Blossom Field,5000.00, 27-Aug-2019
347,Revenue,CAHD,South Glos Users in South Glos Homes,Permanent Nursing,Blossom Field,1726.55, 27-Aug-2019
348,Revenue,CAHD,South Glos Users in South Glos Homes,Permanent Nursing,Blossom Field,662.24, 27-Aug-2019
349,Revenue,CAHD,South Glos Users in South Glos Homes,Permanent Nursing,Blossom Field,662.24, 27-Aug-2019
350,Revenue,CAHD,North - bed purchasing and direct  payments,Permanent Residential,Bluebells,3699.60, 27-Aug-2019
351,Revenue,CAHD,Central - Community based support,Other Small Contracts,Bluebird Care (South Gloucestershire),1615.70, 22-Aug-2019
352,Revenue,CAHD,South - community based support,Other Small Contracts,Bluebird Care (South Gloucestershire),607.11, 22-Aug-2019
353,Revenue,CAHD,North - Community based support,Other Small Contracts,Bluebird Care (South Gloucestershire),931.00, 22-Aug-2019
354,Revenue,CAHD,Central - Community based support,Other Small Contracts,Bluebird Care (South Gloucestershire),1615.70, 27-Aug-2019
355,Revenue,CAHD,South - community based support,Other Small Contracts,Bluebird Care (South Gloucestershire),612.50, 27-Aug-2019
356,Revenue,CAHD,North - Community based support,Other Small Contracts,Bluebird Care (South Gloucestershire),989.52, 27-Aug-2019
357,Revenue,CAHD,"Physical Activity, Nutrition & Obesity",Printing & Stationery,Bluetree Design & Print Ltd T/A Instant Print,1628.00, 30-Aug-2019
358,Revenue,CAHD,Sexual Health,Other Small Contracts,Boots UK Ltd,693.11, 09-Aug-2019
359,Revenue,CAHD,Drug and Alcohol Programme,Other Small Contracts,Boots UK Ltd,3750.00, 09-Aug-2019
360,Revenue,CAHD,Drug and Alcohol Programme,Other Small Contracts,Boots UK Ltd,825.00, 09-Aug-2019
361,Revenue,CAHD,S28A cases,Permanent Residential,Bradbury House,6505.16, 27-Aug-2019
362,Revenue,CAHD,18-25 Year Olds,Permanent Residential,Bradbury House,9917.08, 27-Aug-2019
363,Revenue,CAHD,North - S117,Permanent Residential,Bradbury House,5740.24, 27-Aug-2019
364,Revenue,CAHD,Jointly Funded H&SC Packages,Permanent Residential,Bradbury House,7927.00, 27-Aug-2019
365,Revenue,CAHD,NHS Health Checks,Other Small Contracts,Bradley Stoke Surgery,2622.00, 13-Aug-2019
366,Revenue,CAHD,Sexual Health,Other Small Contracts,Bradley Stoke Surgery,1368.50, 16-Aug-2019
367,Revenue,CAHD,Drug and Alcohol Programme,Other Small Contracts,Bradley Stoke Surgery,1015.00, 09-Aug-2019
368,Revenue,CAHD,Sexual Health,Other Small Contracts,Bradley Stoke Surgery,1992.46, 16-Aug-2019
369,Revenue,CAHD,CSC - Residential Placements,Permanent Residential,Branas ISAF Ltd,19928.57, 23-Aug-2019
370,Revenue,CAHD,Social Lettings Agency,Fees - General,Individual,8.15, 02-Aug-2019
371,Revenue,CAHD,Social Lettings Agency,Other Supplies & Services,Individual,766.10, 02-Aug-2019
372,Revenue,CAHD,North - bed purchasing and direct  payments,Permanent Residential,Bridge House Care Home,2625.52, 27-Aug-2019
373,Revenue,CAHD,North - bed purchasing and direct  payments,Permanent Residential,Bridgwater Court,10773.64, 27-Aug-2019
374,Revenue,CAHD,Early Years High Needs Support,Other Private Contractors,Bright Sparks Pre-School,819.11, 21-Aug-2019
375,Revenue,CAHD,Placements OLA Special Schools and RB,Other L.A.'s - General,Bristol City Council - Schools,2578.00, 27-Aug-2019
376,Revenue,CAHD,Placements OLA Special Schools and RB,Other L.A.'s - General,Bristol City Council - Schools,1350.17, 27-Aug-2019
377,Revenue,CAHD,Statemented Support Payments to OLAs,Other L.A.'s - General,Bristol City Council - Schools,1379.63, 29-Aug-2019
378,Revenue,CAHD,Placements OLA Special Schools and RB,Other L.A.'s - General,Bristol City Council - Schools,914.33, 27-Aug-2019
379,Revenue,CAHD,Placements OLA Special Schools and RB,Other L.A.'s - General,Bristol City Council - Schools,2578.00, 27-Aug-2019
380,Revenue,CAHD,Placements OLA Special Schools and RB,Other L.A.'s - General,Bristol City Council - Schools,1305.58, 27-Aug-2019
381,Revenue,CAHD,Statemented Support Payments to OLAs,Other L.A.'s - General,Bristol City Council - Schools,660.33, 29-Aug-2019
382,Revenue,CAHD,Placements OLA Special Schools and RB,Other L.A.'s - General,Bristol City Council - Schools,3356.33, 27-Aug-2019
383,Revenue,CAHD,Statemented Support Payments to OLAs,Other L.A.'s - General,Bristol City Council - Schools,907.96, 29-Aug-2019
384,Revenue,CAHD,Placements OLA Special Schools and RB,Other L.A.'s - General,Bristol City Council - Schools,2578.00, 27-Aug-2019
385,Revenue,CAHD,Placements OLA Special Schools and RB,Other L.A.'s - General,Bristol City Council - Schools,1381.00, 27-Aug-2019
386,Revenue,CAHD,Placements OLA Special Schools and RB,Other L.A.'s - General,Bristol City Council - Schools,2050.17, 27-Aug-2019
387,Revenue,CAHD,Placements OLA Special Schools and RB,Other L.A.'s - General,Bristol City Council - Schools,1381.00, 27-Aug-2019
388,Revenue,CAHD,Placements OLA Special Schools and RB,Other L.A.'s - General,Bristol City Council - Schools,2050.17, 27-Aug-2019
389,Revenue,CAHD,Placements OLA Special Schools and RB,Other L.A.'s - General,Bristol City Council - Schools,1675.30, 27-Aug-2019
390,Revenue,CAHD,Placements OLA Special Schools and RB,Other L.A.'s - General,Bristol City Council - Schools,809.00, 27-Aug-2019
391,Revenue,CAHD,Placements OLA Special Schools and RB,Other L.A.'s - General,Bristol City Council - Schools,883.50, 27-Aug-2019
392,Revenue,CAHD,Placements OLA Special Schools and RB,Other L.A.'s - General,Bristol City Council - Schools,4107.54, 27-Aug-2019
393,Revenue,CAHD,Placements OLA Special Schools and RB,Other L.A.'s - General,Bristol City Council - Schools,777.50, 27-Aug-2019
394,Revenue,CAHD,Placements OLA Special Schools and RB,Other L.A.'s - General,Bristol City Council - Schools,1031.20, 27-Aug-2019
395,Revenue,CAHD,Placements OLA Special Schools and RB,Other L.A.'s - General,Bristol City Council - Schools,2578.00, 27-Aug-2019
396,Revenue,CAHD,Placements OLA Special Schools and RB,Other L.A.'s - General,Bristol City Council - Schools,809.00, 27-Aug-2019
397,Revenue,CAHD,Placements OLA Special Schools and RB,Other L.A.'s - General,Bristol City Council - Schools,2578.00, 27-Aug-2019
398,Revenue,CAHD,Placements OLA Special Schools and RB,Other L.A.'s - General,Bristol City Council - Schools,883.50, 27-Aug-2019
399,Revenue,CAHD,Placements OLA Special Schools and RB,Other L.A.'s - General,Bristol City Council - Schools,2062.40, 27-Aug-2019
400,Revenue,CAHD,Placements OLA Special Schools and RB,Other L.A.'s - General,Bristol City Council - Schools,2578.00, 27-Aug-2019
401,Revenue,CAHD,Placements OLA Special Schools and RB,Other L.A.'s - General,Bristol City Council - Schools,1305.58, 27-Aug-2019
402,Revenue,CAHD,Placements OLA Special Schools and RB,Other L.A.'s - General,Bristol City Council - Schools,883.50, 27-Aug-2019
403,Revenue,CAHD,Statemented Support Payments to OLAs,Other L.A.'s - General,Broadlands Academy,1332.46, 29-Aug-2019
404,Revenue,CAHD,South Glos Users in South Glos Homes,Permanent Nursing,Brunelcare,733.19, 12-Aug-2019
405,Revenue,CAHD,South Glos Users in South Glos Homes,Permanent Nursing,Brunelcare,733.19, 12-Aug-2019
406,Revenue,CAHD,South Glos Users in South Glos Homes,Permanent Nursing,Brunelcare,733.19, 12-Aug-2019
407,Revenue,CAHD,South Glos Users in South Glos Homes,Permanent Nursing,Brunelcare,733.19, 12-Aug-2019
408,Revenue,CAHD,South Glos Users in South Glos Homes,Permanent Nursing,Brunelcare,733.19, 12-Aug-2019
409,Revenue,CAHD,South Glos Users in South Glos Homes,Permanent Nursing,Brunelcare,733.19, 12-Aug-2019
410,Revenue,CAHD,South Glos Users in South Glos Homes,Permanent Nursing,Brunelcare,733.19, 12-Aug-2019
411,Revenue,CAHD,South Glos Users in South Glos Homes,Permanent Nursing,Brunelcare,733.19, 12-Aug-2019
412,Revenue,CAHD,South Glos Users in South Glos Homes,Permanent Nursing,Brunelcare,733.19, 12-Aug-2019
413,Revenue,CAHD,South Glos Users in South Glos Homes,Permanent Nursing,Brunelcare,733.19, 12-Aug-2019
414,Revenue,CAHD,South Glos Users in South Glos Homes,Permanent Nursing,Brunelcare,733.19, 12-Aug-2019
415,Revenue,CAHD,South Glos Users in South Glos Homes,Permanent Nursing,Brunelcare,733.19, 12-Aug-2019
416,Revenue,CAHD,South Glos Users in South Glos Homes,Permanent Nursing,Brunelcare,733.19, 12-Aug-2019
417,Revenue,CAHD,South - S117,Permanent Nursing,Brunelcare,3669.07, 12-Aug-2019
418,Revenue,CAHD,North - S117,Permanent Nursing,Brunelcare,3669.07, 12-Aug-2019
419,Revenue,CAHD,North - S117,Permanent Nursing,Brunelcare,3669.07, 12-Aug-2019
420,Revenue,CAHD,South - Bed Purchasing and Direct payments,Permanent Nursing,Brunelcare,3669.07, 12-Aug-2019
421,Revenue,CAHD,South - Bed Purchasing and Direct payments,Permanent Nursing,Brunelcare,3038.66, 12-Aug-2019
422,Revenue,CAHD,South - Bed Purchasing and Direct payments,Permanent Nursing,Brunelcare,2674.86, 12-Aug-2019
423,Revenue,CAHD,South - Bed Purchasing and Direct payments,Permanent Nursing,Brunelcare,2831.98, 12-Aug-2019
424,Revenue,CAHD,South - Bed Purchasing and Direct payments,Permanent Nursing,Brunelcare,2938.31, 12-Aug-2019
425,Revenue,CAHD,South - Bed Purchasing and Direct payments,Permanent Nursing,Brunelcare,3056.38, 12-Aug-2019
426,Revenue,CAHD,South - Bed Purchasing and Direct payments,Permanent Nursing,Brunelcare,2663.87, 12-Aug-2019
427,Revenue,CAHD,South - Bed Purchasing and Direct payments,Permanent Nursing,Brunelcare,980.21, 12-Aug-2019
428,Revenue,CAHD,South - Bed Purchasing and Direct payments,Permanent Nursing,Brunelcare,2130.13, 12-Aug-2019
429,Revenue,CAHD,South - Bed Purchasing and Direct payments,Permanent Nursing,Brunelcare,2672.82, 12-Aug-2019
430,Revenue,CAHD,Enhanced Dementia Beds,Respite Planned - Nursing,Brunelcare,1976.00, 12-Aug-2019
431,Revenue,CAHD,Enhanced Dementia Beds,Respite Planned - Nursing,Brunelcare,2399.43, 12-Aug-2019
432,Revenue,CAHD,South - Bed Purchasing and Direct payments,Respite Planned - Nursing,Brunelcare,1775.36, 12-Aug-2019
433,Revenue,CAHD,North - bed purchasing and direct  payments,Permanent Nursing,Brunelcare,2753.69, 12-Aug-2019
434,Revenue,CAHD,North - bed purchasing and direct  payments,Permanent Nursing,Brunelcare,2945.09, 12-Aug-2019
435,Revenue,CAHD,North - bed purchasing and direct  payments,Permanent Nursing,Brunelcare,2938.49, 12-Aug-2019
436,Revenue,CAHD,North - bed purchasing and direct  payments,Permanent Nursing,Brunelcare,3669.07, 12-Aug-2019
437,Revenue,CAHD,North - bed purchasing and direct  payments,Respite Planned - Nursing,Brunelcare,828.50, 12-Aug-2019
438,Revenue,CAHD,North - bed purchasing and direct  payments,Respite Planned - Nursing,Brunelcare,710.14, 12-Aug-2019
439,Revenue,CAHD,South Glos Users in South Glos Homes,Permanent Nursing,Brunelcare,756.85, 12-Aug-2019
440,Revenue,CAHD,South Glos Users in South Glos Homes,Permanent Nursing,Brunelcare,709.54, 01-Aug-2019
441,Revenue,CAHD,South Glos Users in South Glos Homes,Permanent Nursing,Brunelcare,709.54, 01-Aug-2019
442,Revenue,CAHD,South Glos Users in South Glos Homes,Permanent Nursing,Brunelcare,709.54, 01-Aug-2019
443,Revenue,CAHD,South Glos Users in South Glos Homes,Permanent Nursing,Brunelcare,709.54, 01-Aug-2019
444,Revenue,CAHD,South Glos Users in South Glos Homes,Permanent Nursing,Brunelcare,709.54, 01-Aug-2019
445,Revenue,CAHD,South Glos Users in South Glos Homes,Permanent Nursing,Brunelcare,709.54, 01-Aug-2019
446,Revenue,CAHD,South Glos Users in South Glos Homes,Permanent Nursing,Brunelcare,709.54, 01-Aug-2019
447,Revenue,CAHD,South Glos Users in South Glos Homes,Permanent Nursing,Brunelcare,709.54, 01-Aug-2019
448,Revenue,CAHD,South Glos Users in South Glos Homes,Permanent Nursing,Brunelcare,709.54, 01-Aug-2019
449,Revenue,CAHD,South Glos Users in South Glos Homes,Permanent Nursing,Brunelcare,709.54, 01-Aug-2019
450,Revenue,CAHD,South Glos Users in South Glos Homes,Permanent Nursing,Brunelcare,709.54, 01-Aug-2019
451,Revenue,CAHD,South Glos Users in South Glos Homes,Permanent Nursing,Brunelcare,709.54, 01-Aug-2019
452,Revenue,CAHD,South Glos Users in South Glos Homes,Permanent Nursing,Brunelcare,709.54, 01-Aug-2019
453,Revenue,CAHD,South - S117,Permanent Nursing,Brunelcare,1420.29, 01-Aug-2019
454,Revenue,CAHD,South - S117,Permanent Nursing,Brunelcare,1704.10, 01-Aug-2019
455,Revenue,CAHD,South - S117,Permanent Nursing,Brunelcare,3550.71, 01-Aug-2019
456,Revenue,CAHD,North - S117,Permanent Nursing,Brunelcare,3550.71, 01-Aug-2019
457,Revenue,CAHD,North - S117,Permanent Nursing,Brunelcare,3550.71, 01-Aug-2019
458,Revenue,CAHD,South - Bed Purchasing and Direct payments,Permanent Nursing,Brunelcare,3550.71, 01-Aug-2019
459,Revenue,CAHD,South - Bed Purchasing and Direct payments,Permanent Nursing,Brunelcare,588.13, 01-Aug-2019
460,Revenue,CAHD,South - Bed Purchasing and Direct payments,Permanent Nursing,Brunelcare,2588.57, 01-Aug-2019
461,Revenue,CAHD,South - Bed Purchasing and Direct payments,Permanent Nursing,Brunelcare,2740.63, 01-Aug-2019
462,Revenue,CAHD,South - Bed Purchasing and Direct payments,Permanent Nursing,Brunelcare,2843.53, 01-Aug-2019
463,Revenue,CAHD,South - Bed Purchasing and Direct payments,Permanent Nursing,Brunelcare,2957.79, 01-Aug-2019
464,Revenue,CAHD,South - Bed Purchasing and Direct payments,Permanent Nursing,Brunelcare,2577.94, 01-Aug-2019
465,Revenue,CAHD,South - Bed Purchasing and Direct payments,Permanent Nursing,Brunelcare,2940.64, 01-Aug-2019
466,Revenue,CAHD,South - Bed Purchasing and Direct payments,Permanent Nursing,Brunelcare,2586.60, 01-Aug-2019
467,Revenue,CAHD,Enhanced Dementia Beds,Respite Planned - Nursing,Brunelcare,3402.03, 01-Aug-2019
468,Revenue,CAHD,Enhanced Dementia Beds,Respite Planned - Nursing,Brunelcare,850.51, 01-Aug-2019
469,Revenue,CAHD,North - bed purchasing and direct  payments,Permanent Nursing,Brunelcare,2664.86, 01-Aug-2019
470,Revenue,CAHD,North - bed purchasing and direct  payments,Permanent Nursing,Brunelcare,2850.09, 01-Aug-2019
471,Revenue,CAHD,North - bed purchasing and direct  payments,Permanent Nursing,Brunelcare,2843.70, 01-Aug-2019
472,Revenue,CAHD,North - bed purchasing and direct  payments,Permanent Nursing,Brunelcare,3550.71, 01-Aug-2019
473,Revenue,CAHD,North - bed purchasing and direct  payments,Respite Planned - Nursing,Brunelcare,1278.08, 01-Aug-2019
474,Revenue,CAHD,North - bed purchasing and direct  payments,Respite Planned - Nursing,Brunelcare,1538.64, 01-Aug-2019
475,Revenue,CAHD,North - bed purchasing and direct  payments,Respite Planned - Nursing,Brunelcare,828.50, 01-Aug-2019
476,Revenue,CAHD,South - community based support,Other Small Contracts,Brunelcare,21880.98, 05-Aug-2019
477,Revenue,CAHD,North - Community based support,Other Small Contracts,Brunelcare,307.45, 05-Aug-2019
478,Revenue,CAHD,South - community based support,Other Small Contracts,Brunelcare,21796.76, 07-Aug-2019
479,Revenue,CAHD,North - Community based support,Other Small Contracts,Brunelcare,307.45, 07-Aug-2019
480,Revenue,CAHD,South - community based support,Other Small Contracts,Brunelcare,21928.28, 12-Aug-2019
481,Revenue,CAHD,North - Community based support,Other Small Contracts,Brunelcare,293.26, 12-Aug-2019
482,Revenue,CAHD,South - community based support,Other Small Contracts,Brunelcare,21914.09, 22-Aug-2019
483,Revenue,CAHD,North - Community based support,Other Small Contracts,Brunelcare,293.26, 22-Aug-2019
484,Revenue,CAHD,South - community based support,Other Small Contracts,Brunelcare,21568.80, 29-Aug-2019
485,Revenue,CAHD,North - Community based support,Other Small Contracts,Brunelcare,302.72, 29-Aug-2019
486,Revenue,CAHD,Pathway 1 - Re-Ablement Home Care,Other Small Contracts,Brunelcare,11812.26, 23-Aug-2019
487,Revenue,CAHD,Pathway 1 - Re-Ablement Home Care,Other Small Contracts,Brunelcare,1409.54, 20-Aug-2019
488,Revenue,CAHD,Pathway 1 - Re-Ablement Home Care,Other Small Contracts,Brunelcare,1135.20, 20-Aug-2019
489,Revenue,CAHD,Pathway 1 - Re-Ablement Home Care,Other Small Contracts,Brunelcare,1220.34, 20-Aug-2019
490,Revenue,CAHD,Pathway 1 - Re-Ablement Home Care,Other Small Contracts,Brunelcare,955.46, 20-Aug-2019
491,Revenue,CAHD,Pathway 1 - Re-Ablement Home Care,Other Small Contracts,Brunelcare,941.27, 20-Aug-2019
492,Revenue,CAHD,Pathway 1 - Re-Ablement Home Care,Other Small Contracts,Brunelcare,1102.09, 20-Aug-2019
493,Revenue,CAHD,Pathway 1 - Re-Ablement Home Care,Other Small Contracts,Brunelcare,1579.82, 20-Aug-2019
494,Revenue,CAHD,Pathway 1 - Re-Ablement Home Care,Other Small Contracts,Brunelcare,1773.75, 20-Aug-2019
495,Revenue,CAHD,Alexandra Way,Agency Staff (Operational)/PCT Pay,BS Project Services Limited,564.44, 29-Aug-2019
496,Revenue,CAHD,Alexandra Way,Agency Staff (Operational)/PCT Pay,BS Project Services Limited,607.95, 29-Aug-2019
497,Revenue,CAHD,Information Systems - Software,Computer Equipment - Purchase,BT Global Services Solutions,489.74, 21-Aug-2019
498,Revenue,CAHD,CSC - Vinney Green Secure Unit,R & M by Departments,BWS Standfast Fire & Security Systems,620.00, 30-Aug-2019
499,Revenue,CAHD,CSC - Agency Fostering,Foster Parent Allowances,By the Bridge Ltd,4424.14, 30-Aug-2019
500,Revenue,CAHD,Social Lettings Agency,Fees - General,C P & D J Bryan,16.16, 23-Aug-2019
501,Revenue,CAHD,Social Lettings Agency,Other Supplies & Services,Individual,710.96, 23-Aug-2019
502,Revenue,CAHD,Statemented Support Payments to OLAs,Other L.A.'s - General,Individual,1544.71, 29-Aug-2019
503,Revenue,CAHD,Academy Resource Base Funding,Other Public Bodies,Cabot Learning Federation,1172.69, 23-Aug-2019
504,Revenue,CAHD,Academy Resource Base Funding,Other Public Bodies,Cabot Learning Federation,1172.69, 23-Aug-2019
505,Revenue,CAHD,Academy Resource Base Funding,Other Public Bodies,Cabot Learning Federation,1172.69, 23-Aug-2019
506,Revenue,CAHD,Academy Resource Base Funding,Other Public Bodies,Cabot Learning Federation,1698.31, 23-Aug-2019
507,Revenue,CAHD,Academy Resource Base Funding,Other Public Bodies,Cabot Learning Federation,1536.63, 23-Aug-2019
508,Revenue,CAHD,Academy Resource Base Funding,Other Public Bodies,Cabot Learning Federation,1536.63, 23-Aug-2019
509,Revenue,CAHD,Academy Resource Base Funding,Other Public Bodies,Cabot Learning Federation,1172.69, 23-Aug-2019
510,Revenue,CAHD,Academy Resource Base Funding,Other Public Bodies,Cabot Learning Federation,1172.69, 23-Aug-2019
511,Revenue,CAHD,Academy Resource Base Funding,Other Public Bodies,Cabot Learning Federation,1698.31, 23-Aug-2019
512,Revenue,CAHD,Academy Resource Base Funding,Other Public Bodies,Cabot Learning Federation,1698.31, 23-Aug-2019
513,Revenue,CAHD,Academy Resource Base Funding,Other Public Bodies,Cabot Learning Federation,1172.69, 23-Aug-2019
514,Revenue,CAHD,Academy Resource Base Funding,Other Public Bodies,Cabot Learning Federation,1536.63, 23-Aug-2019
515,Revenue,CAHD,Academy Resource Base Funding,Other Public Bodies,Cabot Learning Federation,889.61, 23-Aug-2019
516,Revenue,CAHD,Academy Resource Base Funding,Other Public Bodies,Cabot Learning Federation,1693.98, 29-Aug-2019
517,Revenue,CAHD,Schools Block Growth Contingency,Other Public Bodies,Cabot Learning Federation,20833.33, 29-Aug-2019
518,Revenue,CAHD,Statemented Support Payments to OLAs,Other L.A.'s - General,Cabot Learning Federation,518.83, 29-Aug-2019
519,Revenue,CAHD,Statemented Support Academies,Other Public Bodies,Cabot Learning Federation,613.17, 29-Aug-2019
520,Revenue,CAHD,Statemented Support Academies,Other Public Bodies,Cabot Learning Federation,518.83, 29-Aug-2019
521,Revenue,CAHD,Statemented Support Academies,Other Public Bodies,Cabot Learning Federation,554.21, 29-Aug-2019
522,Revenue,CAHD,Statemented Support Academies,Other Public Bodies,Cabot Learning Federation,566.00, 29-Aug-2019
523,Revenue,CAHD,Statemented Support Payments to OLAs,Other L.A.'s - General,Cabot Learning Federation,1014.08, 29-Aug-2019
524,Revenue,CAHD,Statemented Support Academies,Other Public Bodies,Cabot Learning Federation,554.75, 29-Aug-2019
525,Revenue,CAHD,Statemented Support Academies,Other Public Bodies,Cabot Learning Federation,695.71, 29-Aug-2019
526,Revenue,CAHD,Statemented Support Academies,Other Public Bodies,Cabot Learning Federation,530.63, 29-Aug-2019
527,Revenue,CAHD,Statemented Support Academies,Other Public Bodies,Cabot Learning Federation,918.75, 29-Aug-2019
528,Revenue,CAHD,Statemented Support Payments to OLAs,Other L.A.'s - General,Cabot Learning Federation,872.58, 29-Aug-2019
529,Revenue,CAHD,Statemented Support Academies,Other Public Bodies,Cabot Learning Federation,554.21, 29-Aug-2019
530,Revenue,CAHD,Statemented Support Academies,Other Public Bodies,Cabot Learning Federation,742.88, 29-Aug-2019
531,Revenue,CAHD,Statemented Support Academies,Other Public Bodies,Cabot Learning Federation,943.33, 29-Aug-2019
532,Revenue,CAHD,Statemented Support Academies,Other Public Bodies,Cabot Learning Federation,813.63, 29-Aug-2019
533,Revenue,CAHD,Statemented Support Payments to OLAs,Other L.A.'s - General,Cabot Learning Federation,601.38, 29-Aug-2019
534,Revenue,CAHD,Statemented Support Academies,Other Public Bodies,Cabot Learning Federation,589.58, 29-Aug-2019
535,Revenue,CAHD,Statemented Support Academies,Other Public Bodies,Cabot Learning Federation,801.83, 29-Aug-2019
536,Revenue,CAHD,Statemented Support Academies,Other Public Bodies,Cabot Learning Federation,719.29, 29-Aug-2019
537,Revenue,CAHD,Statemented Support Academies,Other Public Bodies,Cabot Learning Federation,731.08, 29-Aug-2019
538,Revenue,CAHD,Statemented Support Academies,Other Public Bodies,Cabot Learning Federation,907.96, 29-Aug-2019
539,Revenue,CAHD,Statemented Support Academies,Other Public Bodies,Cabot Learning Federation,742.88, 29-Aug-2019
540,Revenue,CAHD,Statemented Support Academies,Other Public Bodies,Cabot Learning Federation,907.96, 29-Aug-2019
541,Revenue,CAHD,Statemented Support Payments to OLAs,Other L.A.'s - General,Cabot Learning Federation,601.38, 29-Aug-2019
542,Revenue,CAHD,Statemented Support Payments to OLAs,Other L.A.'s - General,Cabot Learning Federation,1073.04, 29-Aug-2019
543,Revenue,CAHD,Statemented Support Payments to OLAs,Other L.A.'s - General,Cabot Learning Federation,589.58, 29-Aug-2019
544,Revenue,CAHD,Statemented Support Academies,Other Public Bodies,Cabot Learning Federation,1297.08, 29-Aug-2019
545,Revenue,CAHD,Drug and Alcohol Programme,Other Small Contracts,Cadbury Heath Healthcare,2943.50, 09-Aug-2019
546,Revenue,CAHD,Early Years High Needs Support,Other Private Contractors,Caerleon Childcare,515.74, 21-Aug-2019
547,Revenue,CAHD,Cambrian Green Day Service,Catering,Cambrian Court Dining,572.00, 15-Aug-2019
548,Revenue,CAHD,Cambrian Green Day Service,Catering,Cambrian Court Dining,577.50, 09-Aug-2019
549,Revenue,CAHD,Cambrian Green Day Service,Catering,Cambrian Court Dining,572.00, 16-Aug-2019
550,Revenue,CAHD,Cambrian Green Day Service,Catering,Cambrian Court Dining,511.50, 19-Aug-2019
551,Revenue,CAHD,Cambrian Green Day Service,Catering,Cambrian Court Dining,528.00, 27-Aug-2019
552,Revenue,CAHD,North - Community based support,Day Care / Social Activities,Camphill Communities Thornbury Limited,1144.66, 02-Aug-2019
553,Revenue,CAHD,North - Community based support,Other Small Contracts,Camphill Communities Thornbury Limited,170.28, 02-Aug-2019
554,Revenue,CAHD,North - Community based support,Supported Living,Camphill Communities Thornbury Limited,1016.95, 02-Aug-2019
555,Revenue,CAHD,North - Community based support,Day Care / Social Activities,Camphill Communities Thornbury Limited,988.57, 09-Aug-2019
556,Revenue,CAHD,North - Community based support,Other Small Contracts,Camphill Communities Thornbury Limited,170.28, 09-Aug-2019
557,Revenue,CAHD,North - Community based support,Supported Living,Camphill Communities Thornbury Limited,1068.98, 09-Aug-2019
558,Revenue,CAHD,North - Community based support,Day Care / Social Activities,Camphill Communities Thornbury Limited,1149.39, 16-Aug-2019
559,Revenue,CAHD,North - Community based support,Other Small Contracts,Camphill Communities Thornbury Limited,170.28, 16-Aug-2019
560,Revenue,CAHD,North - Community based support,Supported Living,Camphill Communities Thornbury Limited,1068.98, 16-Aug-2019
561,Revenue,CAHD,North - Community based support,Day Care / Social Activities,Camphill Communities Thornbury Limited,510.84, 23-Aug-2019
562,Revenue,CAHD,North - Community based support,Other Small Contracts,Camphill Communities Thornbury Limited,175.01, 23-Aug-2019
563,Revenue,CAHD,North - Community based support,Supported Living,Camphill Communities Thornbury Limited,912.89, 23-Aug-2019
564,Revenue,CAHD,North - Community based support,Day Care / Social Activities,Camphill Communities Thornbury Limited,397.32, 29-Aug-2019
565,Revenue,CAHD,North - Community based support,Other Small Contracts,Camphill Communities Thornbury Limited,175.01, 29-Aug-2019
566,Revenue,CAHD,North - Community based support,Supported Living,Camphill Communities Thornbury Limited,780.45, 29-Aug-2019
567,Revenue,CAHD,North - Community based support,Supported Living,Camphill Communities Thornbury Limited,624.00, 28-Aug-2019
568,Revenue,CAHD,North - Community based support,Supported Living,Camphill Communities Thornbury Limited,624.00, 28-Aug-2019
569,Revenue,CAHD,North - Community based support,Supported Living,Camphill Communities Thornbury Limited,586.56, 28-Aug-2019
570,Revenue,CAHD,North - Community based support,Supported Living,Camphill Communities Thornbury Limited,671.00, 28-Aug-2019
571,Revenue,CAHD,North - Community based support,Supported Living,Camphill Communities Thornbury Limited,788.00, 28-Aug-2019
572,Revenue,CAHD,North - Community based support,Supported Living,Camphill Communities Thornbury Limited,788.00, 28-Aug-2019
573,Revenue,CAHD,North - Community based support,Supported Living,Camphill Communities Thornbury Limited,568.32, 28-Aug-2019
574,Revenue,CAHD,North - Community based support,Supported Living,Camphill Communities Thornbury Limited,709.20, 28-Aug-2019
575,Revenue,CAHD,North - Community based support,Supported Living,Camphill Communities Thornbury Limited,756.48, 28-Aug-2019
576,Revenue,CAHD,North - Community based support,Supported Living,Camphill Communities Thornbury Limited,567.36, 28-Aug-2019
577,Revenue,CAHD,North - Community based support,Supported Living,Camphill Communities Thornbury Limited,756.48, 28-Aug-2019
578,Revenue,CAHD,North - Community based support,Supported Living,Camphill Communities Thornbury Limited,614.64, 28-Aug-2019
579,Revenue,CAHD,North - S117,Permanent Residential,Canjayor,3937.76, 27-Aug-2019
580,Revenue,CAHD,CAH Director,Training Expenses,Capita Resourcing Limited,4150.00, 09-Aug-2019
581,Revenue,CAHD,CAH Director,Training Expenses,Capita Resourcing Limited,2400.00, 29-Aug-2019
582,Revenue,CAHD,Central - Community based support,Other Small Contracts,Care 1st Homecare,2929.92, 22-Aug-2019
583,Revenue,CAHD,Central - Community based support,Other Small Contracts,Care 1st Homecare,2929.92, 22-Aug-2019
584,Revenue,CAHD,18-25 Year Olds,Other Small Contracts,Care Horizons Limited,135.24, 07-Aug-2019
585,Revenue,CAHD,Central - Community based support,Other Small Contracts,Care Horizons Limited,1125.39, 07-Aug-2019
586,Revenue,CAHD,South - community based support,Other Small Contracts,Care Horizons Limited,178.71, 07-Aug-2019
587,Revenue,CAHD,North - Community based support,Day Care / Social Activities,Care Horizons Limited,405.72, 07-Aug-2019
588,Revenue,CAHD,North - Community based support,Other Small Contracts,Care Horizons Limited,487.83, 07-Aug-2019
589,Revenue,CAHD,Younger MH non-res purchasing,Other Small Contracts,Care Horizons Limited,352.59, 07-Aug-2019
590,Revenue,CAHD,18-25 Year Olds,Other Small Contracts,Care Horizons Limited,198.03, 30-Aug-2019
591,Revenue,CAHD,Central - Community based support,Other Small Contracts,Care Horizons Limited,994.98, 30-Aug-2019
592,Revenue,CAHD,South - community based support,Other Small Contracts,Care Horizons Limited,169.05, 30-Aug-2019
593,Revenue,CAHD,North - Community based support,Day Care / Social Activities,Care Horizons Limited,405.72, 30-Aug-2019
594,Revenue,CAHD,North - Community based support,Other Small Contracts,Care Horizons Limited,478.17, 30-Aug-2019
595,Revenue,CAHD,Younger MH non-res purchasing,Other Small Contracts,Care Horizons Limited,309.12, 30-Aug-2019
596,Revenue,CAHD,18-25 Year Olds,Other Small Contracts,Care Horizons Limited,188.37, 22-Aug-2019
597,Revenue,CAHD,Central - Community based support,Other Small Contracts,Care Horizons Limited,990.15, 22-Aug-2019
598,Revenue,CAHD,South - community based support,Other Small Contracts,Care Horizons Limited,91.77, 22-Aug-2019
599,Revenue,CAHD,North - Community based support,Day Care / Social Activities,Care Horizons Limited,410.55, 22-Aug-2019
600,Revenue,CAHD,North - Community based support,Other Small Contracts,Care Horizons Limited,309.12, 22-Aug-2019
601,Revenue,CAHD,Younger MH non-res purchasing,Other Small Contracts,Care Horizons Limited,309.12, 22-Aug-2019
602,Revenue,CAHD,Central - Community based support,Supported Living,Cartrefi Cymru Co Operative,1340.32, 27-Aug-2019
603,Revenue,CAHD,Central - Community based support,Other Small Contracts,Cartrefi Cymru Co-operative Ltd,7194.32, 09-Aug-2019
604,Revenue,CAHD,Statemented Support Academies,Other Public Bodies,Castle School Education Trust,518.83, 29-Aug-2019
605,Revenue,CAHD,Statemented Support Academies,Other Public Bodies,Castle School Education Trust,566.00, 29-Aug-2019
606,Revenue,CAHD,Statemented Support Academies,Other Public Bodies,Castle School Education Trust,778.25, 29-Aug-2019
607,Revenue,CAHD,Statemented Support Academies,Other Public Bodies,Castle School Education Trust,931.54, 29-Aug-2019
608,Revenue,CAHD,Statemented Support Academies,Other Public Bodies,Castle School Education Trust,542.42, 29-Aug-2019
609,Revenue,CAHD,Statemented Support Academies,Other Public Bodies,Castle School Education Trust,672.13, 29-Aug-2019
610,Revenue,CAHD,Statemented Support Academies,Other Public Bodies,Castle School Education Trust,505.08, 29-Aug-2019
611,Revenue,CAHD,Statemented Support Academies,Other Public Bodies,Castle School Education Trust,860.79, 29-Aug-2019
612,Revenue,CAHD,Statemented Support Academies,Other Public Bodies,Castle School Education Trust,1462.17, 29-Aug-2019
613,Revenue,CAHD,Statemented Support Academies,Other Public Bodies,Castle School Education Trust,860.79, 29-Aug-2019
614,Revenue,CAHD,Statemented Support Academies,Other Public Bodies,Castle School Education Trust,1002.29, 29-Aug-2019
615,Revenue,CAHD,Statemented Support Academies,Other Public Bodies,Castle School Education Trust,1120.21, 29-Aug-2019
616,Revenue,CAHD,Statemented Support Academies,Other Public Bodies,Castle School Education Trust,507.04, 29-Aug-2019
617,Revenue,CAHD,Statemented Support Academies,Other Public Bodies,Castle School Education Trust,589.58, 29-Aug-2019
618,Revenue,CAHD,Statemented Support Academies,Other Public Bodies,Castle School Education Trust,955.13, 29-Aug-2019
619,Revenue,CAHD,Statemented Support Academies,Other Public Bodies,Castle School Education Trust,577.79, 29-Aug-2019
620,Revenue,CAHD,Statemented Support Academies,Other Public Bodies,Castle School Education Trust,624.96, 29-Aug-2019
621,Revenue,CAHD,Statemented Support Academies,Other Public Bodies,Castle School Education Trust,825.42, 29-Aug-2019
622,Revenue,CAHD,Statemented Support Academies,Other Public Bodies,Castle School Education Trust,707.50, 29-Aug-2019
623,Revenue,CAHD,Statemented Support Academies,Other Public Bodies,Castle School Education Trust,849.00, 29-Aug-2019
624,Revenue,CAHD,Statemented Support Academies,Other Public Bodies,Castle School Education Trust,1238.13, 29-Aug-2019
625,Revenue,CAHD,Statemented Support Academies,Other Public Bodies,Castle School Education Trust,1061.25, 29-Aug-2019
626,Revenue,CAHD,Statemented Support Academies,Other Public Bodies,Castle School Education Trust,518.83, 29-Aug-2019
627,Revenue,CAHD,Statemented Support Academies,Other Public Bodies,Castle School Education Trust,577.79, 29-Aug-2019
628,Revenue,CAHD,Statemented Support Academies,Other Public Bodies,Castle School Education Trust,1143.79, 29-Aug-2019
629,Revenue,CAHD,Academy Resource Base Funding,Other Public Bodies,Castle School Education Trust,1698.31, 23-Aug-2019
630,Revenue,CAHD,Academy Resource Base Funding,Other Public Bodies,Castle School Education Trust,1698.31, 23-Aug-2019
631,Revenue,CAHD,Academy Resource Base Funding,Other Public Bodies,Castle School Education Trust,1698.31, 23-Aug-2019
632,Revenue,CAHD,Academy Resource Base Funding,Other Public Bodies,Castle School Education Trust,1698.31, 23-Aug-2019
633,Revenue,CAHD,Academy Resource Base Funding,Other Public Bodies,Castle School Education Trust,1698.31, 23-Aug-2019
634,Revenue,CAHD,Academy Resource Base Funding,Other Public Bodies,Castle School Education Trust,1698.31, 23-Aug-2019
635,Revenue,CAHD,Academy Resource Base Funding,Other Public Bodies,Castle School Education Trust,1698.31, 23-Aug-2019
636,Revenue,CAHD,Schools Specific Grant Income - from OLA,Other Public Bodies,Castle School Education Trust,500.00, 23-Aug-2019
637,Revenue,CAHD,Schools Block Growth Contingency,Other Public Bodies,Castle School Education Trust,20833.33, 29-Aug-2019
638,Revenue,CAHD,Statemented Support Academies,Other Public Bodies,Castle School Education Trust,1485.75, 29-Aug-2019
639,Revenue,CAHD,A & CL - Pre-Employability 18/19,Reimbursements to Schools - Recharges,Castle School Education Trust,4800.00, 01-Aug-2019
640,Revenue,CAHD,A & CL - Community Development 18/19,Reimbursements to Schools - Recharges,Castle School Education Trust,3900.00, 01-Aug-2019
641,Revenue,CAHD,A & CL - Pre-Employability 18/19,Reimbursements to Schools - Recharges,Castle School Education Trust,2600.00, 01-Aug-2019
642,Revenue,CAHD,Statemented Support Academies,Other Public Bodies,Castle School Education Trust,672.13, 29-Aug-2019
643,Revenue,CAHD,Statemented Support Academies,Other Public Bodies,Castle School Education Trust,872.58, 29-Aug-2019
644,Revenue,CAHD,Statemented Support Academies,Other Public Bodies,Castle School Education Trust,849.00, 29-Aug-2019
645,Revenue,CAHD,Statemented Support Academies,Other Public Bodies,Castle School Education Trust,907.96, 29-Aug-2019
646,Revenue,CAHD,Statemented Support Academies,Other Public Bodies,Castle School Education Trust,1190.96, 29-Aug-2019
647,Revenue,CAHD,Statemented Support Academies,Other Public Bodies,Castle School Education Trust,1556.50, 29-Aug-2019
648,Revenue,CAHD,Statemented Support Academies,Other Public Bodies,Castle School Education Trust,1025.88, 29-Aug-2019
649,Revenue,CAHD,Statemented Support Academies,Other Public Bodies,Castle School Education Trust,1473.96, 29-Aug-2019
650,Revenue,CAHD,Statemented Support Academies,Other Public Bodies,Castle School Education Trust,630.58, 29-Aug-2019
651,Revenue,CAHD,Statemented Support Academies,Other Public Bodies,Castle School Education Trust,778.25, 29-Aug-2019
652,Revenue,CAHD,Statemented Support Academies,Other Public Bodies,Castle School Education Trust,613.17, 29-Aug-2019
653,Revenue,CAHD,Social Lettings Agency,Fees - General,Individual,10.53, 01-Aug-2019
654,Revenue,CAHD,Social Lettings Agency,Fees & Charges Income - General,Individual,595.11, 01-Aug-2019
655,Revenue,CAHD,Social Lettings Agency,Fees - General,Individual,10.53, 30-Aug-2019
656,Revenue,CAHD,Social Lettings Agency,Fees & Charges Income - General,Individual,595.11, 30-Aug-2019
657,Revenue,CAHD,North - Community based support,Day Care / Social Activities,Causeway House,2133.96, 27-Aug-2019
658,Revenue,CAHD,Central - Community based support,Day Care / Social Activities,Causeway House,1136.76, 27-Aug-2019
659,Revenue,CAHD,South - community based support,Day Care / Social Activities,Causeway House,5253.12, 27-Aug-2019
660,Revenue,CAHD,18-25 Year Olds,Day Care / Social Activities,Causeway House,1418.72, 27-Aug-2019
661,Revenue,CAHD,18-25 Year Olds,Day Care / Social Activities,Causeway House,4414.64, 27-Aug-2019
662,Revenue,CAHD,Central - Community based support,Day Care / Social Activities,Causeway House,3891.60, 27-Aug-2019
663,Revenue,CAHD,Central - Community based support,Day Care / Social Activities,Causeway House,1704.96, 27-Aug-2019
664,Revenue,CAHD,North - Community based support,Day Care / Social Activities,Causeway House,3226.20, 27-Aug-2019
665,Revenue,CAHD,North - Community based support,Day Care / Social Activities,Causeway House,4806.44, 27-Aug-2019
666,Revenue,CAHD,Central - Community based support,Day Care / Social Activities,Causeway House,3652.12, 27-Aug-2019
667,Revenue,CAHD,North - Community based support,Day Care / Social Activities,Causeway House,3149.08, 27-Aug-2019
668,Revenue,CAHD,North - Community based support,Day Care / Social Activities,Causeway House,568.32, 27-Aug-2019
669,Revenue,CAHD,South - Bed Purchasing and Direct payments,Permanent Nursing,Cedar Care Homes Limited,3095.92, 27-Aug-2019
670,Revenue,CAHD,CSC - Care Leavers Support Costs,Furniture & Fittings Loose,Central Discount Carpets,800.00, 23-Aug-2019
671,Revenue,CAHD,North - bed purchasing and direct  payments,Permanent Residential,Cepen Lodge,2741.48, 27-Aug-2019
672,Revenue,CAHD,South - Bed Purchasing and Direct payments,Permanent Residential,Challenge House,2834.44, 27-Aug-2019
673,Revenue,CAHD,North - S117,Permanent Residential,Challenge House,2571.40, 27-Aug-2019
674,Revenue,CAHD,North - bed purchasing and direct  payments,Permanent Residential,Challenge House,2233.00, 27-Aug-2019
675,Revenue,CAHD,North - bed purchasing and direct  payments,Permanent Residential,Challenge House,12117.86, 27-Aug-2019
676,Revenue,CAHD,North - bed purchasing and direct  payments,Permanent Residential,Challenge House,3417.86, 27-Aug-2019
677,Revenue,CAHD,North - bed purchasing and direct  payments,Permanent Residential,Challenge House,2900.00, 27-Aug-2019
678,Revenue,CAHD,North - bed purchasing and direct  payments,Fees & Charges Income - General,Challenge House,4088.53, 27-Aug-2019
679,Revenue,CAHD,North - bed purchasing and direct  payments,Fees & Charges Income - General,Challenge House,1086.60, 27-Aug-2019
680,Revenue,CAHD,North - bed purchasing and direct  payments,Fees & Charges Income - General,Challenge House,1053.67, 27-Aug-2019
681,Revenue,CAHD,North - bed purchasing and direct  payments,Fees & Charges Income - General,Challenge House,2358.94, 27-Aug-2019
682,Revenue,CAHD,North - bed purchasing and direct  payments,Permanent Residential,Challenge House,2370.72, 27-Aug-2019
683,Revenue,CAHD,North - bed purchasing and direct  payments,Fees & Charges Income - General,Challenge House,2496.28, 27-Aug-2019
684,Revenue,CAHD,North - bed purchasing and direct  payments,Fees & Charges Income - General,Challenge House,681.03, 27-Aug-2019
685,Revenue,CAHD,Central - Bed Purchasing and Direct Payments,Permanent Residential,Challenge House,2365.60, 27-Aug-2019
686,Revenue,CAHD,Central - Bed Purchasing and Direct Payments,Permanent Residential,Challenge House,2363.40, 27-Aug-2019
687,Revenue,CAHD,North - bed purchasing and direct  payments,Permanent Residential,Challenge House,2363.40, 27-Aug-2019
688,Revenue,CAHD,Central - Bed Purchasing and Direct Payments,Respite Emergency - Residential,Challenge House,2834.44, 27-Aug-2019
689,Revenue,CAHD,North - bed purchasing and direct  payments,Permanent Residential,Challenge House,2834.40, 27-Aug-2019
690,Revenue,CAHD,North - bed purchasing and direct  payments,Permanent Nursing,Challenge House,3130.36, 27-Aug-2019
691,Revenue,CAHD,Central - Bed Purchasing and Direct Payments,Permanent Nursing,Challenge House,3000.00, 27-Aug-2019
692,Revenue,CAHD,North - S117,Permanent Nursing,Challenge House,2395.80, 27-Aug-2019
693,Revenue,CAHD,North - bed purchasing and direct  payments,Fees & Charges Income - General,Challenge House,905.70, 27-Aug-2019
694,Revenue,CAHD,Central - Bed Purchasing and Direct Payments,Permanent Nursing,Challenge House,3056.00, 27-Aug-2019
695,Revenue,CAHD,North - bed purchasing and direct  payments,Permanent Nursing,Challenge House,2571.40, 27-Aug-2019
696,Revenue,CAHD,North - bed purchasing and direct  payments,Permanent Nursing,Challenge House,2395.80, 27-Aug-2019
697,Revenue,CAHD,North - bed purchasing and direct  payments,Permanent Nursing,Challenge House,3130.36, 27-Aug-2019
698,Revenue,CAHD,South Glos Users in South Glos Homes,Permanent Nursing,Challenge House,662.24, 27-Aug-2019
699,Revenue,CAHD,South Glos Users in South Glos Homes,Permanent Nursing,Challenge House,662.24, 27-Aug-2019
700,Revenue,CAHD,South Glos Users in South Glos Homes,Permanent Nursing,Challenge House,662.24, 27-Aug-2019
701,Revenue,CAHD,South Glos Users in South Glos Homes,Permanent Nursing,Challenge House,662.24, 27-Aug-2019
702,Revenue,CAHD,South - Bed Purchasing and Direct payments,Permanent Nursing,Challenge House,2884.20, 27-Aug-2019
703,Revenue,CAHD,South Glos Users in South Glos Homes,Permanent Nursing,Challenge House,662.24, 27-Aug-2019
704,Revenue,CAHD,North - bed purchasing and direct  payments,Permanent Nursing,Challenge House,3335.08, 27-Aug-2019
705,Revenue,CAHD,North - bed purchasing and direct  payments,Permanent Nursing,Challenge House,3208.48, 27-Aug-2019
706,Revenue,CAHD,South Glos Users in South Glos Homes,Permanent Nursing,Challenge House,662.24, 27-Aug-2019
707,Revenue,CAHD,South Glos Users in South Glos Homes,Permanent Nursing,Challenge House,662.24, 27-Aug-2019
708,Revenue,CAHD,North - bed purchasing and direct  payments,Permanent Nursing,Challenge House,3338.84, 27-Aug-2019
709,Revenue,CAHD,South Glos Users in South Glos Homes,Permanent Nursing,Challenge House,662.24, 27-Aug-2019
710,Revenue,CAHD,South Glos Users in South Glos Homes,Permanent Nursing,Challenge House,662.24, 27-Aug-2019
711,Revenue,CAHD,South Glos Users in South Glos Homes,Permanent Nursing,Challenge House,662.24, 27-Aug-2019
712,Revenue,CAHD,South Glos Users in South Glos Homes,Permanent Nursing,Challenge House,662.24, 27-Aug-2019
713,Revenue,CAHD,South - Bed Purchasing and Direct payments,Permanent Residential,Challenge House,3000.00, 27-Aug-2019
714,Revenue,CAHD,South Glos Users in South Glos Homes,Permanent Nursing,Challenge House,662.24, 27-Aug-2019
715,Revenue,CAHD,South Glos Users in South Glos Homes,Permanent Nursing,Challenge House,2554.35, 27-Aug-2019
716,Revenue,CAHD,South Glos Users in South Glos Homes,Permanent Nursing,Challenge House,662.24, 27-Aug-2019
717,Revenue,CAHD,South - Bed Purchasing and Direct payments,Permanent Nursing,Challenge House,2785.71, 27-Aug-2019
718,Revenue,CAHD,North - bed purchasing and direct  payments,Permanent Nursing,Challenge House,2827.52, 27-Aug-2019
719,Revenue,CAHD,South Glos Users in South Glos Homes,Permanent Nursing,Challenge House,662.24, 27-Aug-2019
720,Revenue,CAHD,North - bed purchasing and direct  payments,Permanent Nursing,Challenge House,3338.84, 27-Aug-2019
721,Revenue,CAHD,South Glos Users in South Glos Homes,Permanent Nursing,Challenge House,662.24, 27-Aug-2019
722,Revenue,CAHD,South Glos Users in South Glos Homes,Permanent Nursing,Challenge House,662.24, 27-Aug-2019
723,Revenue,CAHD,South Glos Users in South Glos Homes,Permanent Nursing,Challenge House,662.24, 27-Aug-2019
724,Revenue,CAHD,North - bed purchasing and direct  payments,Permanent Nursing,Challenge House,2827.52, 27-Aug-2019
725,Revenue,CAHD,South Glos Users in South Glos Homes,Permanent Nursing,Challenge House,662.24, 27-Aug-2019
726,Revenue,CAHD,South Glos Users in South Glos Homes,Permanent Nursing,Challenge House,662.24, 27-Aug-2019
727,Revenue,CAHD,North - bed purchasing and direct  payments,Permanent Nursing,Challenge House,3263.84, 27-Aug-2019
728,Revenue,CAHD,South Glos Users in South Glos Homes,Permanent Nursing,Challenge House,662.24, 27-Aug-2019
729,Revenue,CAHD,CSC - Vinney Green Secure Unit,"Provisions (Food, etc)",Charles Saunders Limited,567.08, 23-Aug-2019
730,Revenue,CAHD,Alexandra Way,"Provisions (Food, etc)",Charles Saunders Limited,805.67, 30-Aug-2019
731,Revenue,CAHD,Central - Community based support,Other Small Contracts,Cherish Able Care Limited,1541.98, 05-Aug-2019
732,Revenue,CAHD,South - community based support,Other Small Contracts,Cherish Able Care Limited,5695.65, 05-Aug-2019
733,Revenue,CAHD,North - Community based support,Other Small Contracts,Cherish Able Care Limited,1494.68, 05-Aug-2019
734,Revenue,CAHD,Central - Community based support,Other Small Contracts,Cherish Able Care Limited,2104.85, 07-Aug-2019
735,Revenue,CAHD,South - community based support,Other Small Contracts,Cherish Able Care Limited,5611.10, 07-Aug-2019
736,Revenue,CAHD,North - Community based support,Other Small Contracts,Cherish Able Care Limited,1471.03, 07-Aug-2019
737,Revenue,CAHD,Central - Community based support,Other Small Contracts,Cherish Able Care Limited,2128.50, 22-Aug-2019
738,Revenue,CAHD,South - community based support,Other Small Contracts,Cherish Able Care Limited,5525.32, 22-Aug-2019
739,Revenue,CAHD,North - Community based support,Other Small Contracts,Cherish Able Care Limited,1456.84, 22-Aug-2019
740,Revenue,CAHD,Central - Community based support,Other Small Contracts,Cherish Able Care Limited,2171.07, 22-Aug-2019
741,Revenue,CAHD,South - community based support,Other Small Contracts,Cherish Able Care Limited,5548.23, 22-Aug-2019
742,Revenue,CAHD,North - Community based support,Other Small Contracts,Cherish Able Care Limited,1447.38, 22-Aug-2019
743,Revenue,CAHD,Central - Community based support,Other Small Contracts,Cherish Able Care Limited,2147.42, 30-Aug-2019
744,Revenue,CAHD,South - community based support,Other Small Contracts,Cherish Able Care Limited,5572.57, 30-Aug-2019
745,Revenue,CAHD,North - Community based support,Other Small Contracts,Cherish Able Care Limited,1456.84, 30-Aug-2019
746,Revenue,CAHD,South - community based support,Supported Living,Cherry Orchards,2648.80, 16-Aug-2019
747,Revenue,CAHD,South - community based support,Other Small Contracts,Cherry Orchards,6357.12, 21-Aug-2019
748,Revenue,CAHD,S28A cases,Permanent Residential,Chescombe Lodge,9764.44, 27-Aug-2019
749,Revenue,CAHD,Early Years Team,External Lecturers Fees,Church Park Consultants,815.50, 15-Aug-2019
750,Revenue,CAHD,18-25 Year Olds,Other Small Contracts,Cintre,107.36, 07-Aug-2019
751,Revenue,CAHD,Central - Community based support,Other Small Contracts,Cintre,385.52, 07-Aug-2019
752,Revenue,CAHD,South - community based support,Other Small Contracts,Cintre,683.20, 07-Aug-2019
753,Revenue,CAHD,18-25 Year Olds,Other Small Contracts,Cintre,102.48, 22-Aug-2019
754,Revenue,CAHD,Central - Community based support,Other Small Contracts,Cintre,312.32, 22-Aug-2019
755,Revenue,CAHD,South - community based support,Other Small Contracts,Cintre,829.60, 22-Aug-2019
756,Revenue,CAHD,18-25 Year Olds,Other Small Contracts,Cintre,97.60, 22-Aug-2019
757,Revenue,CAHD,Central - Community based support,Other Small Contracts,Cintre,390.40, 22-Aug-2019
758,Revenue,CAHD,South - community based support,Other Small Contracts,Cintre,702.72, 22-Aug-2019
759,Revenue,CAHD,Training - Adult Services,Training Expenses,City & Guilds,1107.20, 20-Aug-2019
760,Revenue,CAHD,Post 16 High Needs Placements,Other Private Contractors,City of Bristol College,8262.49, 16-Aug-2019
761,Revenue,CAHD,Post 16 High Needs Placements,Other Private Contractors,City of Bristol College,23648.66, 29-Aug-2019
762,Revenue,CAHD,Information Systems - Software,Computer Equipment - Purchase,Civica UK Limited,2269.01, 16-Aug-2019
763,Revenue,CAHD,MH Purchasing - Younger,Permanent Residential,Claro Homes,2870.88, 27-Aug-2019
764,Revenue,CAHD,Section 117 Placements MH Younger,Permanent Residential,Claro Homes,3554.60, 27-Aug-2019
765,Revenue,CAHD,North - bed purchasing and direct  payments,Permanent Nursing,Claro Homes,3318.20, 27-Aug-2019
766,Revenue,CAHD,South - Bed Purchasing and Direct payments,Permanent Residential,Cleeve Lodge,3686.40, 27-Aug-2019
767,Revenue,CAHD,South - Bed Purchasing and Direct payments,Permanent Residential,Cleeve Lodge,3686.40, 27-Aug-2019
768,Revenue,CAHD,South - Bed Purchasing and Direct payments,Permanent Residential,Cleeve Lodge,1308.44, 27-Aug-2019
769,Revenue,CAHD,South - Bed Purchasing and Direct payments,Permanent Residential,Cleeve Lodge,2921.68, 27-Aug-2019
770,Revenue,CAHD,South - Bed Purchasing and Direct payments,Permanent Residential,Cleeve Lodge,3086.48, 27-Aug-2019
771,Revenue,CAHD,North - bed purchasing and direct  payments,Respite Planned - Residential,Cleeve Lodge,714.29, 27-Aug-2019
772,Revenue,CAHD,South - Bed Purchasing and Direct payments,Permanent Residential,Cleeve Lodge,4000.00, 27-Aug-2019
773,Revenue,CAHD,South - Bed Purchasing and Direct payments,Permanent Residential,Cleeve Lodge,2893.00, 27-Aug-2019
774,Revenue,CAHD,South - Bed Purchasing and Direct payments,Permanent Residential,Cleeve Lodge,2635.60, 27-Aug-2019
775,Revenue,CAHD,North - bed purchasing and direct  payments,Permanent Nursing,Clevedon Court Nursing Home,3448.16, 27-Aug-2019
776,Revenue,CAHD,Independent Special Placements - Pre 16,Other Private Contractors,Clifton College,8380.00, 30-Aug-2019
777,Revenue,CAHD,NHS Health Checks,Other Small Contracts,Close Farm Surgery,1334.00, 13-Aug-2019
778,Revenue,CAHD,Drug and Alcohol Programme,Other Small Contracts,Close Farm Surgery,913.50, 09-Aug-2019
779,Revenue,CAHD,Sexual Health,Other Small Contracts,Close Farm Surgery,918.80, 16-Aug-2019
780,Revenue,CAHD,Central - Community based support,Other Small Contracts,Clover Health and Home Care Ltd,1083.24, 30-Aug-2019
781,Revenue,CAHD,Central - Community based support,Other Small Contracts,Clover Health and Home Care Ltd,1932.84, 28-Aug-2019
782,Revenue,CAHD,Central - Community based support,Other Small Contracts,Clover Health and Home Care Ltd,870.84, 28-Aug-2019
783,Revenue,CAHD,Central - Community based support,Other Small Contracts,Clover Health and Home Care Ltd,1210.68, 29-Aug-2019
784,Revenue,CAHD,South - Bed Purchasing and Direct payments,Permanent Residential,Collingwood Care Home,2826.24, 27-Aug-2019
785,Revenue,CAHD,South - Bed Purchasing and Direct payments,Permanent Residential,Collingwood Care Home,2241.28, 27-Aug-2019
786,Revenue,CAHD,South - Bed Purchasing and Direct payments,Permanent Residential,Collingwood Care Home,2420.80, 27-Aug-2019
787,Revenue,CAHD,North - bed purchasing and direct  payments,Permanent Residential,Collingwood Care Home,3000.00, 27-Aug-2019
788,Revenue,CAHD,South - Bed Purchasing and Direct payments,Permanent Residential,Collingwood Care Home,2504.28, 27-Aug-2019
789,Revenue,CAHD,Future Bright,Fees - General,CompTIA,598.00, 16-Aug-2019
790,Revenue,CAHD,NHS Health Checks,Other Small Contracts,Concord Medical Centre,3289.00, 13-Aug-2019
791,Revenue,CAHD,Sexual Health,Other Small Contracts,Concord Medical Centre,2495.50, 16-Aug-2019
792,Revenue,CAHD,Drug and Alcohol Programme,Other Small Contracts,Concord Medical Centre,812.00, 09-Aug-2019
793,Revenue,CAHD,Sexual Health,Other Small Contracts,Concord Medical Centre,2570.62, 16-Aug-2019
794,Revenue,CAHD,South - Bed Purchasing and Direct payments,Permanent Residential,Concorde Lodge,70599.66, 27-Aug-2019
795,Revenue,CAHD,NHS Health Checks,Other Small Contracts,Coniston Medical Practice,805.00, 13-Aug-2019
796,Revenue,CAHD,Drug and Alcohol Programme,Other Small Contracts,Coniston Medical Practice,1624.00, 09-Aug-2019
797,Revenue,CAHD,Sexual Health,Other Small Contracts,Coniston Medical Practice,1558.88, 16-Aug-2019
798,Revenue,CAHD,Bed and Breakfast,Bed & Breakfast,Connolly & Callaghan Limited,938.00, 02-Aug-2019
799,Revenue,CAHD,Bed and Breakfast,Bed & Breakfast,Connolly & Callaghan Limited,455.00, 02-Aug-2019
800,Revenue,CAHD,Bed and Breakfast,Bed & Breakfast,Connolly & Callaghan Limited,539.00, 02-Aug-2019
801,Revenue,CAHD,Bed and Breakfast,Bed & Breakfast,Connolly & Callaghan Limited,490.00, 02-Aug-2019
802,Revenue,CAHD,Bed and Breakfast,Bed & Breakfast,Connolly & Callaghan Limited,504.00, 01-Aug-2019
803,Revenue,CAHD,Bed and Breakfast,Bed & Breakfast,Connolly & Callaghan Limited,497.00, 02-Aug-2019
804,Revenue,CAHD,Bed and Breakfast,Bed & Breakfast,Connolly & Callaghan Limited,714.00, 01-Aug-2019
805,Revenue,CAHD,Bed and Breakfast,Bed & Breakfast,Connolly & Callaghan Limited,539.00, 07-Aug-2019
806,Revenue,CAHD,Bed and Breakfast,Bed & Breakfast,Connolly & Callaghan Limited,455.00, 02-Aug-2019
807,Revenue,CAHD,Bed and Breakfast,Bed & Breakfast,Connolly & Callaghan Limited,539.00, 02-Aug-2019
808,Revenue,CAHD,Bed and Breakfast,Bed & Breakfast,Connolly & Callaghan Limited,490.00, 02-Aug-2019
809,Revenue,CAHD,Bed and Breakfast,Bed & Breakfast,Connolly & Callaghan Limited,497.00, 01-Aug-2019
810,Revenue,CAHD,Bed and Breakfast,Bed & Breakfast,Connolly & Callaghan Limited,574.00, 01-Aug-2019
811,Revenue,CAHD,Bed and Breakfast,Bed & Breakfast,Connolly & Callaghan Limited,539.00, 07-Aug-2019
812,Revenue,CAHD,Bed and Breakfast,Bed & Breakfast,Connolly & Callaghan Limited,539.00, 01-Aug-2019
813,Revenue,CAHD,Bed and Breakfast,Bed & Breakfast,Connolly & Callaghan Limited,490.00, 01-Aug-2019
814,Revenue,CAHD,Bed and Breakfast,Bed & Breakfast,Connolly & Callaghan Limited,623.00, 01-Aug-2019
815,Revenue,CAHD,Bed and Breakfast,Bed & Breakfast,Connolly & Callaghan Limited,490.00, 07-Aug-2019
816,Revenue,CAHD,Bed and Breakfast,Bed & Breakfast,Connolly & Callaghan Limited,497.00, 01-Aug-2019
817,Revenue,CAHD,Bed and Breakfast,Bed & Breakfast,Connolly & Callaghan Limited,490.00, 01-Aug-2019
818,Revenue,CAHD,Bed and Breakfast,Bed & Breakfast,Connolly & Callaghan Limited,504.00, 09-Aug-2019
819,Revenue,CAHD,Bed and Breakfast,Bed & Breakfast,Connolly & Callaghan Limited,497.00, 12-Aug-2019
820,Revenue,CAHD,Bed and Breakfast,Bed & Breakfast,Connolly & Callaghan Limited,581.00, 09-Aug-2019
821,Revenue,CAHD,Bed and Breakfast,Bed & Breakfast,Connolly & Callaghan Limited,714.00, 09-Aug-2019
822,Revenue,CAHD,Bed and Breakfast,Bed & Breakfast,Connolly & Callaghan Limited,539.00, 09-Aug-2019
823,Revenue,CAHD,Bed and Breakfast,Bed & Breakfast,Connolly & Callaghan Limited,455.00, 14-Aug-2019
824,Revenue,CAHD,Bed and Breakfast,Bed & Breakfast,Connolly & Callaghan Limited,539.00, 14-Aug-2019
825,Revenue,CAHD,Bed and Breakfast,Bed & Breakfast,Connolly & Callaghan Limited,497.00, 09-Aug-2019
826,Revenue,CAHD,Bed and Breakfast,Bed & Breakfast,Connolly & Callaghan Limited,574.00, 09-Aug-2019
827,Revenue,CAHD,Bed and Breakfast,Bed & Breakfast,Connolly & Callaghan Limited,539.00, 09-Aug-2019
828,Revenue,CAHD,Bed and Breakfast,Bed & Breakfast,Connolly & Callaghan Limited,539.00, 09-Aug-2019
829,Revenue,CAHD,Bed and Breakfast,Bed & Breakfast,Connolly & Callaghan Limited,490.00, 09-Aug-2019
830,Revenue,CAHD,Bed and Breakfast,Bed & Breakfast,Connolly & Callaghan Limited,623.00, 09-Aug-2019
831,Revenue,CAHD,Bed and Breakfast,Bed & Breakfast,Connolly & Callaghan Limited,497.00, 09-Aug-2019
832,Revenue,CAHD,Bed and Breakfast,Bed & Breakfast,Connolly & Callaghan Limited,504.00, 15-Aug-2019
833,Revenue,CAHD,Bed and Breakfast,Bed & Breakfast,Connolly & Callaghan Limited,497.00, 15-Aug-2019
834,Revenue,CAHD,Bed and Breakfast,Bed & Breakfast,Connolly & Callaghan Limited,910.00, 15-Aug-2019
835,Revenue,CAHD,Bed and Breakfast,Bed & Breakfast,Connolly & Callaghan Limited,581.00, 15-Aug-2019
836,Revenue,CAHD,Bed and Breakfast,Bed & Breakfast,Connolly & Callaghan Limited,714.00, 15-Aug-2019
837,Revenue,CAHD,Bed and Breakfast,Bed & Breakfast,Connolly & Callaghan Limited,539.00, 15-Aug-2019
838,Revenue,CAHD,Bed and Breakfast,Bed & Breakfast,Connolly & Callaghan Limited,455.00, 15-Aug-2019
839,Revenue,CAHD,Bed and Breakfast,Bed & Breakfast,Connolly & Callaghan Limited,539.00, 15-Aug-2019
840,Revenue,CAHD,Bed and Breakfast,Bed & Breakfast,Connolly & Callaghan Limited,497.00, 15-Aug-2019
841,Revenue,CAHD,Bed and Breakfast,Bed & Breakfast,Connolly & Callaghan Limited,574.00, 16-Aug-2019
842,Revenue,CAHD,Bed and Breakfast,Bed & Breakfast,Connolly & Callaghan Limited,539.00, 15-Aug-2019
843,Revenue,CAHD,Bed and Breakfast,Bed & Breakfast,Connolly & Callaghan Limited,539.00, 15-Aug-2019
844,Revenue,CAHD,Bed and Breakfast,Bed & Breakfast,Connolly & Callaghan Limited,490.00, 15-Aug-2019
845,Revenue,CAHD,Bed and Breakfast,Bed & Breakfast,Connolly & Callaghan Limited,497.00, 15-Aug-2019
846,Revenue,CAHD,Bed and Breakfast,Bed & Breakfast,Connolly & Callaghan Limited,455.00, 28-Aug-2019
847,Revenue,CAHD,Bed and Breakfast,Bed & Breakfast,Connolly & Callaghan Limited,497.00, 28-Aug-2019
848,Revenue,CAHD,Bed and Breakfast,Bed & Breakfast,Connolly & Callaghan Limited,910.00, 28-Aug-2019
849,Revenue,CAHD,Bed and Breakfast,Bed & Breakfast,Connolly & Callaghan Limited,581.00, 30-Aug-2019
850,Revenue,CAHD,Bed and Breakfast,Bed & Breakfast,Connolly & Callaghan Limited,714.00, 29-Aug-2019
851,Revenue,CAHD,Bed and Breakfast,Bed & Breakfast,Connolly & Callaghan Limited,539.00, 30-Aug-2019
852,Revenue,CAHD,Bed and Breakfast,Bed & Breakfast,Connolly & Callaghan Limited,497.00, 29-Aug-2019
853,Revenue,CAHD,Bed and Breakfast,Bed & Breakfast,Connolly & Callaghan Limited,448.00, 29-Aug-2019
854,Revenue,CAHD,Bed and Breakfast,Bed & Breakfast,Connolly & Callaghan Limited,574.00, 29-Aug-2019
855,Revenue,CAHD,Bed and Breakfast,Bed & Breakfast,Connolly & Callaghan Limited,539.00, 29-Aug-2019
856,Revenue,CAHD,Bed and Breakfast,Bed & Breakfast,Connolly & Callaghan Limited,539.00, 30-Aug-2019
857,Revenue,CAHD,Bed and Breakfast,Bed & Breakfast,Connolly & Callaghan Limited,490.00, 29-Aug-2019
858,Revenue,CAHD,CSC - Residential Placements,Permanent Residential,Cotswold Chine School,65149.50, 08-Aug-2019
859,Revenue,CAHD,Alexandra Way,Cleaning & Domestic Services,Countrywide Healthcare Supplies Ltd,697.90, 09-Aug-2019
860,Revenue,CAHD,Alexandra Way,Cleaning & Domestic Services,Countrywide Healthcare Supplies Ltd,674.19, 16-Aug-2019
861,Revenue,CAHD,NHS Health Checks,Other Small Contracts,Courtside Surgery,1104.00, 13-Aug-2019
862,Revenue,CAHD,Sexual Health,Other Small Contracts,Courtside Surgery,3592.04, 23-Aug-2019
863,Revenue,CAHD,Drug and Alcohol Programme,Other Small Contracts,Courtside Surgery,1624.00, 09-Aug-2019
864,Revenue,CAHD,North - bed purchasing and direct  payments,Permanent Residential,Cream Iii Ltd,8644.00, 27-Aug-2019
865,Revenue,CAHD,S28A cases,Permanent Residential,Creedy Court,10597.96, 27-Aug-2019
866,Revenue,CAHD,S28A cases,Permanent Residential,Creedy Court,8904.92, 27-Aug-2019
867,Revenue,CAHD,North - bed purchasing and direct  payments,Permanent Residential,Creedy Court,14054.00, 27-Aug-2019
868,Revenue,CAHD,South - Bed Purchasing and Direct payments,Permanent Residential,Daneswood,12268.80, 27-Aug-2019
869,Revenue,CAHD,South - community based support,Day Care / Social Activities,Daneswood,1413.28, 27-Aug-2019
870,Revenue,CAHD,North - bed purchasing and direct  payments,Permanent Residential,Daneswood,10264.00, 27-Aug-2019
871,Revenue,CAHD,North - S117,Permanent Nursing,Danshell Healthcare Group,10872.28, 27-Aug-2019
872,Revenue,CAHD,Jointly Funded H&SC Packages,Permanent Nursing,Danshell Healthcare Group,1613.28, 27-Aug-2019
873,Revenue,CAHD,Learning Difficulties PSL,Other Supplies & Services,Individual,2400.00, 22-Aug-2019
874,Revenue,CAHD,Drug and Alcohol Programme,Other Small Contracts,Day Lewis - Horfield Branch,1500.00, 09-Aug-2019
875,Revenue,CAHD,CSC - Adoption Support Fund,Post Adoption,Individual,1040.00, 30-Aug-2019
876,Revenue,CAHD,South - community based support,Supported Living,Design House,2661.20, 27-Aug-2019
877,Revenue,CAHD,South - community based support,Supported Living,Design House,3063.00, 27-Aug-2019
878,Revenue,CAHD,South - community based support,Supported Living,Design House,3132.76, 27-Aug-2019
879,Revenue,CAHD,South - community based support,Supported Living,Design House,2993.28, 27-Aug-2019
880,Revenue,CAHD,South - community based support,Day Care / Social Activities,Design House,516.32, 27-Aug-2019
881,Revenue,CAHD,Central - Community based support,Day Care / Social Activities,Design House,2440.84, 27-Aug-2019
882,Revenue,CAHD,South - community based support,Day Care / Social Activities,Design House,921.28, 27-Aug-2019
883,Revenue,CAHD,South - community based support,Supported Living,Design House,2638.60, 27-Aug-2019
884,Revenue,CAHD,South - community based support,Supported Living,Design House,2638.60, 27-Aug-2019
885,Revenue,CAHD,South - community based support,Supported Living,Design House,2149.32, 27-Aug-2019
886,Revenue,CAHD,South - community based support,Supported Living,Design House,1896.52, 27-Aug-2019
887,Revenue,CAHD,South - community based support,Day Care / Social Activities,Design House,516.32, 27-Aug-2019
888,Revenue,CAHD,South - community based support,Supported Living,Design House,2516.60, 27-Aug-2019
889,Revenue,CAHD,South - community based support,Supported Living,Design House,4307.12, 27-Aug-2019
890,Revenue,CAHD,North - Community based support,Supported Living,Design House,3054.24, 27-Aug-2019
891,Revenue,CAHD,South - community based support,Day Care / Social Activities,Design House,1505.96, 27-Aug-2019
892,Revenue,CAHD,South - community based support,Supported Living,Design House,2924.68, 27-Aug-2019
893,Revenue,CAHD,South - community based support,Supported Living,Design House,2542.80, 27-Aug-2019
894,Revenue,CAHD,South - community based support,Supported Living,Design House,2257.48, 27-Aug-2019
895,Revenue,CAHD,South - community based support,Supported Living,Design House,2257.48, 27-Aug-2019
896,Revenue,CAHD,Central - Community based support,Other Small Contracts,Dhek Bhal,42.16, 02-Aug-2019
897,Revenue,CAHD,South - community based support,Other Small Contracts,Dhek Bhal,495.38, 02-Aug-2019
898,Revenue,CAHD,Central - Community based support,Other Small Contracts,Dhek Bhal,42.16, 07-Aug-2019
899,Revenue,CAHD,South - community based support,Other Small Contracts,Dhek Bhal,495.38, 07-Aug-2019
900,Revenue,CAHD,South - community based support,Supported Living,Dimensions  Suite 2,1903.12, 27-Aug-2019
901,Revenue,CAHD,South - community based support,Supported Living,Dimensions  Suite 2,1902.28, 27-Aug-2019
902,Revenue,CAHD,South - community based support,Supported Living,Dimensions  Suite 2,1902.28, 27-Aug-2019
903,Revenue,CAHD,South - community based support,Supported Living,Dimensions  Suite 2,1902.28, 27-Aug-2019
904,Revenue,CAHD,South - Bed Purchasing and Direct payments,Permanent Residential,Dimensions  Suite 2,5630.76, 27-Aug-2019
905,Revenue,CAHD,South - Bed Purchasing and Direct payments,Permanent Residential,Dimensions  Suite 2,2806.12, 27-Aug-2019
906,Revenue,CAHD,CSC - Vinney Green Secure Unit,Training Expenses,Diversiti UK Learning and Development C.I.C Ltd,865.00, 19-Aug-2019
907,Revenue,CAHD,Community Support - South,Preventative Assistance,Dobbins Industrial Cleaning Limited,860.00, 12-Aug-2019
908,Revenue,CAHD,Central - Community based support,Other Small Contracts,DoCare Limited,13618.14, 27-Aug-2019
909,Revenue,CAHD,South - community based support,Day Care / Social Activities,DoCare Limited,59.40, 27-Aug-2019
910,Revenue,CAHD,South - community based support,Other Small Contracts,DoCare Limited,413.40, 27-Aug-2019
911,Revenue,CAHD,North - Community based support,Other Small Contracts,DoCare Limited,5893.36, 27-Aug-2019
912,Revenue,CAHD,Central - Community based support,Other Small Contracts,DoCare Limited,13441.62, 22-Aug-2019
913,Revenue,CAHD,South - community based support,Day Care / Social Activities,DoCare Limited,27.00, 22-Aug-2019
914,Revenue,CAHD,South - community based support,Other Small Contracts,DoCare Limited,408.30, 22-Aug-2019
915,Revenue,CAHD,North - Community based support,Other Small Contracts,DoCare Limited,5814.18, 22-Aug-2019
916,Revenue,CAHD,Central - Community based support,Other Small Contracts,DoCare Limited,13223.07, 29-Aug-2019
917,Revenue,CAHD,South - community based support,Day Care / Social Activities,DoCare Limited,75.60, 29-Aug-2019
918,Revenue,CAHD,South - community based support,Other Small Contracts,DoCare Limited,435.15, 29-Aug-2019
919,Revenue,CAHD,North - Community based support,Other Small Contracts,DoCare Limited,5659.53, 29-Aug-2019
920,Revenue,CAHD,Central - Community based support,Other Small Contracts,DoCare Limited,13971.09, 13-Aug-2019
921,Revenue,CAHD,South - community based support,Day Care / Social Activities,DoCare Limited,75.60, 13-Aug-2019
922,Revenue,CAHD,South - community based support,Other Small Contracts,DoCare Limited,647.91, 13-Aug-2019
923,Revenue,CAHD,North - Community based support,Other Small Contracts,DoCare Limited,5663.67, 13-Aug-2019
924,Revenue,CAHD,Pathway 1 - Re-Ablement Home Care,Other Small Contracts,DoCare Limited,4539.24, 27-Aug-2019
925,Revenue,CAHD,Pathway 1 - Re-Ablement Home Care,Other Small Contracts,DoCare Limited,507.78, 27-Aug-2019
926,Revenue,CAHD,Pathway 1 - Re-Ablement Home Care,Other Small Contracts,DoCare Limited,714.24, 27-Aug-2019
927,Revenue,CAHD,Pathway 1 - Re-Ablement Home Care,Other Small Contracts,DoCare Limited,982.08, 21-Aug-2019
928,Revenue,CAHD,Planning and Partnerships Team,Legal Fees,Douglas Leach,620.00, 01-Aug-2019
929,Revenue,CAHD,Planning and Partnerships Team,Legal Fees,Douglas Leach,1750.00, 01-Aug-2019
930,Revenue,CAHD,NHS Health Checks,Other Small Contracts,Downend Health Group,3933.00, 13-Aug-2019
931,Revenue,CAHD,Sexual Health,Other Small Contracts,Downend Health Group,3542.00, 16-Aug-2019
932,Revenue,CAHD,Drug and Alcohol Programme,Other Small Contracts,Downend Health Group,5785.50, 09-Aug-2019
933,Revenue,CAHD,Sexual Health,Other Small Contracts,Downend Health Group,1889.24, 16-Aug-2019
934,Revenue,CAHD,Statemented Support Academies,Other Public Bodies,Downend School,978.71, 29-Aug-2019
935,Revenue,CAHD,Statemented Support Academies,Other Public Bodies,Downend School,1025.88, 29-Aug-2019
936,Revenue,CAHD,Statemented Support Academies,Other Public Bodies,Downend School,1014.08, 29-Aug-2019
937,Revenue,CAHD,Statemented Support Academies,Other Public Bodies,Downend School,801.83, 29-Aug-2019
938,Revenue,CAHD,Statemented Support Academies,Other Public Bodies,Downend School,530.63, 29-Aug-2019
939,Revenue,CAHD,Statemented Support Academies,Other Public Bodies,Downend School,1108.42, 29-Aug-2019
940,Revenue,CAHD,Statemented Support Academies,Other Public Bodies,Downend School,554.21, 29-Aug-2019
941,Revenue,CAHD,Statemented Support Academies,Other Public Bodies,Downend School,1709.79, 29-Aug-2019
942,Revenue,CAHD,Social Lettings Agency,Other Supplies & Services,Individual,605.64, 23-Aug-2019
943,Revenue,CAHD,NHS Health Checks,Other Small Contracts,Dr W J Foubister & Partners,4508.00, 13-Aug-2019
944,Revenue,CAHD,Drug and Alcohol Programme,Other Small Contracts,Dr W J Foubister & Partners,1827.00, 09-Aug-2019
945,Revenue,CAHD,Sexual Health,Other Small Contracts,Dr W J Foubister & Partners,516.20, 16-Aug-2019
946,Revenue,CAHD,Central - Bed Purchasing and Direct Payments,Permanent Nursing,Drakes Court,780.50, 27-Aug-2019
947,Revenue,CAHD,South Glos Users in South Glos Homes,Permanent Nursing,Drakes Court,993.36, 27-Aug-2019
948,Revenue,CAHD,South Glos Users in South Glos Homes,Permanent Nursing,Drakes Court,1111.62, 27-Aug-2019
949,Revenue,CAHD,Central - Bed Purchasing and Direct Payments,Permanent Nursing,Drakes Court,2363.88, 27-Aug-2019
950,Revenue,CAHD,South Glos Users in South Glos Homes,Permanent Nursing,Drakes Court,993.36, 27-Aug-2019
951,Revenue,CAHD,South Glos Users in South Glos Homes,Permanent Nursing,Drakes Court,780.50, 27-Aug-2019
952,Revenue,CAHD,South Glos Users in South Glos Homes,Permanent Nursing,Drakes Court,827.80, 27-Aug-2019
953,Revenue,CAHD,South - Bed Purchasing and Direct payments,Permanent Nursing,Drakes Court,946.06, 27-Aug-2019
954,Revenue,CAHD,South Glos Users in South Glos Homes,Permanent Nursing,Drakes Court,780.50, 27-Aug-2019
955,Revenue,CAHD,Bed and Breakfast,Bed & Breakfast,Individual,418.25, 19-Aug-2019
956,Revenue,CAHD,Bed and Breakfast,Bed & Breakfast,Individual,445.05, 02-Aug-2019
957,Revenue,CAHD,Bed and Breakfast,Bed & Breakfast,Individual,418.25, 01-Aug-2019
958,Revenue,CAHD,Bed and Breakfast,Bed & Breakfast,Individual,418.25, 05-Aug-2019
959,Revenue,CAHD,Bed and Breakfast,Bed & Breakfast,Individual,418.25, 06-Aug-2019
960,Revenue,CAHD,Bed and Breakfast,Bed & Breakfast,Individual,418.25, 19-Aug-2019
961,Revenue,CAHD,Bed and Breakfast,Bed & Breakfast,Individual,418.25, 19-Aug-2019
962,Revenue,CAHD,Bed and Breakfast,Bed & Breakfast,Individual,418.25, 19-Aug-2019
963,Revenue,CAHD,North - bed purchasing and direct  payments,Permanent Residential,East Court,2763.56, 27-Aug-2019
964,Revenue,CAHD,Training - Adult Services,Training Expenses,Edge Training & Consultancy Limited,925.00, 16-Aug-2019
965,Revenue,CAHD,South - Bed Purchasing and Direct payments,Permanent Residential,Edgecumbe Lodge,2662.40, 27-Aug-2019
966,Revenue,CAHD,South - Bed Purchasing and Direct payments,Permanent Residential,Edgecumbe Lodge,2662.40, 27-Aug-2019
967,Revenue,CAHD,South - Bed Purchasing and Direct payments,Permanent Residential,Edgecumbe Lodge,2230.32, 27-Aug-2019
968,Revenue,CAHD,North - S117,Permanent Residential,Edgecumbe Lodge,2719.76, 27-Aug-2019
969,Revenue,CAHD,South - Bed Purchasing and Direct payments,Permanent Residential,Edgecumbe Lodge,2662.40, 27-Aug-2019
970,Revenue,CAHD,North - bed purchasing and direct  payments,Permanent Residential,Edgecumbe Lodge,2740.00, 27-Aug-2019
971,Revenue,CAHD,South - Bed Purchasing and Direct payments,Permanent Residential,Edgecumbe Lodge,2303.60, 27-Aug-2019
972,Revenue,CAHD,South - Bed Purchasing and Direct payments,Permanent Residential,Edgecumbe Lodge,2504.28, 27-Aug-2019
973,Revenue,CAHD,South - Bed Purchasing and Direct payments,Permanent Residential,Edgecumbe Lodge,2536.84, 27-Aug-2019
974,Revenue,CAHD,South - Bed Purchasing and Direct payments,Permanent Residential,Edgecumbe Lodge,2662.40, 27-Aug-2019
975,Revenue,CAHD,South - Bed Purchasing and Direct payments,Permanent Residential,Edgemont House Ltd,2826.24, 27-Aug-2019
976,Revenue,CAHD,South - Bed Purchasing and Direct payments,Permanent Residential,Edgemont House Ltd,2022.76, 27-Aug-2019
977,Revenue,CAHD,South Glos Users in South Glos Homes,Permanent Nursing,Edgemont View Nursing Home,662.24, 27-Aug-2019
978,Revenue,CAHD,South - Bed Purchasing and Direct payments,Permanent Nursing,Edgemont View Nursing Home,16128.00, 27-Aug-2019
979,Revenue,CAHD,South - Bed Purchasing and Direct payments,Permanent Nursing,Edgemont View Nursing Home,3584.00, 27-Aug-2019
980,Revenue,CAHD,South - Bed Purchasing and Direct payments,Fees & Charges Income - General,Edgemont View Nursing Home,2642.12, 27-Aug-2019
981,Revenue,CAHD,South Glos Users in South Glos Homes,Permanent Nursing,Edgemont View Nursing Home,662.24, 27-Aug-2019
982,Revenue,CAHD,South Glos Users in South Glos Homes,Permanent Nursing,Edgemont View Nursing Home,662.24, 27-Aug-2019
983,Revenue,CAHD,South - Bed Purchasing and Direct payments,Permanent Nursing,Edgemont View Nursing Home,2560.00, 27-Aug-2019
984,Revenue,CAHD,South Glos Users in South Glos Homes,Permanent Nursing,Edgemont View Nursing Home,662.24, 27-Aug-2019
985,Revenue,CAHD,South - Bed Purchasing and Direct payments,Permanent Nursing,Edgemont View Nursing Home,4129.44, 27-Aug-2019
986,Revenue,CAHD,South Glos Users in South Glos Homes,Permanent Nursing,Edgemont View Nursing Home,662.24, 27-Aug-2019
987,Revenue,CAHD,South Glos Users in South Glos Homes,Permanent Nursing,Edgemont View Nursing Home,662.24, 27-Aug-2019
988,Revenue,CAHD,South Glos Users in South Glos Homes,Permanent Nursing,Edgemont View Nursing Home,2483.40, 27-Aug-2019
989,Revenue,CAHD,South Glos Users in South Glos Homes,Permanent Nursing,Edgemont View Nursing Home,662.24, 27-Aug-2019
990,Revenue,CAHD,South Glos Users in South Glos Homes,Permanent Nursing,Edgemont View Nursing Home,662.24, 27-Aug-2019
991,Revenue,CAHD,South Glos Users in South Glos Homes,Permanent Nursing,Edgemont View Nursing Home,662.24, 27-Aug-2019
992,Revenue,CAHD,South - Bed Purchasing and Direct payments,Permanent Nursing,Edgemont View Nursing Home,3005.16, 27-Aug-2019
993,Revenue,CAHD,South Glos Users in South Glos Homes,Permanent Nursing,Edgemont View Nursing Home,662.24, 27-Aug-2019
994,Revenue,CAHD,South Glos Users in South Glos Homes,Permanent Nursing,Edgemont View Nursing Home,662.24, 27-Aug-2019
995,Revenue,CAHD,South Glos Users in South Glos Homes,Permanent Nursing,Edgemont View Nursing Home,662.24, 27-Aug-2019
996,Revenue,CAHD,South - Bed Purchasing and Direct payments,Respite Emergency - Residential,Edgemont View Nursing Home,3500.00, 27-Aug-2019
997,Revenue,CAHD,South - Bed Purchasing and Direct payments,Respite Emergency - Residential,Edgemont View Nursing Home,2125.00, 27-Aug-2019
998,Revenue,CAHD,South Glos Users in South Glos Homes,Permanent Nursing,Edgemont View Nursing Home,662.24, 27-Aug-2019
999,Revenue,CAHD,South - Bed Purchasing and Direct payments,Permanent Nursing,Edgemont View Nursing Home,3005.16, 27-Aug-2019
1000,Revenue,CAHD,South Glos Users in South Glos Homes,Permanent Nursing,Edgemont View Nursing Home,662.24, 27-Aug-2019
1001,Revenue,CAHD,South Glos Users in South Glos Homes,Permanent Nursing,Edgemont View Nursing Home,662.24, 27-Aug-2019
1002,Revenue,CAHD,South - Bed Purchasing and Direct payments,Permanent Nursing,Edgemont View Nursing Home,3584.00, 27-Aug-2019
1003,Revenue,CAHD,South Glos Users in South Glos Homes,Permanent Nursing,Edgemont View Nursing Home,662.24, 27-Aug-2019
1004,Revenue,CAHD,South - Bed Purchasing and Direct payments,Permanent Nursing,Edgemont View Nursing Home,3400.00, 27-Aug-2019
1005,Revenue,CAHD,South Glos Users in South Glos Homes,Permanent Nursing,Edgemont View Nursing Home,662.24, 27-Aug-2019
1006,Revenue,CAHD,CSC - Special Guardianship Orders,Special Payments,Individual,835.00, 30-Aug-2019
1007,Revenue,CAHD,Planning and Partnerships Procurement,Other Supplies & Services,Eldercare,3019.50, 30-Aug-2019
1008,Revenue,CAHD,Planning and Partnerships Procurement,Other Supplies & Services,Eldercare,2579.43, 30-Aug-2019
1009,Revenue,CAHD,Supporting People Programme,Grants to Voluntary Bodies,Elim Housing Association Limited,5372.63, 01-Aug-2019
1010,Revenue,CAHD,Supporting People Programme,Grants to Voluntary Bodies,Elim Housing Association Limited,5372.63, 30-Aug-2019
1011,Revenue,CAHD,South - community based support,Day Care / Social Activities,Elite Home Care Ltd,193.44, 27-Aug-2019
1012,Revenue,CAHD,South - community based support,Other Small Contracts,Elite Home Care Ltd,8841.15, 27-Aug-2019
1013,Revenue,CAHD,North - Community based support,Other Small Contracts,Elite Home Care Ltd,292.64, 27-Aug-2019
1014,Revenue,CAHD,South - community based support,Day Care / Social Activities,Elite Home Care Ltd,203.36, 27-Aug-2019
1015,Revenue,CAHD,South - community based support,Other Small Contracts,Elite Home Care Ltd,8189.28, 27-Aug-2019
1016,Revenue,CAHD,North - Community based support,Other Small Contracts,Elite Home Care Ltd,277.76, 27-Aug-2019
1017,Revenue,CAHD,South - community based support,Day Care / Social Activities,Elite Home Care Ltd,203.36, 27-Aug-2019
1018,Revenue,CAHD,South - community based support,Other Small Contracts,Elite Home Care Ltd,8231.87, 27-Aug-2019
1019,Revenue,CAHD,North - Community based support,Other Small Contracts,Elite Home Care Ltd,277.76, 27-Aug-2019
1020,Revenue,CAHD,CSC - Legal Fees,Legal Fees,Individual,500.00, 30-Aug-2019
1021,Revenue,CAHD,CSC - Vinney Green Secure Unit,Training Expenses,Elysium Healthcare Ltd,1050.00, 15-Aug-2019
1022,Revenue,CAHD,NHS Health Checks,Other Small Contracts,Emersons Green Medical Centre,1265.00, 13-Aug-2019
1023,Revenue,CAHD,Drug and Alcohol Programme,Other Small Contracts,Emersons Green Medical Centre,1421.00, 09-Aug-2019
1024,Revenue,CAHD,Special ISB,Other Public Bodies,Enable Trust,1536.63, 23-Aug-2019
1025,Revenue,CAHD,Special ISB,Other Public Bodies,Enable Trust,889.61, 23-Aug-2019
1026,Revenue,CAHD,Special ISB,Other Public Bodies,Enable Trust,1536.63, 23-Aug-2019
1027,Revenue,CAHD,Special ISB,Other Public Bodies,Enable Trust,1172.69, 23-Aug-2019
1028,Revenue,CAHD,Special ISB,Other Public Bodies,Enable Trust,1172.69, 23-Aug-2019
1029,Revenue,CAHD,Special ISB,Other Public Bodies,Enable Trust,1172.69, 23-Aug-2019
1030,Revenue,CAHD,Special ISB,Other Public Bodies,Enable Trust,1536.63, 23-Aug-2019
1031,Revenue,CAHD,Special ISB,Other Public Bodies,Enable Trust,889.61, 23-Aug-2019
1032,Revenue,CAHD,Special ISB,Other Public Bodies,Enable Trust,1172.69, 23-Aug-2019
1033,Revenue,CAHD,Special ISB,Other Public Bodies,Enable Trust,1172.69, 23-Aug-2019
1034,Revenue,CAHD,Special ISB,Other Public Bodies,Enable Trust,1172.69, 23-Aug-2019
1035,Revenue,CAHD,Special ISB,Other Public Bodies,Enable Trust,646.93, 23-Aug-2019
1036,Revenue,CAHD,Special ISB,Other Public Bodies,Enable Trust,1536.63, 23-Aug-2019
1037,Revenue,CAHD,Special ISB,Other Public Bodies,Enable Trust,646.93, 23-Aug-2019
1038,Revenue,CAHD,Special ISB,Other Public Bodies,Enable Trust,889.61, 23-Aug-2019
1039,Revenue,CAHD,Special ISB,Other Public Bodies,Enable Trust,889.61, 23-Aug-2019
1040,Revenue,CAHD,Special ISB,Other Public Bodies,Enable Trust,1172.69, 23-Aug-2019
1041,Revenue,CAHD,Special ISB,Other Public Bodies,Enable Trust,1172.69, 23-Aug-2019
1042,Revenue,CAHD,Special ISB,Other Public Bodies,Enable Trust,1172.69, 23-Aug-2019
1043,Revenue,CAHD,Special ISB,Other Public Bodies,Enable Trust,889.61, 23-Aug-2019
1044,Revenue,CAHD,Special ISB,Other Public Bodies,Enable Trust,1172.69, 23-Aug-2019
1045,Revenue,CAHD,Special ISB,Other Public Bodies,Enable Trust,1536.63, 23-Aug-2019
1046,Revenue,CAHD,Special ISB,Other Public Bodies,Enable Trust,646.93, 23-Aug-2019
1047,Revenue,CAHD,Special ISB,Other Public Bodies,Enable Trust,889.61, 23-Aug-2019
1048,Revenue,CAHD,Special ISB,Other Public Bodies,Enable Trust,1536.63, 23-Aug-2019
1049,Revenue,CAHD,Special ISB,Other Public Bodies,Enable Trust,1172.69, 23-Aug-2019
1050,Revenue,CAHD,Special ISB,Other Public Bodies,Enable Trust,889.61, 23-Aug-2019
1051,Revenue,CAHD,Special ISB,Other Public Bodies,Enable Trust,1172.69, 23-Aug-2019
1052,Revenue,CAHD,Special ISB,Other Public Bodies,Enable Trust,889.61, 23-Aug-2019
1053,Revenue,CAHD,Special ISB,Other Public Bodies,Enable Trust,2183.55, 23-Aug-2019
1054,Revenue,CAHD,Special ISB,Other Public Bodies,Enable Trust,1172.69, 23-Aug-2019
1055,Revenue,CAHD,Special ISB,Other Public Bodies,Enable Trust,1172.69, 23-Aug-2019
1056,Revenue,CAHD,Special ISB,Other Public Bodies,Enable Trust,1172.69, 23-Aug-2019
1057,Revenue,CAHD,Special ISB,Other Public Bodies,Enable Trust,1172.69, 23-Aug-2019
1058,Revenue,CAHD,Special ISB,Other Public Bodies,Enable Trust,1172.69, 23-Aug-2019
1059,Revenue,CAHD,Special ISB,Other Public Bodies,Enable Trust,1536.63, 23-Aug-2019
1060,Revenue,CAHD,Special ISB,Other Public Bodies,Enable Trust,1172.69, 23-Aug-2019
1061,Revenue,CAHD,Special ISB,Other Public Bodies,Enable Trust,1536.63, 23-Aug-2019
1062,Revenue,CAHD,Special ISB,Other Public Bodies,Enable Trust,1172.69, 23-Aug-2019
1063,Revenue,CAHD,Special ISB,Other Public Bodies,Enable Trust,889.61, 23-Aug-2019
1064,Revenue,CAHD,Special ISB,Other Public Bodies,Enable Trust,1536.63, 23-Aug-2019
1065,Revenue,CAHD,Special ISB,Other Public Bodies,Enable Trust,1172.69, 23-Aug-2019
1066,Revenue,CAHD,Special ISB,Other Public Bodies,Enable Trust,1536.63, 23-Aug-2019
1067,Revenue,CAHD,Special ISB,Other Public Bodies,Enable Trust,1172.69, 23-Aug-2019
1068,Revenue,CAHD,Special ISB,Other Public Bodies,Enable Trust,889.61, 23-Aug-2019
1069,Revenue,CAHD,Special ISB,Other Public Bodies,Enable Trust,1172.69, 23-Aug-2019
1070,Revenue,CAHD,Special ISB,Other Public Bodies,Enable Trust,1172.69, 23-Aug-2019
1071,Revenue,CAHD,Special ISB,Other Public Bodies,Enable Trust,1172.69, 23-Aug-2019
1072,Revenue,CAHD,Special ISB,Other Public Bodies,Enable Trust,1536.63, 23-Aug-2019
1073,Revenue,CAHD,Special ISB,Other Public Bodies,Enable Trust,889.61, 23-Aug-2019
1074,Revenue,CAHD,Special ISB,Other Public Bodies,Enable Trust,1172.69, 23-Aug-2019
1075,Revenue,CAHD,Special ISB,Other Public Bodies,Enable Trust,1172.69, 23-Aug-2019
1076,Revenue,CAHD,Special ISB,Other Public Bodies,Enable Trust,1536.63, 23-Aug-2019
1077,Revenue,CAHD,Special ISB,Other Public Bodies,Enable Trust,889.61, 23-Aug-2019
1078,Revenue,CAHD,Special ISB,Other Public Bodies,Enable Trust,889.61, 23-Aug-2019
1079,Revenue,CAHD,Special ISB,Other Public Bodies,Enable Trust,889.61, 23-Aug-2019
1080,Revenue,CAHD,Special ISB,Other Public Bodies,Enable Trust,1536.63, 23-Aug-2019
1081,Revenue,CAHD,Special ISB,Other Public Bodies,Enable Trust,1536.63, 23-Aug-2019
1082,Revenue,CAHD,Special ISB,Other Public Bodies,Enable Trust,646.93, 23-Aug-2019
1083,Revenue,CAHD,Special ISB,Other Public Bodies,Enable Trust,1172.69, 23-Aug-2019
1084,Revenue,CAHD,Special ISB,Other Public Bodies,Enable Trust,1536.63, 23-Aug-2019
1085,Revenue,CAHD,Special ISB,Other Public Bodies,Enable Trust,4234.95, 29-Aug-2019
1086,Revenue,CAHD,Special ISB,Other Public Bodies,Enable Trust,1698.31, 23-Aug-2019
1087,Revenue,CAHD,Special ISB,Other Public Bodies,Enable Trust,889.61, 23-Aug-2019
1088,Revenue,CAHD,Special ISB,Other Public Bodies,Enable Trust,1172.69, 23-Aug-2019
1089,Revenue,CAHD,Special ISB,Other Public Bodies,Enable Trust,2183.55, 23-Aug-2019
1090,Revenue,CAHD,Special ISB,Other Public Bodies,Enable Trust,2183.55, 23-Aug-2019
1091,Revenue,CAHD,Special ISB,Other Public Bodies,Enable Trust,1504.21, 23-Aug-2019
1092,Revenue,CAHD,Special ISB,Other Public Bodies,Enable Trust,1504.21, 23-Aug-2019
1093,Revenue,CAHD,Special ISB,Other Public Bodies,Enable Trust,1698.31, 23-Aug-2019
1094,Revenue,CAHD,Special ISB,Other Public Bodies,Enable Trust,889.61, 23-Aug-2019
1095,Revenue,CAHD,Special ISB,Other Public Bodies,Enable Trust,889.61, 23-Aug-2019
1096,Revenue,CAHD,Special ISB,Other Public Bodies,Enable Trust,1172.69, 23-Aug-2019
1097,Revenue,CAHD,Special ISB,Other Public Bodies,Enable Trust,1172.69, 23-Aug-2019
1098,Revenue,CAHD,Special ISB,Other Public Bodies,Enable Trust,1172.69, 23-Aug-2019
1099,Revenue,CAHD,Special ISB,Other Public Bodies,Enable Trust,1172.69, 23-Aug-2019
1100,Revenue,CAHD,Special ISB,Other Public Bodies,Enable Trust,889.61, 23-Aug-2019
1101,Revenue,CAHD,Special ISB,Other Public Bodies,Enable Trust,1698.31, 23-Aug-2019
1102,Revenue,CAHD,Special ISB,Other Public Bodies,Enable Trust,889.61, 23-Aug-2019
1103,Revenue,CAHD,Special ISB,Other Public Bodies,Enable Trust,1698.31, 23-Aug-2019
1104,Revenue,CAHD,Special ISB,Other Public Bodies,Enable Trust,1172.69, 23-Aug-2019
1105,Revenue,CAHD,Special ISB,Other Public Bodies,Enable Trust,2183.55, 23-Aug-2019
1106,Revenue,CAHD,Special ISB,Other Public Bodies,Enable Trust,2507.01, 23-Aug-2019
1107,Revenue,CAHD,Special ISB,Other Public Bodies,Enable Trust,889.61, 23-Aug-2019
1108,Revenue,CAHD,Special ISB,Other Public Bodies,Enable Trust,889.61, 23-Aug-2019
1109,Revenue,CAHD,Special ISB,Other Public Bodies,Enable Trust,1698.31, 23-Aug-2019
1110,Revenue,CAHD,Special ISB,Other Public Bodies,Enable Trust,1504.21, 23-Aug-2019
1111,Revenue,CAHD,Special ISB,Other Public Bodies,Enable Trust,1172.69, 23-Aug-2019
1112,Revenue,CAHD,Special ISB,Other Public Bodies,Enable Trust,1172.69, 23-Aug-2019
1113,Revenue,CAHD,Special ISB,Other Public Bodies,Enable Trust,1172.69, 23-Aug-2019
1114,Revenue,CAHD,Special ISB,Other Public Bodies,Enable Trust,1698.31, 23-Aug-2019
1115,Revenue,CAHD,Special ISB,Other Public Bodies,Enable Trust,1698.31, 23-Aug-2019
1116,Revenue,CAHD,Special ISB,Other Public Bodies,Enable Trust,1172.69, 23-Aug-2019
1117,Revenue,CAHD,Special ISB,Other Public Bodies,Enable Trust,1172.69, 23-Aug-2019
1118,Revenue,CAHD,Special ISB,Other Public Bodies,Enable Trust,889.61, 23-Aug-2019
1119,Revenue,CAHD,Special ISB,Other Public Bodies,Enable Trust,1172.69, 23-Aug-2019
1120,Revenue,CAHD,Special ISB,Other Public Bodies,Enable Trust,1172.69, 23-Aug-2019
1121,Revenue,CAHD,Special ISB,Other Public Bodies,Enable Trust,1172.69, 23-Aug-2019
1122,Revenue,CAHD,Special ISB,Other Public Bodies,Enable Trust,1698.31, 23-Aug-2019
1123,Revenue,CAHD,Special ISB,Other Public Bodies,Enable Trust,1698.31, 23-Aug-2019
1124,Revenue,CAHD,Special ISB,Other Public Bodies,Enable Trust,889.61, 23-Aug-2019
1125,Revenue,CAHD,Special ISB,Other Public Bodies,Enable Trust,1172.69, 23-Aug-2019
1126,Revenue,CAHD,Special ISB,Other Public Bodies,Enable Trust,889.61, 23-Aug-2019
1127,Revenue,CAHD,Special ISB,Other Public Bodies,Enable Trust,1172.69, 23-Aug-2019
1128,Revenue,CAHD,Special ISB,Other Public Bodies,Enable Trust,1172.69, 23-Aug-2019
1129,Revenue,CAHD,Special ISB,Other Public Bodies,Enable Trust,1172.69, 23-Aug-2019
1130,Revenue,CAHD,Special ISB,Other Public Bodies,Enable Trust,1010.95, 23-Aug-2019
1131,Revenue,CAHD,Special ISB,Other Public Bodies,Enable Trust,1172.69, 23-Aug-2019
1132,Revenue,CAHD,Special ISB,Other Public Bodies,Enable Trust,889.61, 23-Aug-2019
1133,Revenue,CAHD,Special ISB,Other Public Bodies,Enable Trust,1172.69, 23-Aug-2019
1134,Revenue,CAHD,Special ISB,Other Public Bodies,Enable Trust,1172.69, 23-Aug-2019
1135,Revenue,CAHD,Special ISB,Other Public Bodies,Enable Trust,2183.55, 23-Aug-2019
1136,Revenue,CAHD,Special ISB,Other Public Bodies,Enable Trust,1504.21, 23-Aug-2019
1137,Revenue,CAHD,Special ISB,Other Public Bodies,Enable Trust,1698.31, 23-Aug-2019
1138,Revenue,CAHD,Special ISB,Other Public Bodies,Enable Trust,889.61, 23-Aug-2019
1139,Revenue,CAHD,Special ISB,Other Public Bodies,Enable Trust,1172.69, 23-Aug-2019
1140,Revenue,CAHD,Special ISB,Other Public Bodies,Enable Trust,889.61, 23-Aug-2019
1141,Revenue,CAHD,Special ISB,Other Public Bodies,Enable Trust,1172.69, 23-Aug-2019
1142,Revenue,CAHD,Special ISB,Other Public Bodies,Enable Trust,646.93, 23-Aug-2019
1143,Revenue,CAHD,Special ISB,Other Public Bodies,Enable Trust,1698.31, 23-Aug-2019
1144,Revenue,CAHD,Special ISB,Other Public Bodies,Enable Trust,1698.31, 23-Aug-2019
1145,Revenue,CAHD,Special ISB,Other Public Bodies,Enable Trust,1536.63, 23-Aug-2019
1146,Revenue,CAHD,Special ISB,Other Public Bodies,Enable Trust,889.61, 23-Aug-2019
1147,Revenue,CAHD,Special ISB,Other Public Bodies,Enable Trust,1172.69, 23-Aug-2019
1148,Revenue,CAHD,Special ISB,Other Public Bodies,Enable Trust,1172.69, 23-Aug-2019
1149,Revenue,CAHD,Special ISB,Other Public Bodies,Enable Trust,1172.69, 23-Aug-2019
1150,Revenue,CAHD,Special ISB,Other Public Bodies,Enable Trust,1172.69, 23-Aug-2019
1151,Revenue,CAHD,Special ISB,Other Public Bodies,Enable Trust,889.61, 23-Aug-2019
1152,Revenue,CAHD,Special ISB,Other Public Bodies,Enable Trust,889.61, 23-Aug-2019
1153,Revenue,CAHD,Special ISB,Other Public Bodies,Enable Trust,889.61, 23-Aug-2019
1154,Revenue,CAHD,Special ISB,Other Public Bodies,Enable Trust,1172.69, 23-Aug-2019
1155,Revenue,CAHD,Special ISB,Other Public Bodies,Enable Trust,889.61, 23-Aug-2019
1156,Revenue,CAHD,Special ISB,Other Public Bodies,Enable Trust,889.61, 23-Aug-2019
1157,Revenue,CAHD,Special ISB,Other Public Bodies,Enable Trust,889.61, 23-Aug-2019
1158,Revenue,CAHD,Special ISB,Other Public Bodies,Enable Trust,1172.69, 23-Aug-2019
1159,Revenue,CAHD,Special ISB,Other Public Bodies,Enable Trust,1698.31, 23-Aug-2019
1160,Revenue,CAHD,Special ISB,Other Public Bodies,Enable Trust,1698.31, 23-Aug-2019
1161,Revenue,CAHD,Special ISB,Other Public Bodies,Enable Trust,2183.55, 23-Aug-2019
1162,Revenue,CAHD,Special ISB,Other Public Bodies,Enable Trust,889.61, 23-Aug-2019
1163,Revenue,CAHD,Special ISB,Other Public Bodies,Enable Trust,1172.69, 23-Aug-2019
1164,Revenue,CAHD,Special ISB,Other Public Bodies,Enable Trust,2183.55, 23-Aug-2019
1165,Revenue,CAHD,Special ISB,Other Public Bodies,Enable Trust,1698.31, 23-Aug-2019
1166,Revenue,CAHD,Special ISB,Other Public Bodies,Enable Trust,889.61, 23-Aug-2019
1167,Revenue,CAHD,Special ISB,Other Public Bodies,Enable Trust,889.61, 23-Aug-2019
1168,Revenue,CAHD,Special ISB,Other Public Bodies,Enable Trust,1172.69, 23-Aug-2019
1169,Revenue,CAHD,Special ISB,Other Public Bodies,Enable Trust,1698.31, 23-Aug-2019
1170,Revenue,CAHD,Special ISB,Other Public Bodies,Enable Trust,1698.31, 23-Aug-2019
1171,Revenue,CAHD,Special ISB,Other Public Bodies,Enable Trust,846.99, 29-Aug-2019
1172,Revenue,CAHD,CSC - Corporate Parenting,Consultants Fees,Individual,3005.00, 23-Aug-2019
1173,Revenue,CAHD,Central - Community based support,Other Small Contracts,Epiphany In Care,1037.12, 07-Aug-2019
1174,Revenue,CAHD,Central - Community based support,Other Small Contracts,Epiphany In Care,1083.42, 27-Aug-2019
1175,Revenue,CAHD,Central - Community based support,Other Small Contracts,Epiphany In Care,6156.00, 05-Aug-2019
1176,Revenue,CAHD,Central - Community based support,Other Small Contracts,Epiphany In Care,4887.00, 12-Aug-2019
1177,Revenue,CAHD,North - Community based support,Other Small Contracts,Epiphany In Care,4146.50, 27-Aug-2019
1178,Revenue,CAHD,South - Bed Purchasing and Direct payments,Permanent Nursing,Epworth House,3072.00, 27-Aug-2019
1179,Revenue,CAHD,North - S117,Permanent Residential,Evolve House,3276.80, 27-Aug-2019
1180,Revenue,CAHD,South - Bed Purchasing and Direct payments,Permanent Residential,Evolve House,2681.76, 27-Aug-2019
1181,Revenue,CAHD,Placements OLA Special Schools and RB,Other L.A.'s - General,Excalibur Academies Trust T/A,1511.83, 27-Aug-2019
1182,Revenue,CAHD,Homeless - Private Sector Leasing,Prop.Serv. General Repairs,Express Property Services Limited,2899.45, 27-Aug-2019
1183,Revenue,CAHD,Homeless - Private Sector Leasing,Prop.Serv. General Repairs,Express Property Services Limited,1580.76, 27-Aug-2019
1184,Revenue,CAHD,Extra Care Housing,Private & Voluntary Home Care,Extra Care Charitable Trust,30382.22, 12-Aug-2019
1185,Revenue,CAHD,South - Bed Purchasing and Direct payments,Permanent Nursing,Fairview Court,3810.56, 27-Aug-2019
1186,Revenue,CAHD,South Glos Users in South Glos Homes,Permanent Nursing,Fairview Court,662.24, 27-Aug-2019
1187,Revenue,CAHD,South Glos Users in South Glos Homes,Permanent Nursing,Fairview Court,662.24, 27-Aug-2019
1188,Revenue,CAHD,South Glos Users in South Glos Homes,Permanent Nursing,Fairview Court,662.24, 27-Aug-2019
1189,Revenue,CAHD,South - Bed Purchasing and Direct payments,Permanent Nursing,Fairview Court,3810.56, 27-Aug-2019
1190,Revenue,CAHD,South Glos Users in South Glos Homes,Permanent Nursing,Fairview Court,662.24, 27-Aug-2019
1191,Revenue,CAHD,South Glos Users in South Glos Homes,Permanent Nursing,Fairview Court,662.24, 27-Aug-2019
1192,Revenue,CAHD,South Glos Users in South Glos Homes,Permanent Nursing,Fairview Court,662.24, 27-Aug-2019
1193,Revenue,CAHD,South Glos Users in South Glos Homes,Permanent Nursing,Fairview Court,662.24, 27-Aug-2019
1194,Revenue,CAHD,South Glos Users in South Glos Homes,Permanent Nursing,Fairview Court,662.24, 27-Aug-2019
1195,Revenue,CAHD,South - Bed Purchasing and Direct payments,Permanent Nursing,Fairview Court,3547.76, 27-Aug-2019
1196,Revenue,CAHD,South Glos Users in South Glos Homes,Permanent Nursing,Fairview Court,662.24, 27-Aug-2019
1197,Revenue,CAHD,South - Bed Purchasing and Direct payments,Permanent Nursing,Fairview Court,3810.56, 27-Aug-2019
1198,Revenue,CAHD,South Glos Users in South Glos Homes,Permanent Nursing,Fairview Court,662.24, 27-Aug-2019
1199,Revenue,CAHD,South - Bed Purchasing and Direct payments,Permanent Nursing,Fairview Court,3506.00, 27-Aug-2019
1200,Revenue,CAHD,South Glos Users in South Glos Homes,Permanent Nursing,Fairview Court,662.24, 27-Aug-2019
1201,Revenue,CAHD,South Glos Users in South Glos Homes,Permanent Nursing,Fairview Court,662.24, 27-Aug-2019
1202,Revenue,CAHD,South Glos Users in South Glos Homes,Permanent Nursing,Fairview Court,662.24, 27-Aug-2019
1203,Revenue,CAHD,South Glos Users in South Glos Homes,Permanent Nursing,Fairview Court,1490.04, 27-Aug-2019
1204,Revenue,CAHD,South Glos Users in South Glos Homes,Permanent Nursing,Fairview Court,662.24, 27-Aug-2019
1205,Revenue,CAHD,South - S117,Permanent Nursing,Fairview Court,4173.84, 27-Aug-2019
1206,Revenue,CAHD,South Glos Users in South Glos Homes,Permanent Nursing,Fairview Court,662.24, 27-Aug-2019
1207,Revenue,CAHD,South Glos Users in South Glos Homes,Permanent Nursing,Fairview Court,662.24, 27-Aug-2019
1208,Revenue,CAHD,South - Bed Purchasing and Direct payments,Permanent Nursing,Fairview Court,3382.48, 27-Aug-2019
1209,Revenue,CAHD,South Glos Users in South Glos Homes,Permanent Nursing,Fairview Court,662.24, 27-Aug-2019
1210,Revenue,CAHD,South Glos Users in South Glos Homes,Permanent Nursing,Fairview Court,662.24, 27-Aug-2019
1211,Revenue,CAHD,South Glos Users in South Glos Homes,Permanent Nursing,Fairview Court,662.24, 27-Aug-2019
1212,Revenue,CAHD,South Glos Users in South Glos Homes,Permanent Nursing,Fairview Court,662.24, 27-Aug-2019
1213,Revenue,CAHD,South Glos Users in South Glos Homes,Permanent Nursing,Fairview Court,662.24, 27-Aug-2019
1214,Revenue,CAHD,South Glos Users in South Glos Homes,Permanent Nursing,Fairview Court,2483.40, 27-Aug-2019
1215,Revenue,CAHD,South Glos Users in South Glos Homes,Permanent Nursing,Fairview Court,662.24, 27-Aug-2019
1216,Revenue,CAHD,South Glos Users in South Glos Homes,Permanent Nursing,Fairview Court,662.24, 27-Aug-2019
1217,Revenue,CAHD,South Glos Users in South Glos Homes,Permanent Nursing,Fairview Court,662.24, 27-Aug-2019
1218,Revenue,CAHD,South Glos Users in South Glos Homes,Permanent Nursing,Fairview Court,662.24, 27-Aug-2019
1219,Revenue,CAHD,South - Bed Purchasing and Direct payments,Permanent Nursing,Fairview Court,3810.56, 27-Aug-2019
1220,Revenue,CAHD,South Glos Users in South Glos Homes,Permanent Nursing,Fairview Court,662.24, 27-Aug-2019
1221,Revenue,CAHD,South Glos Users in South Glos Homes,Permanent Nursing,Fairview Court,662.24, 27-Aug-2019
1222,Revenue,CAHD,South Glos Users in South Glos Homes,Permanent Nursing,Fairview Court,662.24, 27-Aug-2019
1223,Revenue,CAHD,South Glos Users in South Glos Homes,Permanent Nursing,Fairview Court,662.24, 27-Aug-2019
1224,Revenue,CAHD,South Glos Users in South Glos Homes,Permanent Nursing,Fairview Court,662.24, 27-Aug-2019
1225,Revenue,CAHD,South Glos Users in South Glos Homes,Permanent Nursing,Fairview Court,662.24, 27-Aug-2019
1226,Revenue,CAHD,North - bed purchasing and direct  payments,Permanent Nursing,Fairview Court,3547.76, 27-Aug-2019
1227,Revenue,CAHD,South Glos Users in South Glos Homes,Permanent Nursing,Fairview Court,662.24, 27-Aug-2019
1228,Revenue,CAHD,South Glos Users in South Glos Homes,Permanent Nursing,Fairview Court,662.24, 27-Aug-2019
1229,Revenue,CAHD,South Glos Users in South Glos Homes,Permanent Nursing,Fairview Court,662.24, 27-Aug-2019
1230,Revenue,CAHD,South - Bed Purchasing and Direct payments,Permanent Residential,Fairview Court,4048.64, 27-Aug-2019
1231,Revenue,CAHD,South Glos Users in South Glos Homes,Permanent Nursing,Fairview Court,662.24, 27-Aug-2019
1232,Revenue,CAHD,South Glos Users in South Glos Homes,Permanent Nursing,Fairview Court,662.24, 27-Aug-2019
1233,Revenue,CAHD,South Glos Users in South Glos Homes,Permanent Nursing,Fairview Court,662.24, 27-Aug-2019
1234,Revenue,CAHD,North - bed purchasing and direct  payments,Permanent Residential,Fairview Court,3256.32, 27-Aug-2019
1235,Revenue,CAHD,South Glos Users in South Glos Homes,Permanent Nursing,Fairview Court,662.24, 27-Aug-2019
1236,Revenue,CAHD,South - Bed Purchasing and Direct payments,Permanent Nursing,Fairview Court,3483.68, 27-Aug-2019
1237,Revenue,CAHD,South Glos Users in South Glos Homes,Permanent Nursing,Fairview Court,662.24, 27-Aug-2019
1238,Revenue,CAHD,North - bed purchasing and direct  payments,Permanent Nursing,Fairview Court,3810.56, 27-Aug-2019
1239,Revenue,CAHD,South Glos Users in South Glos Homes,Permanent Nursing,Fairview Court,662.24, 27-Aug-2019
1240,Revenue,CAHD,South - Bed Purchasing and Direct payments,Permanent Nursing,Fairview Court,3130.36, 27-Aug-2019
1241,Revenue,CAHD,South Glos Users in South Glos Homes,Permanent Nursing,Fairview Court,662.24, 27-Aug-2019
1242,Revenue,CAHD,South - Bed Purchasing and Direct payments,Permanent Nursing,Fairview Court,3810.56, 27-Aug-2019
1243,Revenue,CAHD,South Glos Users in South Glos Homes,Permanent Nursing,Fairview Court,662.24, 27-Aug-2019
1244,Revenue,CAHD,South - Bed Purchasing and Direct payments,Permanent Nursing,Fairview Court,3547.76, 27-Aug-2019
1245,Revenue,CAHD,South Glos Users in South Glos Homes,Permanent Nursing,Fairview Court,662.24, 27-Aug-2019
1246,Revenue,CAHD,South Glos Users in South Glos Homes,Permanent Nursing,Fairview Court,662.24, 27-Aug-2019
1247,Revenue,CAHD,South Glos Users in South Glos Homes,Permanent Nursing,Fairview Court,662.24, 27-Aug-2019
1248,Revenue,CAHD,South - S117,Permanent Residential,Fairview House,2303.52, 27-Aug-2019
1249,Revenue,CAHD,South - Bed Purchasing and Direct payments,Permanent Residential,Fairview House,2303.52, 27-Aug-2019
1250,Revenue,CAHD,North - bed purchasing and direct  payments,Permanent Residential,Fairview House,2846.72, 27-Aug-2019
1251,Revenue,CAHD,South - Bed Purchasing and Direct payments,Permanent Residential,Fairview House,2303.52, 27-Aug-2019
1252,Revenue,CAHD,South - Bed Purchasing and Direct payments,Permanent Residential,Fairview House,2230.32, 27-Aug-2019
1253,Revenue,CAHD,South - Bed Purchasing and Direct payments,Permanent Residential,Fairview House,2230.40, 27-Aug-2019
1254,Revenue,CAHD,North - bed purchasing and direct  payments,Permanent Residential,Faith House,3297.28, 27-Aug-2019
1255,Revenue,CAHD,North - bed purchasing and direct  payments,Permanent Residential,Faith House,2805.76, 27-Aug-2019
1256,Revenue,CAHD,Central - Bed Purchasing and Direct Payments,Permanent Residential,Faith House,2928.64, 27-Aug-2019
1257,Revenue,CAHD,South - Bed Purchasing and Direct payments,Permanent Residential,Faith House,2805.76, 27-Aug-2019
1258,Revenue,CAHD,Central - Bed Purchasing and Direct Payments,Permanent Nursing,Festival House,3055.04, 27-Aug-2019
1259,Revenue,CAHD,North - bed purchasing and direct  payments,Permanent Nursing,Field House Care Home,3522.56, 27-Aug-2019
1260,Revenue,CAHD,South Glos Users in South Glos Homes,Permanent Nursing,Field House Care Home,662.24, 27-Aug-2019
1261,Revenue,CAHD,North - bed purchasing and direct  payments,Permanent Nursing,Field House Care Home,3522.56, 27-Aug-2019
1262,Revenue,CAHD,North - bed purchasing and direct  payments,Permanent Nursing,Field House Care Home,3403.60, 27-Aug-2019
1263,Revenue,CAHD,North - bed purchasing and direct  payments,Permanent Nursing,Field House Care Home,3589.48, 27-Aug-2019
1264,Revenue,CAHD,North - bed purchasing and direct  payments,Permanent Nursing,Field House Care Home,3422.52, 27-Aug-2019
1265,Revenue,CAHD,North - bed purchasing and direct  payments,Respite Planned - Nursing,Field House Care Home,4420.00, 27-Aug-2019
1266,Revenue,CAHD,North - bed purchasing and direct  payments,Permanent Nursing,Field House Care Home,642.86, 27-Aug-2019
1267,Revenue,CAHD,North - bed purchasing and direct  payments,Permanent Nursing,Field House Care Home,3422.52, 27-Aug-2019
1268,Revenue,CAHD,Central - Bed Purchasing and Direct Payments,Permanent Nursing,Field House Care Home,3600.00, 27-Aug-2019
1269,Revenue,CAHD,Central - Bed Purchasing and Direct Payments,Permanent Nursing,Field House Care Home,3740.00, 27-Aug-2019
1270,Revenue,CAHD,North - bed purchasing and direct  payments,Permanent Nursing,Field House Care Home,2216.32, 27-Aug-2019
1271,Revenue,CAHD,North - bed purchasing and direct  payments,Permanent Nursing,Field House Care Home,2216.32, 27-Aug-2019
1272,Revenue,CAHD,North - bed purchasing and direct  payments,Permanent Nursing,Field House Care Home,3506.00, 27-Aug-2019
1273,Revenue,CAHD,Central - Bed Purchasing and Direct Payments,Permanent Residential,Fieldview,3481.60, 27-Aug-2019
1274,Revenue,CAHD,North - bed purchasing and direct  payments,Permanent Residential,Fieldview,3756.44, 27-Aug-2019
1275,Revenue,CAHD,North - bed purchasing and direct  payments,Permanent Residential,Fieldview,3200.00, 27-Aug-2019
1276,Revenue,CAHD,North - bed purchasing and direct  payments,Permanent Residential,Fieldview,2285.71, 27-Aug-2019
1277,Revenue,CAHD,MH Purchasing - Younger,Permanent Nursing,Fieldview,5496.52, 27-Aug-2019
1278,Revenue,CAHD,South - Bed Purchasing and Direct payments,Permanent Residential,Fieldview,4800.00, 27-Aug-2019
1279,Revenue,CAHD,Statemented Support Payments to OLAs,Other L.A.'s - General,Filton Avenue Primary School,1132.00, 29-Aug-2019
1280,Revenue,CAHD,Statemented Support Payments to OLAs,Other L.A.'s - General,Filton Avenue Primary School,1332.46, 29-Aug-2019
1281,Revenue,CAHD,CSC - Agency Fostering,Foster Parent Allowances,Five Rivers Child Care Limited,819.00, 20-Aug-2019
1282,Revenue,CAHD,CSC - Agency Fostering,Foster Parent Allowances,Five Rivers Child Care Limited,1989.00, 20-Aug-2019
1283,Revenue,CAHD,CSC - Agency Fostering,Foster Parent Allowances,Five Rivers Child Care Limited,3510.00, 20-Aug-2019
1284,Revenue,CAHD,CSC - Agency Fostering,Foster Parent Allowances,Five Rivers Child Care Limited,3627.00, 20-Aug-2019
1285,Revenue,CAHD,CSC - Agency Fostering,Foster Parent Allowances,Five Rivers Child Care Limited,3510.00, 20-Aug-2019
1286,Revenue,CAHD,CSC - Agency Fostering,Foster Parent Allowances,Five Rivers Child Care Limited,3447.82, 20-Aug-2019
1287,Revenue,CAHD,CSC - Agency Fostering,Foster Parent Allowances,Five Rivers Child Care Limited,3447.82, 20-Aug-2019
1288,Revenue,CAHD,CSC - Agency Fostering,Foster Parent Allowances,Five Rivers Child Care Limited,4069.86, 23-Aug-2019
1289,Revenue,CAHD,CSC - Agency Fostering,Foster Parent Allowances,Five Rivers Child Care Limited,3627.00, 21-Aug-2019
1290,Revenue,CAHD,CSC - Agency Fostering,Foster Parent Allowances,Five Rivers Child Care Limited,4291.29, 20-Aug-2019
1291,Revenue,CAHD,CSC - Agency Fostering,Foster Parent Allowances,Five Rivers Child Care Limited,3518.19, 20-Aug-2019
1292,Revenue,CAHD,CSC - Agency Fostering,Foster Parent Allowances,Five Rivers Child Care Limited,4069.86, 23-Aug-2019
1293,Revenue,CAHD,CSC - Agency Fostering,Foster Parent Allowances,Five Rivers Child Care Limited,3671.29, 23-Aug-2019
1294,Revenue,CAHD,CSC - Agency Fostering,Foster Parent Allowances,Five Rivers Child Care Limited,3447.82, 30-Aug-2019
1295,Revenue,CAHD,CSC - Agency Fostering,Foster Parent Allowances,Five Rivers Child Care Limited,3447.82, 30-Aug-2019
1296,Revenue,CAHD,CSC - Agency Fostering,Foster Parent Allowances,Five Rivers Child Care Limited,4069.86, 30-Aug-2019
1297,Revenue,CAHD,CSC - Agency Fostering,Foster Parent Allowances,Five Rivers Child Care Limited,3627.00, 30-Aug-2019
1298,Revenue,CAHD,CSC - Agency Fostering,Foster Parent Allowances,Five Rivers Child Care Limited,4291.29, 30-Aug-2019
1299,Revenue,CAHD,CSC - Agency Fostering,Foster Parent Allowances,Five Rivers Child Care Limited,3518.19, 30-Aug-2019
1300,Revenue,CAHD,CSC - Agency Fostering,Foster Parent Allowances,Five Rivers Child Care Limited,4069.86, 30-Aug-2019
1301,Revenue,CAHD,CSC - Agency Fostering,Foster Parent Allowances,Five Rivers Child Care Limited,3671.29, 30-Aug-2019
1302,Revenue,CAHD,CSC - Agency Fostering,Foster Parent Allowances,Foster Care Associates Limited,4131.68, 12-Aug-2019
1303,Revenue,CAHD,CSC - Asylum Seekers - Unaccompanied,Foster Parent Allowances,Foster Care Associates Limited,3405.35, 14-Aug-2019
1304,Revenue,CAHD,Training Budget - Children`s Social Serv,Training Expenses,Fostering Network,600.00, 12-Aug-2019
1305,Revenue,CAHD,Central - Community based support,Other Small Contracts,Fourways Care Limited,318.00, 07-Aug-2019
1306,Revenue,CAHD,South - community based support,Other Small Contracts,Fourways Care Limited,1429.92, 07-Aug-2019
1307,Revenue,CAHD,North - Community based support,Other Small Contracts,Fourways Care Limited,10940.96, 07-Aug-2019
1308,Revenue,CAHD,Central - Community based support,Other Small Contracts,Fourways Care Limited,318.00, 22-Aug-2019
1309,Revenue,CAHD,South - community based support,Other Small Contracts,Fourways Care Limited,1424.32, 22-Aug-2019
1310,Revenue,CAHD,North - Community based support,Other Small Contracts,Fourways Care Limited,10897.04, 22-Aug-2019
1311,Revenue,CAHD,Central - Community based support,Other Small Contracts,Fourways Care Limited,288.00, 22-Aug-2019
1312,Revenue,CAHD,South - community based support,Other Small Contracts,Fourways Care Limited,1435.92, 22-Aug-2019
1313,Revenue,CAHD,North - Community based support,Other Small Contracts,Fourways Care Limited,10794.56, 22-Aug-2019
1314,Revenue,CAHD,Central - Community based support,Other Small Contracts,Fourways Care Limited,318.00, 30-Aug-2019
1315,Revenue,CAHD,South - community based support,Other Small Contracts,Fourways Care Limited,1053.28, 30-Aug-2019
1316,Revenue,CAHD,North - Community based support,Other Small Contracts,Fourways Care Limited,10692.08, 30-Aug-2019
1317,Revenue,CAHD,Pathway 1 - Re-Ablement Home Care,Other Small Contracts,Fourways Care Limited,732.44, 05-Aug-2019
1318,Revenue,CAHD,Pathway 1 - Re-Ablement Home Care,Other Small Contracts,Fourways Care Limited,4533.52, 05-Aug-2019
1319,Revenue,CAHD,Supporting People Programme,Grants to Voluntary Bodies,Freeways Trust Limited,6250.18, 01-Aug-2019
1320,Revenue,CAHD,Supporting People Programme,Grants to Voluntary Bodies,Freeways Trust Limited,6250.18, 30-Aug-2019
1321,Revenue,CAHD,Freeways,Permanent Residential,Freeways Trust Limited,3843.16, 27-Aug-2019
1322,Revenue,CAHD,Freeways,Permanent Residential,Freeways Trust Limited,2473.28, 27-Aug-2019
1323,Revenue,CAHD,Freeways,Permanent Residential,Freeways Trust Limited,2473.28, 27-Aug-2019
1324,Revenue,CAHD,Freeways,Permanent Residential,Freeways Trust Limited,3596.56, 27-Aug-2019
1325,Revenue,CAHD,Freeways,Permanent Residential,Freeways Trust Limited,2473.28, 27-Aug-2019
1326,Revenue,CAHD,Freeways,Permanent Residential,Freeways Trust Limited,3634.92, 27-Aug-2019
1327,Revenue,CAHD,Freeways,Permanent Residential,Freeways Trust Limited,2735.12, 27-Aug-2019
1328,Revenue,CAHD,Freeways,Permanent Residential,Freeways Trust Limited,3813.56, 27-Aug-2019
1329,Revenue,CAHD,Freeways,Permanent Residential,Freeways Trust Limited,2318.08, 27-Aug-2019
1330,Revenue,CAHD,Freeways,Permanent Residential,Freeways Trust Limited,2920.08, 27-Aug-2019
1331,Revenue,CAHD,Freeways,Permanent Residential,Freeways Trust Limited,2887.48, 27-Aug-2019
1332,Revenue,CAHD,Freeways,Permanent Residential,Freeways Trust Limited,3264.36, 27-Aug-2019
1333,Revenue,CAHD,Freeways,Permanent Residential,Freeways Trust Limited,2473.28, 27-Aug-2019
1334,Revenue,CAHD,Freeways,Respite Planned - Residential,Freeways Trust Limited,1594.82, 27-Aug-2019
1335,Revenue,CAHD,Freeways,Respite Planned - Residential,Freeways Trust Limited,562.88, 27-Aug-2019
1336,Revenue,CAHD,Freeways,Respite Planned - Residential,Freeways Trust Limited,5253.52, 27-Aug-2019
1337,Revenue,CAHD,Freeways,Permanent Residential,Freeways Trust Limited,3843.16, 01-Aug-2019
1338,Revenue,CAHD,Freeways,Permanent Residential,Freeways Trust Limited,2473.28, 01-Aug-2019
1339,Revenue,CAHD,Freeways,Permanent Residential,Freeways Trust Limited,2473.28, 01-Aug-2019
1340,Revenue,CAHD,Freeways,Permanent Residential,Freeways Trust Limited,3596.56, 01-Aug-2019
1341,Revenue,CAHD,Freeways,Permanent Residential,Freeways Trust Limited,2473.28, 01-Aug-2019
1342,Revenue,CAHD,Freeways,Permanent Residential,Freeways Trust Limited,3634.72, 01-Aug-2019
1343,Revenue,CAHD,Freeways,Permanent Residential,Freeways Trust Limited,2735.12, 01-Aug-2019
1344,Revenue,CAHD,Freeways,Permanent Residential,Freeways Trust Limited,3813.56, 01-Aug-2019
1345,Revenue,CAHD,Freeways,Permanent Residential,Freeways Trust Limited,2318.08, 01-Aug-2019
1346,Revenue,CAHD,Freeways,Permanent Residential,Freeways Trust Limited,2920.08, 01-Aug-2019
1347,Revenue,CAHD,Freeways,Permanent Residential,Freeways Trust Limited,2887.48, 01-Aug-2019
1348,Revenue,CAHD,Freeways,Permanent Residential,Freeways Trust Limited,3264.36, 01-Aug-2019
1349,Revenue,CAHD,Freeways,Permanent Residential,Freeways Trust Limited,2473.28, 01-Aug-2019
1350,Revenue,CAHD,Freeways,Respite Planned - Residential,Freeways Trust Limited,1501.01, 01-Aug-2019
1351,Revenue,CAHD,Freeways,Respite Planned - Residential,Freeways Trust Limited,844.32, 01-Aug-2019
1352,Revenue,CAHD,Freeways,Respite Planned - Residential,Freeways Trust Limited,2626.76, 01-Aug-2019
1353,Revenue,CAHD,Freeways,Respite Planned - Residential,Freeways Trust Limited,1125.75, 01-Aug-2019
1354,Revenue,CAHD,Freeways,Respite Planned - Residential,Freeways Trust Limited,750.50, 01-Aug-2019
1355,Revenue,CAHD,Freeways,Respite Planned - Residential,Freeways Trust Limited,750.50, 01-Aug-2019
1356,Revenue,CAHD,North - Community based support,Supported Living,Freeways Trust Ltd,845.52, 27-Aug-2019
1357,Revenue,CAHD,S28A cases,Permanent Residential,Freeways Trust Ltd,3886.64, 27-Aug-2019
1358,Revenue,CAHD,North - bed purchasing and direct  payments,Permanent Residential,Freeways Trust Ltd,3763.40, 27-Aug-2019
1359,Revenue,CAHD,South - Bed Purchasing and Direct payments,Permanent Residential,Freeways Trust Ltd,3991.40, 27-Aug-2019
1360,Revenue,CAHD,North - bed purchasing and direct  payments,Permanent Residential,Freeways Trust Ltd,3013.84, 27-Aug-2019
1361,Revenue,CAHD,South - Bed Purchasing and Direct payments,Permanent Residential,Freeways Trust Ltd,3175.92, 27-Aug-2019
1362,Revenue,CAHD,North - bed purchasing and direct  payments,Permanent Residential,Freeways Trust Ltd,3328.60, 27-Aug-2019
1363,Revenue,CAHD,North - bed purchasing and direct  payments,Permanent Residential,Freeways Trust Ltd,3984.12, 27-Aug-2019
1364,Revenue,CAHD,18-25 Year Olds,Permanent Residential,Freeways Trust Ltd,3680.48, 27-Aug-2019
1365,Revenue,CAHD,Section 117 Placements MH Younger,Permanent Residential,Freeways Trust Ltd,3339.04, 27-Aug-2019
1366,Revenue,CAHD,Central - Community based support,Day Care / Social Activities,Frenchay Beckspool Building,1895.60, 27-Aug-2019
1367,Revenue,CAHD,South - community based support,Day Care / Social Activities,Frenchay Beckspool Building,902.40, 27-Aug-2019
1368,Revenue,CAHD,South - community based support,Day Care / Social Activities,Frenchay Beckspool Building,640.08, 27-Aug-2019
1369,Revenue,CAHD,North - bed purchasing and direct  payments,Permanent Nursing,Frenchay Park Nursing Home,3481.60, 27-Aug-2019
1370,Revenue,CAHD,North - bed purchasing and direct  payments,Permanent Nursing,Frenchay Park Nursing Home,3520.00, 27-Aug-2019
1371,Revenue,CAHD,North - bed purchasing and direct  payments,Permanent Nursing,Frenchay Park Nursing Home,3481.60, 27-Aug-2019
1372,Revenue,CAHD,Central - Bed Purchasing and Direct Payments,Permanent Nursing,Frenchay Park Nursing Home,3400.00, 27-Aug-2019
1373,Revenue,CAHD,NHS Health Checks,Other Small Contracts,Frome Valley Medical Centre,4623.00, 13-Aug-2019
1374,Revenue,CAHD,Sexual Health,Other Small Contracts,Frome Valley Medical Centre,2415.00, 16-Aug-2019
1375,Revenue,CAHD,Drug and Alcohol Programme,Other Small Contracts,Frome Valley Medical Centre,812.00, 09-Aug-2019
1376,Revenue,CAHD,Sexual Health,Other Small Contracts,Frome Valley Medical Centre,1620.80, 16-Aug-2019
1377,Revenue,CAHD,CSC - Through & Leaving Care Team,Agency Staff (Admin/Support Staff) Pay,Frontline Staffing Ltd,1731.23, 07-Aug-2019
1378,Revenue,CAHD,CSC - Social Work Team - NORTH,Agency Staff (Admin/Support Staff) Pay,Frontline Staffing Ltd,1731.23, 20-Aug-2019
1379,Revenue,CAHD,CSC - Social Work Team - CENTRAL,Agency Staff (Admin/Support Staff) Pay,Frontline Staffing Ltd,1871.60, 19-Aug-2019
1380,Revenue,CAHD,CSC - Through & Leaving Care Team,Agency Staff (Admin/Support Staff) Pay,Frontline Staffing Ltd,1731.23, 01-Aug-2019
1381,Revenue,CAHD,CSC - Social Work Team - NORTH,Agency Staff (Admin/Support Staff) Pay,Frontline Staffing Ltd,1871.60, 01-Aug-2019
1382,Revenue,CAHD,CSC - Social Work Team - NORTH,Agency Staff (Admin/Support Staff) Pay,Frontline Staffing Ltd,1871.60, 01-Aug-2019
1383,Revenue,CAHD,CSC - Social Work Team - NORTH,Agency Staff (Admin/Support Staff) Pay,Frontline Staffing Ltd,1731.23, 20-Aug-2019
1384,Revenue,CAHD,CSC - Social Work Team - CENTRAL,Agency Staff (Admin/Support Staff) Pay,Frontline Staffing Ltd,1497.28, 05-Aug-2019
1385,Revenue,CAHD,CSC - Social Work Team - CENTRAL,Agency Staff (Admin/Support Staff) Pay,Frontline Staffing Ltd,1871.60, 20-Aug-2019
1386,Revenue,CAHD,CSC - Through & Leaving Care Team,Agency Staff (Admin/Support Staff) Pay,Frontline Staffing Ltd,1778.02, 08-Aug-2019
1387,Revenue,CAHD,CSC - Social Work Team - NORTH,Agency Staff (Admin/Support Staff) Pay,Frontline Staffing Ltd,1871.60, 07-Aug-2019
1388,Revenue,CAHD,CSC - Social Work Team - SOUTH,Agency Staff (Admin/Support Staff) Pay,Frontline Staffing Ltd,1871.60, 20-Aug-2019
1389,Revenue,CAHD,CSC - Social Work Team - SOUTH,Agency Staff (Admin/Support Staff) Pay,Frontline Staffing Ltd,1871.60, 20-Aug-2019
1390,Revenue,CAHD,CSC - Social Work Team - CENTRAL,Agency Staff (Admin/Support Staff) Pay,Frontline Staffing Ltd,444.51, 08-Aug-2019
1391,Revenue,CAHD,CSC - Through & Leaving Care Team,Agency Staff (Admin/Support Staff) Pay,Frontline Staffing Ltd,1731.23, 21-Aug-2019
1392,Revenue,CAHD,CSC - Social Work Team - NORTH,Agency Staff (Admin/Support Staff) Pay,Frontline Staffing Ltd,1731.23, 20-Aug-2019
1393,Revenue,CAHD,CSC - Social Work Team - CENTRAL,Agency Staff (Admin/Support Staff) Pay,Frontline Staffing Ltd,1122.96, 13-Aug-2019
1394,Revenue,CAHD,CSC - Social Work Team - NORTH,Agency Staff (Admin/Support Staff) Pay,Frontline Staffing Ltd,1871.60, 13-Aug-2019
1395,Revenue,CAHD,CSC - Social Work Team - CENTRAL,Agency Staff (Admin/Support Staff) Pay,Frontline Staffing Ltd,1871.60, 14-Aug-2019
1396,Revenue,CAHD,CSC - Social Work Team - CENTRAL,Agency Staff (Admin/Support Staff) Pay,Frontline Staffing Ltd,1731.23, 20-Aug-2019
1397,Revenue,CAHD,CSC - Social Work Team - CENTRAL,Agency Staff (Admin/Support Staff) Pay,Frontline Staffing Ltd,1801.42, 19-Aug-2019
1398,Revenue,CAHD,CSC - Social Work Team - NORTH,Agency Staff (Admin/Support Staff) Pay,Frontline Staffing Ltd,1778.02, 19-Aug-2019
1399,Revenue,CAHD,CSC - Social Work Team - NORTH,Agency Staff (Admin/Support Staff) Pay,Frontline Staffing Ltd,1731.23, 23-Aug-2019
1400,Revenue,CAHD,CSC - Through & Leaving Care Team,Agency Staff (Admin/Support Staff) Pay,Frontline Staffing Ltd,1731.23, 23-Aug-2019
1401,Revenue,CAHD,CSC - Social Work Team - NORTH,Agency Staff (Admin/Support Staff) Pay,Frontline Staffing Ltd,1731.23, 23-Aug-2019
1402,Revenue,CAHD,CSC - Social Work Team - CENTRAL,Agency Staff (Admin/Support Staff) Pay,Frontline Staffing Ltd,1684.44, 27-Aug-2019
1403,Revenue,CAHD,CSC - Social Work Team - CENTRAL,Agency Staff (Admin/Support Staff) Pay,Frontline Staffing Ltd,1497.28, 27-Aug-2019
1404,Revenue,CAHD,CSC - Social Work Team - NORTH,Agency Staff (Admin/Support Staff) Pay,Frontline Staffing Ltd,1871.60, 28-Aug-2019
1405,Revenue,CAHD,CSC - Social Work Team - SOUTH,Agency Staff (Admin/Support Staff) Pay,Frontline Staffing Ltd,1871.60, 28-Aug-2019
1406,Revenue,CAHD,CSC - Social Work Team - CENTRAL,Agency Staff (Admin/Support Staff) Pay,Frontline Staffing Ltd,1052.78, 30-Aug-2019
1407,Revenue,CAHD,CSC - Social Work Team - SOUTH,Agency Staff (Admin/Support Staff) Pay,Frontline Staffing Ltd,1871.60, 30-Aug-2019
1408,Revenue,CAHD,CSC - Social Work Team - SOUTH,Agency Staff (Admin/Support Staff) Pay,Frontline Staffing Ltd,1871.60, 30-Aug-2019
1409,Revenue,CAHD,CSC - Through & Leaving Care Team,Agency Staff (Admin/Support Staff) Pay,Frontline Staffing Ltd,1731.23, 30-Aug-2019
1410,Revenue,CAHD,South - Bed Purchasing and Direct payments,Permanent Nursing,Fshc  1St Floor,2735.08, 27-Aug-2019
1411,Revenue,CAHD,South Glos Users in South Glos Homes,Permanent Nursing,Fshc  1St Floor,662.24, 27-Aug-2019
1412,Revenue,CAHD,South - Bed Purchasing and Direct payments,Permanent Nursing,Fshc  1St Floor,2398.00, 27-Aug-2019
1413,Revenue,CAHD,South - Bed Purchasing and Direct payments,Permanent Nursing,Fshc  1St Floor,2398.00, 27-Aug-2019
1414,Revenue,CAHD,South Glos Users in South Glos Homes,Permanent Nursing,Fshc  1St Floor,662.24, 27-Aug-2019
1415,Revenue,CAHD,South - Bed Purchasing and Direct payments,Permanent Nursing,Fshc  1St Floor,2398.00, 27-Aug-2019
1416,Revenue,CAHD,South Glos Users in South Glos Homes,Permanent Nursing,Fshc  1St Floor,662.24, 27-Aug-2019
1417,Revenue,CAHD,South - Bed Purchasing and Direct payments,Permanent Residential,Fshc  1St Floor,2462.56, 27-Aug-2019
1418,Revenue,CAHD,South - Bed Purchasing and Direct payments,Respite Planned - Residential,Fshc  1St Floor,1900.00, 27-Aug-2019
1419,Revenue,CAHD,South Glos Users in South Glos Homes,Permanent Nursing,Fshc  1St Floor,662.24, 27-Aug-2019
1420,Revenue,CAHD,North - bed purchasing and direct  payments,Permanent Nursing,Fshc  1St Floor,2891.76, 27-Aug-2019
1421,Revenue,CAHD,South Glos Users in South Glos Homes,Permanent Nursing,Fshc  1St Floor,662.24, 27-Aug-2019
1422,Revenue,CAHD,South - Bed Purchasing and Direct payments,Permanent Nursing,Fshc  1St Floor,2662.40, 27-Aug-2019
1423,Revenue,CAHD,South Glos Users in South Glos Homes,Permanent Nursing,Fshc  1St Floor,662.24, 27-Aug-2019
1424,Revenue,CAHD,South Glos Users in South Glos Homes,Permanent Nursing,Fshc  1St Floor,662.24, 27-Aug-2019
1425,Revenue,CAHD,South Glos Users in South Glos Homes,Permanent Nursing,Fshc  1St Floor,662.24, 27-Aug-2019
1426,Revenue,CAHD,South Glos Users in South Glos Homes,Permanent Nursing,Fshc  1St Floor,662.24, 27-Aug-2019
1427,Revenue,CAHD,South - Bed Purchasing and Direct payments,Permanent Nursing,Fshc  1St Floor,2891.76, 27-Aug-2019
1428,Revenue,CAHD,South - Bed Purchasing and Direct payments,Permanent Nursing,Fshc  1St Floor,2621.44, 27-Aug-2019
1429,Revenue,CAHD,South Glos Users in South Glos Homes,Permanent Nursing,Fshc  1St Floor,662.24, 27-Aug-2019
1430,Revenue,CAHD,South Glos Users in South Glos Homes,Permanent Nursing,Fshc  1St Floor,662.24, 27-Aug-2019
1431,Revenue,CAHD,South - Bed Purchasing and Direct payments,Permanent Residential,Fshc  1St Floor,3203.04, 27-Aug-2019
1432,Revenue,CAHD,South Glos Users in South Glos Homes,Permanent Nursing,Fshc  1St Floor,662.24, 27-Aug-2019
1433,Revenue,CAHD,South Glos Users in South Glos Homes,Permanent Nursing,Fshc  1St Floor,662.24, 27-Aug-2019
1434,Revenue,CAHD,South Glos Users in South Glos Homes,Permanent Nursing,Fshc  1St Floor,662.24, 27-Aug-2019
1435,Revenue,CAHD,South - Bed Purchasing and Direct payments,Respite Planned - Residential,Fshc  1St Floor,678.57, 27-Aug-2019
1436,Revenue,CAHD,South - Bed Purchasing and Direct payments,Permanent Nursing,Fshc  1St Floor,2867.20, 27-Aug-2019
1437,Revenue,CAHD,South - Bed Purchasing and Direct payments,Permanent Nursing,Fshc  1St Floor,2398.00, 27-Aug-2019
1438,Revenue,CAHD,South Glos Users in South Glos Homes,Permanent Nursing,Fshc  1St Floor,662.24, 27-Aug-2019
1439,Revenue,CAHD,South - Bed Purchasing and Direct payments,Permanent Nursing,Fshc  1St Floor,2462.56, 27-Aug-2019
1440,Revenue,CAHD,South Glos Users in South Glos Homes,Permanent Nursing,Fshc  1St Floor,662.24, 27-Aug-2019
1441,Revenue,CAHD,South - Bed Purchasing and Direct payments,Permanent Nursing,Fshc  1St Floor,2398.00, 27-Aug-2019
1442,Revenue,CAHD,South Glos Users in South Glos Homes,Permanent Nursing,Fshc  1St Floor,662.24, 27-Aug-2019
1443,Revenue,CAHD,South - Bed Purchasing and Direct payments,Permanent Nursing,Fshc  1St Floor,2398.00, 27-Aug-2019
1444,Revenue,CAHD,South Glos Users in South Glos Homes,Permanent Nursing,Fshc  1St Floor,662.24, 27-Aug-2019
1445,Revenue,CAHD,South - Bed Purchasing and Direct payments,Respite Planned - Residential,Fshc  1St Floor,3800.00, 27-Aug-2019
1446,Revenue,CAHD,South - Bed Purchasing and Direct payments,Respite Planned - Residential,Fshc  1St Floor,3800.00, 27-Aug-2019
1447,Revenue,CAHD,South - Bed Purchasing and Direct payments,Permanent Nursing,Fshc  1St Floor,2398.00, 27-Aug-2019
1448,Revenue,CAHD,South Glos Users in South Glos Homes,Permanent Nursing,Fshc  1St Floor,662.24, 27-Aug-2019
1449,Revenue,CAHD,South Glos Users in South Glos Homes,Permanent Nursing,Fshc  1St Floor,662.24, 27-Aug-2019
1450,Revenue,CAHD,South Glos Users in South Glos Homes,Permanent Nursing,Fshc  1St Floor,662.24, 27-Aug-2019
1451,Revenue,CAHD,South - Bed Purchasing and Direct payments,Permanent Nursing,Fshc  1St Floor,3172.12, 27-Aug-2019
1452,Revenue,CAHD,South Glos Users in South Glos Homes,Permanent Nursing,Fshc  1St Floor,662.24, 27-Aug-2019
1453,Revenue,CAHD,South - Bed Purchasing and Direct payments,Permanent Nursing,Fshc  1St Floor,2933.00, 27-Aug-2019
1454,Revenue,CAHD,North - bed purchasing and direct  payments,Permanent Residential,Fshc  1St Floor,2891.76, 27-Aug-2019
1455,Revenue,CAHD,South Glos Users in South Glos Homes,Permanent Nursing,Fshc  1St Floor,662.24, 27-Aug-2019
1456,Revenue,CAHD,Central - Bed Purchasing and Direct Payments,Permanent Nursing,Fshc  1St Floor,2398.00, 27-Aug-2019
1457,Revenue,CAHD,South Glos Users in South Glos Homes,Permanent Nursing,Fshc  1St Floor,1466.39, 27-Aug-2019
1458,Revenue,CAHD,South Glos Users in South Glos Homes,Permanent Nursing,Fshc  1St Floor,662.24, 27-Aug-2019
1459,Revenue,CAHD,Central - Bed Purchasing and Direct Payments,Permanent Nursing,Fshc  1St Floor,856.43, 27-Aug-2019
1460,Revenue,CAHD,Central - Bed Purchasing and Direct Payments,Permanent Nursing,Fshc  1St Floor,2398.00, 27-Aug-2019
1461,Revenue,CAHD,South Glos Users in South Glos Homes,Permanent Nursing,Fshc  1St Floor,662.24, 27-Aug-2019
1462,Revenue,CAHD,Central - Bed Purchasing and Direct Payments,Permanent Nursing,Fshc  1St Floor,2398.00, 27-Aug-2019
1463,Revenue,CAHD,South Glos Users in South Glos Homes,Permanent Nursing,Fshc  1St Floor,662.24, 27-Aug-2019
1464,Revenue,CAHD,South Glos Users in South Glos Homes,Permanent Nursing,Fshc  1St Floor,662.24, 27-Aug-2019
1465,Revenue,CAHD,Central - Bed Purchasing and Direct Payments,Permanent Residential,Fshc  1St Floor,2764.80, 27-Aug-2019
1466,Revenue,CAHD,Central - Bed Purchasing and Direct Payments,Permanent Residential,Fshc  1St Floor,2764.80, 27-Aug-2019
1467,Revenue,CAHD,Central - Bed Purchasing and Direct Payments,Permanent Residential,Fshc  1St Floor,2230.32, 27-Aug-2019
1468,Revenue,CAHD,South Glos Users in South Glos Homes,Permanent Nursing,Fshc  1St Floor,662.24, 27-Aug-2019
1469,Revenue,CAHD,South Glos Users in South Glos Homes,Permanent Nursing,Fshc  1St Floor,662.24, 27-Aug-2019
1470,Revenue,CAHD,Central - Bed Purchasing and Direct Payments,Permanent Residential,Fshc  1St Floor,2768.00, 27-Aug-2019
1471,Revenue,CAHD,South - Bed Purchasing and Direct payments,Permanent Residential,Fshc  1St Floor,2817.36, 27-Aug-2019
1472,Revenue,CAHD,North - bed purchasing and direct  payments,Permanent Nursing,Fshc  1St Floor,2471.60, 27-Aug-2019
1473,Revenue,CAHD,North - bed purchasing and direct  payments,Permanent Nursing,Fshc  1St Floor,2398.00, 27-Aug-2019
1474,Revenue,CAHD,South Glos Users in South Glos Homes,Permanent Nursing,Fshc  1St Floor,662.24, 27-Aug-2019
1475,Revenue,CAHD,Central - Bed Purchasing and Direct Payments,Permanent Nursing,Fshc  1St Floor,2398.00, 27-Aug-2019
1476,Revenue,CAHD,South Glos Users in South Glos Homes,Permanent Nursing,Fshc  1St Floor,662.24, 27-Aug-2019
1477,Revenue,CAHD,Central - Bed Purchasing and Direct Payments,Permanent Nursing,Fshc  1St Floor,2398.00, 27-Aug-2019
1478,Revenue,CAHD,South Glos Users in South Glos Homes,Permanent Nursing,Fshc  1St Floor,662.24, 27-Aug-2019
1479,Revenue,CAHD,North - bed purchasing and direct  payments,Permanent Nursing,Fshc  1St Floor,5224.21, 27-Aug-2019
1480,Revenue,CAHD,North - bed purchasing and direct  payments,Permanent Nursing,Fshc  1St Floor,2398.00, 27-Aug-2019
1481,Revenue,CAHD,South Glos Users in South Glos Homes,Permanent Nursing,Fshc  1St Floor,662.24, 27-Aug-2019
1482,Revenue,CAHD,North - bed purchasing and direct  payments,Permanent Nursing,Fshc  1St Floor,2398.00, 27-Aug-2019
1483,Revenue,CAHD,South Glos Users in South Glos Homes,Permanent Nursing,Fshc  1St Floor,662.24, 27-Aug-2019
1484,Revenue,CAHD,Central - Bed Purchasing and Direct Payments,Permanent Residential,Fshc  1St Floor,2760.00, 27-Aug-2019
1485,Revenue,CAHD,South Glos Users in South Glos Homes,Permanent Nursing,Fshc  1St Floor,662.24, 27-Aug-2019
1486,Revenue,CAHD,North - bed purchasing and direct  payments,Permanent Nursing,Fshc  1St Floor,2398.00, 27-Aug-2019
1487,Revenue,CAHD,South Glos Users in South Glos Homes,Permanent Nursing,Fshc  1St Floor,662.24, 27-Aug-2019
1488,Revenue,CAHD,North - bed purchasing and direct  payments,Permanent Nursing,Fshc  1St Floor,1113.36, 27-Aug-2019
1489,Revenue,CAHD,North - bed purchasing and direct  payments,Permanent Nursing,Fshc  1St Floor,2398.00, 27-Aug-2019
1490,Revenue,CAHD,South Glos Users in South Glos Homes,Permanent Nursing,Fshc  1St Floor,662.24, 27-Aug-2019
1491,Revenue,CAHD,South Glos Users in South Glos Homes,Permanent Nursing,Fshc  1St Floor,662.24, 27-Aug-2019
1492,Revenue,CAHD,South Glos Users in South Glos Homes,Permanent Nursing,Fshc  1St Floor,662.24, 27-Aug-2019
1493,Revenue,CAHD,North - bed purchasing and direct  payments,Permanent Nursing,Fshc  1St Floor,2439.16, 27-Aug-2019
1494,Revenue,CAHD,South Glos Users in South Glos Homes,Permanent Nursing,Fshc  1St Floor,662.24, 27-Aug-2019
1495,Revenue,CAHD,South Glos Users in South Glos Homes,Permanent Nursing,Fshc  1St Floor,662.24, 27-Aug-2019
1496,Revenue,CAHD,Central - Bed Purchasing and Direct Payments,Permanent Nursing,Fshc  1St Floor,2366.64, 27-Aug-2019
1497,Revenue,CAHD,South Glos Users in South Glos Homes,Permanent Nursing,Fshc  1St Floor,662.24, 27-Aug-2019
1498,Revenue,CAHD,North - bed purchasing and direct  payments,Permanent Residential,Fshc  1St Floor,2439.16, 27-Aug-2019
1499,Revenue,CAHD,South Glos Users in South Glos Homes,Permanent Nursing,Fshc  1St Floor,662.24, 27-Aug-2019
1500,Revenue,CAHD,South Glos Users in South Glos Homes,Permanent Nursing,Fshc  1St Floor,662.24, 27-Aug-2019
1501,Revenue,CAHD,Central - Bed Purchasing and Direct Payments,Permanent Residential,Fshc  1St Floor,2768.00, 27-Aug-2019
1502,Revenue,CAHD,Central - Bed Purchasing and Direct Payments,Permanent Nursing,Fshc  1St Floor,2382.00, 27-Aug-2019
1503,Revenue,CAHD,South Glos Users in South Glos Homes,Permanent Nursing,Fshc  1St Floor,662.24, 27-Aug-2019
1504,Revenue,CAHD,South Glos Users in South Glos Homes,Permanent Nursing,Fshc  1St Floor,662.24, 27-Aug-2019
1505,Revenue,CAHD,North - bed purchasing and direct  payments,Permanent Nursing,Fshc  1St Floor,2398.00, 27-Aug-2019
1506,Revenue,CAHD,South Glos Users in South Glos Homes,Permanent Nursing,Fshc  1St Floor,662.24, 27-Aug-2019
1507,Revenue,CAHD,South Glos Users in South Glos Homes,Permanent Nursing,Fshc  1St Floor,662.24, 27-Aug-2019
1508,Revenue,CAHD,North - S117,Permanent Nursing,Fshc  1St Floor,2470.44, 27-Aug-2019
1509,Revenue,CAHD,South Glos Users in South Glos Homes,Permanent Nursing,Fshc  1St Floor,662.24, 27-Aug-2019
1510,Revenue,CAHD,Central - Bed Purchasing and Direct Payments,Permanent Nursing,Fshc  1St Floor,2398.00, 27-Aug-2019
1511,Revenue,CAHD,South Glos Users in South Glos Homes,Permanent Nursing,Fshc  1St Floor,662.24, 27-Aug-2019
1512,Revenue,CAHD,South Glos Users in South Glos Homes,Permanent Nursing,Fshc  1St Floor,662.24, 27-Aug-2019
1513,Revenue,CAHD,South Glos Users in South Glos Homes,Permanent Nursing,Fshc  1St Floor,662.24, 27-Aug-2019
1514,Revenue,CAHD,Central - Bed Purchasing and Direct Payments,Permanent Nursing,Fshc  1St Floor,2398.00, 27-Aug-2019
1515,Revenue,CAHD,South Glos Users in South Glos Homes,Permanent Nursing,Fshc  1St Floor,662.24, 27-Aug-2019
1516,Revenue,CAHD,Central - Bed Purchasing and Direct Payments,Permanent Nursing,Fshc  1St Floor,2398.00, 27-Aug-2019
1517,Revenue,CAHD,South Glos Users in South Glos Homes,Permanent Nursing,Fshc  1St Floor,662.24, 27-Aug-2019
1518,Revenue,CAHD,Central - Bed Purchasing and Direct Payments,Permanent Nursing,Fshc  1St Floor,2311.20, 27-Aug-2019
1519,Revenue,CAHD,South Glos Users in South Glos Homes,Permanent Nursing,Fshc  1St Floor,662.24, 27-Aug-2019
1520,Revenue,CAHD,North - bed purchasing and direct  payments,Permanent Nursing,Fshc  1St Floor,2437.12, 27-Aug-2019
1521,Revenue,CAHD,South Glos Users in South Glos Homes,Permanent Nursing,Fshc  1St Floor,662.24, 27-Aug-2019
1522,Revenue,CAHD,Central - Bed Purchasing and Direct Payments,Permanent Nursing,Fshc  1St Floor,2398.00, 27-Aug-2019
1523,Revenue,CAHD,South Glos Users in South Glos Homes,Permanent Nursing,Fshc  1St Floor,662.24, 27-Aug-2019
1524,Revenue,CAHD,Central - Bed Purchasing and Direct Payments,Permanent Residential,Fshc  1St Floor,2834.44, 27-Aug-2019
1525,Revenue,CAHD,North - bed purchasing and direct  payments,Permanent Nursing,Fshc  1St Floor,2398.00, 27-Aug-2019
1526,Revenue,CAHD,South Glos Users in South Glos Homes,Permanent Nursing,Fshc  1St Floor,662.24, 27-Aug-2019
1527,Revenue,CAHD,North - bed purchasing and direct  payments,Permanent Nursing,Fshc  1St Floor,2398.00, 27-Aug-2019
1528,Revenue,CAHD,South Glos Users in South Glos Homes,Permanent Nursing,Fshc  1St Floor,662.24, 27-Aug-2019
1529,Revenue,CAHD,South Glos Users in South Glos Homes,Permanent Nursing,Fshc  1St Floor,662.24, 27-Aug-2019
1530,Revenue,CAHD,Central - Bed Purchasing and Direct Payments,Permanent Nursing,Fshc  1St Floor,2398.00, 27-Aug-2019
1531,Revenue,CAHD,South Glos Users in South Glos Homes,Permanent Nursing,Fshc  1St Floor,662.24, 27-Aug-2019
1532,Revenue,CAHD,North - bed purchasing and direct  payments,Permanent Nursing,Fshc  1St Floor,2471.44, 27-Aug-2019
1533,Revenue,CAHD,South Glos Users in South Glos Homes,Permanent Nursing,Fshc  1St Floor,662.24, 27-Aug-2019
1534,Revenue,CAHD,South Glos Users in South Glos Homes,Permanent Nursing,Fshc  1St Floor,662.24, 27-Aug-2019
1535,Revenue,CAHD,North - bed purchasing and direct  payments,Permanent Nursing,Fshc  1St Floor,2356.60, 27-Aug-2019
1536,Revenue,CAHD,South Glos Users in South Glos Homes,Permanent Nursing,Fshc  1St Floor,662.24, 27-Aug-2019
1537,Revenue,CAHD,North - bed purchasing and direct  payments,Permanent Nursing,Fshc  1St Floor,2471.44, 27-Aug-2019
1538,Revenue,CAHD,South Glos Users in South Glos Homes,Permanent Nursing,Fshc  1St Floor,662.24, 27-Aug-2019
1539,Revenue,CAHD,Central - Bed Purchasing and Direct Payments,Permanent Nursing,Fshc  1St Floor,2486.12, 27-Aug-2019
1540,Revenue,CAHD,South Glos Users in South Glos Homes,Permanent Nursing,Fshc  1St Floor,662.24, 27-Aug-2019
1541,Revenue,CAHD,North - bed purchasing and direct  payments,Permanent Residential,Fshc  1St Floor,23314.28, 27-Aug-2019
1542,Revenue,CAHD,South Glos Users in South Glos Homes,Permanent Nursing,Fshc  1St Floor,2270.54, 27-Aug-2019
1543,Revenue,CAHD,North - bed purchasing and direct  payments,Permanent Residential,Fshc  1St Floor,3400.00, 27-Aug-2019
1544,Revenue,CAHD,South Glos Users in South Glos Homes,Permanent Nursing,Fshc  1St Floor,662.24, 27-Aug-2019
1545,Revenue,CAHD,North - bed purchasing and direct  payments,Fees & Charges Income - General,Fshc  1St Floor,1038.72, 27-Aug-2019
1546,Revenue,CAHD,North - bed purchasing and direct  payments,Fees & Charges Income - General,Fshc  1St Floor,873.62, 27-Aug-2019
1547,Revenue,CAHD,North - bed purchasing and direct  payments,Fees & Charges Income - General,Fshc  1St Floor,952.16, 27-Aug-2019
1548,Revenue,CAHD,North - bed purchasing and direct  payments,Fees & Charges Income - General,Fshc  1St Floor,7184.48, 27-Aug-2019
1549,Revenue,CAHD,Central - Bed Purchasing and Direct Payments,Permanent Nursing,Fshc  1St Floor,3542.86, 27-Aug-2019
1550,Revenue,CAHD,Central - Bed Purchasing and Direct Payments,Permanent Nursing,Fshc  1St Floor,3200.00, 27-Aug-2019
1551,Revenue,CAHD,South Glos Users in South Glos Homes,Permanent Nursing,Fshc  1St Floor,733.19, 27-Aug-2019
1552,Revenue,CAHD,South Glos Users in South Glos Homes,Permanent Nursing,Fshc  1St Floor,662.24, 27-Aug-2019
1553,Revenue,CAHD,North - bed purchasing and direct  payments,Permanent Nursing,Fshc  1St Floor,2398.00, 27-Aug-2019
1554,Revenue,CAHD,South Glos Users in South Glos Homes,Permanent Nursing,Fshc  1St Floor,662.24, 27-Aug-2019
1555,Revenue,CAHD,Central - Bed Purchasing and Direct Payments,Permanent Nursing,Fshc  1St Floor,3234.72, 27-Aug-2019
1556,Revenue,CAHD,South Glos Users in South Glos Homes,Permanent Nursing,Fshc  1St Floor,662.24, 27-Aug-2019
1557,Revenue,CAHD,Central - Bed Purchasing and Direct Payments,Permanent Nursing,Fshc  1St Floor,3472.44, 27-Aug-2019
1558,Revenue,CAHD,South Glos Users in South Glos Homes,Permanent Nursing,Fshc  1St Floor,662.24, 27-Aug-2019
1559,Revenue,CAHD,South Glos Users in South Glos Homes,Permanent Nursing,Fshc  1St Floor,662.24, 27-Aug-2019
1560,Revenue,CAHD,South Glos Users in South Glos Homes,Permanent Nursing,Fshc  1St Floor,662.24, 27-Aug-2019
1561,Revenue,CAHD,South Glos Users in South Glos Homes,Permanent Nursing,Fshc  1St Floor,662.24, 27-Aug-2019
1562,Revenue,CAHD,South Glos Users in South Glos Homes,Permanent Nursing,Fshc  1St Floor,1206.22, 27-Aug-2019
1563,Revenue,CAHD,South Glos Users in South Glos Homes,Permanent Nursing,Fshc  1St Floor,662.24, 27-Aug-2019
1564,Revenue,CAHD,South Glos Users in South Glos Homes,Permanent Nursing,Fshc  1St Floor,662.24, 27-Aug-2019
1565,Revenue,CAHD,Central - Bed Purchasing and Direct Payments,Permanent Nursing,Fshc  1St Floor,2731.36, 27-Aug-2019
1566,Revenue,CAHD,South Glos Users in South Glos Homes,Permanent Nursing,Fshc  1St Floor,662.24, 27-Aug-2019
1567,Revenue,CAHD,South Glos Users in South Glos Homes,Permanent Nursing,Fshc  1St Floor,662.24, 27-Aug-2019
1568,Revenue,CAHD,South Glos Users in South Glos Homes,Permanent Nursing,Fshc  1St Floor,662.24, 27-Aug-2019
1569,Revenue,CAHD,Central - Bed Purchasing and Direct Payments,Permanent Nursing,Fshc  1St Floor,2997.60, 27-Aug-2019
1570,Revenue,CAHD,South Glos Users in South Glos Homes,Permanent Nursing,Fshc  1St Floor,662.24, 27-Aug-2019
1571,Revenue,CAHD,South Glos Users in South Glos Homes,Permanent Nursing,Fshc  1St Floor,662.24, 27-Aug-2019
1572,Revenue,CAHD,South Glos Users in South Glos Homes,Permanent Nursing,Fshc  1St Floor,662.24, 27-Aug-2019
1573,Revenue,CAHD,Central - Bed Purchasing and Direct Payments,Permanent Nursing,Fshc  1St Floor,2833.76, 27-Aug-2019
1574,Revenue,CAHD,North - bed purchasing and direct  payments,Permanent Nursing,Fshc  1St Floor,2495.15, 27-Aug-2019
1575,Revenue,CAHD,South Glos Users in South Glos Homes,Permanent Nursing,Fshc  1St Floor,662.24, 27-Aug-2019
1576,Revenue,CAHD,South Glos Users in South Glos Homes,Permanent Nursing,Fshc  1St Floor,662.24, 27-Aug-2019
1577,Revenue,CAHD,Central - Bed Purchasing and Direct Payments,Permanent Nursing,Fshc  1St Floor,2608.68, 27-Aug-2019
1578,Revenue,CAHD,Central - Bed Purchasing and Direct Payments,Respite Planned - Nursing,Fshc  1St Floor,1700.00, 27-Aug-2019
1579,Revenue,CAHD,South Glos Users in South Glos Homes,Permanent Nursing,Fshc  1St Floor,662.24, 27-Aug-2019
1580,Revenue,CAHD,South Glos Users in South Glos Homes,Permanent Nursing,Fshc  1St Floor,662.24, 27-Aug-2019
1581,Revenue,CAHD,South - Bed Purchasing and Direct payments,Respite Planned - Nursing,Fshc  1St Floor,2928.57, 27-Aug-2019
1582,Revenue,CAHD,South - Bed Purchasing and Direct payments,Respite Planned - Nursing,Fshc  1St Floor,1610.71, 27-Aug-2019
1583,Revenue,CAHD,South Glos Users in South Glos Homes,Permanent Nursing,Fshc  1St Floor,662.24, 27-Aug-2019
1584,Revenue,CAHD,Central - Bed Purchasing and Direct Payments,Respite Planned - Nursing,Fshc  1St Floor,14350.63, 27-Aug-2019
1585,Revenue,CAHD,Central - Bed Purchasing and Direct Payments,Respite Planned - Nursing,Fshc  1St Floor,8614.29, 27-Aug-2019
1586,Revenue,CAHD,Central - Bed Purchasing and Direct Payments,Respite Planned - Nursing,Fshc  1St Floor,7328.57, 27-Aug-2019
1587,Revenue,CAHD,Central - Bed Purchasing and Direct Payments,Respite Planned - Nursing,Fshc  1St Floor,3686.40, 27-Aug-2019
1588,Revenue,CAHD,Central - Bed Purchasing and Direct Payments,Respite Planned - Nursing,Fshc  1St Floor,2238.17, 27-Aug-2019
1589,Revenue,CAHD,South Glos Users in South Glos Homes,Permanent Nursing,Fshc  1St Floor,662.24, 27-Aug-2019
1590,Revenue,CAHD,Central - Bed Purchasing and Direct Payments,Permanent Nursing,Fshc  1St Floor,2471.44, 27-Aug-2019
1591,Revenue,CAHD,South Glos Users in South Glos Homes,Permanent Nursing,Fshc  1St Floor,662.24, 27-Aug-2019
1592,Revenue,CAHD,Central - Bed Purchasing and Direct Payments,Permanent Nursing,Fshc  1St Floor,3038.56, 27-Aug-2019
1593,Revenue,CAHD,South Glos Users in South Glos Homes,Permanent Nursing,Fshc  1St Floor,662.24, 27-Aug-2019
1594,Revenue,CAHD,North - bed purchasing and direct  payments,Permanent Nursing,Fshc  1St Floor,2834.20, 27-Aug-2019
1595,Revenue,CAHD,South Glos Users in South Glos Homes,Permanent Nursing,Fshc  1St Floor,662.24, 27-Aug-2019
1596,Revenue,CAHD,South Glos Users in South Glos Homes,Permanent Nursing,Fshc  1St Floor,662.24, 27-Aug-2019
1597,Revenue,CAHD,Central - Bed Purchasing and Direct Payments,Permanent Nursing,Fshc  1St Floor,3234.72, 27-Aug-2019
1598,Revenue,CAHD,South Glos Users in South Glos Homes,Permanent Nursing,Fshc  1St Floor,662.24, 27-Aug-2019
1599,Revenue,CAHD,North - bed purchasing and direct  payments,Permanent Nursing,Fshc  1St Floor,2515.48, 27-Aug-2019
1600,Revenue,CAHD,South Glos Users in South Glos Homes,Permanent Nursing,Fshc  1St Floor,662.24, 27-Aug-2019
1601,Revenue,CAHD,South - Bed Purchasing and Direct payments,Permanent Nursing,Fshc  1St Floor,2616.12, 27-Aug-2019
1602,Revenue,CAHD,South Glos Users in South Glos Homes,Permanent Nursing,Fshc  1St Floor,662.24, 27-Aug-2019
1603,Revenue,CAHD,Central - Bed Purchasing and Direct Payments,Permanent Nursing,Fshc  1St Floor,2471.44, 27-Aug-2019
1604,Revenue,CAHD,South Glos Users in South Glos Homes,Permanent Nursing,Fshc  1St Floor,662.24, 27-Aug-2019
1605,Revenue,CAHD,South - Bed Purchasing and Direct payments,Permanent Nursing,Fshc  1St Floor,3243.36, 27-Aug-2019
1606,Revenue,CAHD,South Glos Users in South Glos Homes,Permanent Nursing,Fshc  1St Floor,662.24, 27-Aug-2019
1607,Revenue,CAHD,South - Bed Purchasing and Direct payments,Permanent Nursing,Fshc  1St Floor,2608.68, 27-Aug-2019
1608,Revenue,CAHD,South Glos Users in South Glos Homes,Permanent Nursing,Fshc  1St Floor,662.24, 27-Aug-2019
1609,Revenue,CAHD,South - Bed Purchasing and Direct payments,Permanent Nursing,Fshc  1St Floor,2504.28, 27-Aug-2019
1610,Revenue,CAHD,South Glos Users in South Glos Homes,Permanent Nursing,Fshc  1St Floor,662.24, 27-Aug-2019
1611,Revenue,CAHD,South Glos Users in South Glos Homes,Permanent Nursing,Fshc  1St Floor,662.24, 27-Aug-2019
1612,Revenue,CAHD,South Glos Users in South Glos Homes,Permanent Nursing,Fshc  1St Floor,662.24, 27-Aug-2019
1613,Revenue,CAHD,South - Bed Purchasing and Direct payments,Permanent Residential,Fshc  1St Floor,2662.40, 27-Aug-2019
1614,Revenue,CAHD,South Glos Users in South Glos Homes,Permanent Nursing,Fshc  1St Floor,662.24, 27-Aug-2019
1615,Revenue,CAHD,South Glos Users in South Glos Homes,Permanent Nursing,Fshc  1St Floor,662.24, 27-Aug-2019
1616,Revenue,CAHD,South - Bed Purchasing and Direct payments,Permanent Residential,Fshc  1St Floor,2399.96, 27-Aug-2019
1617,Revenue,CAHD,South Glos Users in South Glos Homes,Permanent Nursing,Fshc  1St Floor,662.24, 27-Aug-2019
1618,Revenue,CAHD,South Glos Users in South Glos Homes,Permanent Nursing,Fshc  1St Floor,3145.64, 27-Aug-2019
1619,Revenue,CAHD,South Glos Users in South Glos Homes,Permanent Nursing,Fshc  1St Floor,835.99, 27-Aug-2019
1620,Revenue,CAHD,South Glos Users in South Glos Homes,Permanent Nursing,Fshc  1St Floor,662.24, 27-Aug-2019
1621,Revenue,CAHD,South Glos Users in South Glos Homes,Permanent Nursing,Fshc  1St Floor,662.24, 27-Aug-2019
1622,Revenue,CAHD,South - Bed Purchasing and Direct payments,Permanent Nursing,Fshc  1St Floor,3921.52, 27-Aug-2019
1623,Revenue,CAHD,South Glos Users in South Glos Homes,Permanent Nursing,Fshc  1St Floor,662.24, 27-Aug-2019
1624,Revenue,CAHD,South - Bed Purchasing and Direct payments,Permanent Nursing,Fshc  1St Floor,2471.44, 27-Aug-2019
1625,Revenue,CAHD,South Glos Users in South Glos Homes,Permanent Nursing,Fshc  1St Floor,662.24, 27-Aug-2019
1626,Revenue,CAHD,South Glos Users in South Glos Homes,Permanent Nursing,Fshc  1St Floor,3145.64, 27-Aug-2019
1627,Revenue,CAHD,South Glos Users in South Glos Homes,Permanent Nursing,Fshc  1St Floor,881.18, 27-Aug-2019
1628,Revenue,CAHD,South Glos Users in South Glos Homes,Permanent Nursing,Fshc  1St Floor,662.24, 27-Aug-2019
1629,Revenue,CAHD,South - Bed Purchasing and Direct payments,Permanent Nursing,Fshc  1St Floor,2398.00, 27-Aug-2019
1630,Revenue,CAHD,South Glos Users in South Glos Homes,Permanent Nursing,Fshc  1St Floor,662.24, 27-Aug-2019
1631,Revenue,CAHD,South - Bed Purchasing and Direct payments,Permanent Residential,Fshc  1St Floor,2303.60, 27-Aug-2019
1632,Revenue,CAHD,South - Bed Purchasing and Direct payments,Permanent Nursing,Fshc  1St Floor,2287.36, 27-Aug-2019
1633,Revenue,CAHD,South - S117,Permanent Nursing,Fshc  1St Floor,2287.36, 27-Aug-2019
1634,Revenue,CAHD,South - Bed Purchasing and Direct payments,Permanent Nursing,Fshc  1St Floor,3593.88, 27-Aug-2019
1635,Revenue,CAHD,North - bed purchasing and direct  payments,Permanent Nursing,Fshc  1St Floor,2287.36, 27-Aug-2019
1636,Revenue,CAHD,North - bed purchasing and direct  payments,Permanent Nursing,Fshc  1St Floor,3756.44, 27-Aug-2019
1637,Revenue,CAHD,North - bed purchasing and direct  payments,Permanent Nursing,Fshc  1St Floor,3234.72, 27-Aug-2019
1638,Revenue,CAHD,South - Bed Purchasing and Direct payments,Permanent Nursing,Fshc  1St Floor,2287.36, 27-Aug-2019
1639,Revenue,CAHD,South - Bed Purchasing and Direct payments,Permanent Residential,Fshc  1St Floor,3744.04, 27-Aug-2019
1640,Revenue,CAHD,North - bed purchasing and direct  payments,Permanent Nursing,Fshc  1St Floor,2401.84, 27-Aug-2019
1641,Revenue,CAHD,North - bed purchasing and direct  payments,Permanent Residential,Fshc  1St Floor,2347.20, 27-Aug-2019
1642,Revenue,CAHD,North - bed purchasing and direct  payments,Permanent Residential,Fshc  1St Floor,2174.20, 27-Aug-2019
1643,Revenue,CAHD,Central - Bed Purchasing and Direct Payments,Permanent Nursing,Fshc  1St Floor,4173.84, 27-Aug-2019
1644,Revenue,CAHD,North - bed purchasing and direct  payments,Permanent Nursing,Fshc  1St Floor,2364.44, 27-Aug-2019
1645,Revenue,CAHD,North - bed purchasing and direct  payments,Permanent Residential,Fshc  1St Floor,2273.28, 27-Aug-2019
1646,Revenue,CAHD,North - bed purchasing and direct  payments,Permanent Nursing,Fshc  1St Floor,2657.80, 27-Aug-2019
1647,Revenue,CAHD,CSC - Agency Fostering,Foster Parent Allowances,Fusion Fostering Ltd,4626.97, 16-Aug-2019
1648,Revenue,CAHD,CSC - Asylum Seekers - Unaccompanied,Adults - Family Support,Fusion Independence Limited,3321.43, 21-Aug-2019
1649,Revenue,CAHD,CSC - Corporate Parenting Manager,Agency Staff (Admin/Support Staff) Pay,Gatenby Sanderson Limited,2900.00, 01-Aug-2019
1650,Revenue,CAHD,CSC - Corporate Parenting Manager,Agency Staff (Admin/Support Staff) Pay,Gatenby Sanderson Limited,2320.00, 07-Aug-2019
1651,Revenue,CAHD,CSC - Corporate Parenting Manager,Agency Staff (Admin/Support Staff) Pay,Gatenby Sanderson Limited,2320.00, 13-Aug-2019
1652,Revenue,CAHD,CSC - Ofsted Work,Consultants Fees,Gatenby Sanderson Limited,2900.00, 30-Aug-2019
1653,Revenue,CAHD,Sexual Health,Other Small Contracts,GBS Re Chelsea & Westminster Hospital NHS,500.03, 08-Aug-2019
1654,Revenue,CAHD,A & CL - Pre-Employability 18/19,Training Expenses,Geoff Petty Ltd,4000.00, 28-Aug-2019
1655,Revenue,CAHD,MH Purchasing - Younger,Permanent Residential,Gladstone House,3702.52, 27-Aug-2019
1656,Revenue,CAHD,South - Bed Purchasing and Direct payments,Permanent Residential,Gladstone House,5999.84, 27-Aug-2019
1657,Revenue,CAHD,Jointly Funded H&SC Packages,Permanent Residential,Gladstone House,783.98, 27-Aug-2019
1658,Revenue,CAHD,MH Purchasing - Younger,Permanent Residential,Gladstone House,3135.90, 27-Aug-2019
1659,Revenue,CAHD,North - bed purchasing and direct  payments,Permanent Residential,Glan Y Felin,6803.40, 27-Aug-2019
1660,Revenue,CAHD,South - Bed Purchasing and Direct payments,Permanent Residential,Glasallt Fawr,5344.40, 27-Aug-2019
1661,Revenue,CAHD,North - bed purchasing and direct  payments,Permanent Nursing,Glebe House Nursing Home,3664.16, 27-Aug-2019
1662,Revenue,CAHD,South Glos Users in South Glos Homes,Permanent Nursing,Glebe House Nursing Home,662.24, 27-Aug-2019
1663,Revenue,CAHD,South Glos Users in South Glos Homes,Permanent Nursing,Glebe House Nursing Home,662.24, 27-Aug-2019
1664,Revenue,CAHD,North - bed purchasing and direct  payments,Permanent Nursing,Glebe House Nursing Home,3973.12, 27-Aug-2019
1665,Revenue,CAHD,South Glos Users in South Glos Homes,Permanent Nursing,Glebe House Nursing Home,662.24, 27-Aug-2019
1666,Revenue,CAHD,South Glos Users in South Glos Homes,Permanent Nursing,Glebe House Nursing Home,662.24, 27-Aug-2019
1667,Revenue,CAHD,South Glos Users in South Glos Homes,Permanent Nursing,Glebe House Nursing Home,662.24, 27-Aug-2019
1668,Revenue,CAHD,South Glos Users in South Glos Homes,Permanent Nursing,Glebe House Nursing Home,662.24, 27-Aug-2019
1669,Revenue,CAHD,South Glos Users in South Glos Homes,Permanent Nursing,Glebe House Nursing Home,662.24, 27-Aug-2019
1670,Revenue,CAHD,North - bed purchasing and direct  payments,Permanent Residential,Glebe House Nursing Home,3785.04, 27-Aug-2019
1671,Revenue,CAHD,South Glos Users in South Glos Homes,Permanent Nursing,Glebe House Nursing Home,1986.72, 27-Aug-2019
1672,Revenue,CAHD,South Glos Users in South Glos Homes,Permanent Nursing,Glebe House Nursing Home,662.24, 27-Aug-2019
1673,Revenue,CAHD,North - bed purchasing and direct  payments,Permanent Residential,Glebe House Nursing Home,3833.84, 27-Aug-2019
1674,Revenue,CAHD,North - bed purchasing and direct  payments,Permanent Nursing,Glebe House Nursing Home,4080.00, 27-Aug-2019
1675,Revenue,CAHD,South Glos Users in South Glos Homes,Permanent Nursing,Glebe House Nursing Home,662.24, 27-Aug-2019
1676,Revenue,CAHD,South Glos Users in South Glos Homes,Permanent Nursing,Glebe House Nursing Home,662.24, 27-Aug-2019
1677,Revenue,CAHD,South Glos Users in South Glos Homes,Permanent Nursing,Glebe House Nursing Home,662.24, 27-Aug-2019
1678,Revenue,CAHD,North - bed purchasing and direct  payments,Permanent Nursing,Glebe House Nursing Home,4048.60, 27-Aug-2019
1679,Revenue,CAHD,South Glos Users in South Glos Homes,Permanent Nursing,Glebe House Nursing Home,662.24, 27-Aug-2019
1680,Revenue,CAHD,South Glos Users in South Glos Homes,Permanent Nursing,Glebe House Nursing Home,662.24, 27-Aug-2019
1681,Revenue,CAHD,South Glos Users in South Glos Homes,Permanent Nursing,Glebe House Nursing Home,662.24, 27-Aug-2019
1682,Revenue,CAHD,North - bed purchasing and direct  payments,Permanent Nursing,Glebe House Nursing Home,3960.16, 27-Aug-2019
1683,Revenue,CAHD,South Glos Users in South Glos Homes,Permanent Nursing,Glebe House Nursing Home,662.24, 27-Aug-2019
1684,Revenue,CAHD,North - bed purchasing and direct  payments,Permanent Residential,Glebe House Nursing Home,4075.52, 27-Aug-2019
1685,Revenue,CAHD,South Glos Users in South Glos Homes,Permanent Nursing,Glebe House Nursing Home,898.75, 27-Aug-2019
1686,Revenue,CAHD,South Glos Users in South Glos Homes,Permanent Nursing,Glebe House Nursing Home,662.24, 27-Aug-2019
1687,Revenue,CAHD,South Glos Users in South Glos Homes,Permanent Nursing,Glebe House Nursing Home,662.24, 27-Aug-2019
1688,Revenue,CAHD,North - bed purchasing and direct  payments,Permanent Nursing,Glebe House Nursing Home,3760.00, 27-Aug-2019
1689,Revenue,CAHD,South Glos Users in South Glos Homes,Permanent Nursing,Glebe House Nursing Home,662.24, 27-Aug-2019
1690,Revenue,CAHD,North - bed purchasing and direct  payments,Permanent Nursing,Glebe House Nursing Home,3502.08, 27-Aug-2019
1691,Revenue,CAHD,South Glos Users in South Glos Homes,Permanent Nursing,Glebe House Nursing Home,662.24, 27-Aug-2019
1692,Revenue,CAHD,South - Bed Purchasing and Direct payments,Permanent Nursing,Glenview,2891.76, 27-Aug-2019
1693,Revenue,CAHD,North - S117,Permanent Nursing,Glenview,3301.36, 27-Aug-2019
1694,Revenue,CAHD,South - Bed Purchasing and Direct payments,Permanent Nursing,Glenview,3993.60, 27-Aug-2019
1695,Revenue,CAHD,North - bed purchasing and direct  payments,Permanent Nursing,Glenview,2891.76, 27-Aug-2019
1696,Revenue,CAHD,Parent Partnership,Fees - General,Global Mediation Limited,3300.00, 01-Aug-2019
1697,Revenue,CAHD,Parent Partnership,Fees - General,Global Mediation Limited,4400.00, 30-Aug-2019
1698,Revenue,CAHD,CSC - Fostering Carer Support,Advertising - General,Global Radio Services Ltd,650.00, 20-Aug-2019
1699,Revenue,CAHD,Training - Adult Services,Training Expenses,Gloucestershire Deaf Association,650.00, 01-Aug-2019
1700,Revenue,CAHD,South - Bed Purchasing and Direct payments,Permanent Residential,Gordena Care Home,4018.92, 27-Aug-2019
1701,Revenue,CAHD,South - Bed Purchasing and Direct payments,Permanent Residential,Gordena Care Home,2736.12, 27-Aug-2019
1702,Revenue,CAHD,South - Bed Purchasing and Direct payments,Permanent Residential,Gordena Care Home,17529.30, 27-Aug-2019
1703,Revenue,CAHD,South - Bed Purchasing and Direct payments,Permanent Residential,Gordena Care Home,3895.40, 27-Aug-2019
1704,Revenue,CAHD,South - Bed Purchasing and Direct payments,Fees & Charges Income - General,Gordena Care Home,2541.96, 27-Aug-2019
1705,Revenue,CAHD,South - Bed Purchasing and Direct payments,Permanent Residential,Gordena Care Home,3907.28, 27-Aug-2019
1706,Revenue,CAHD,South - Bed Purchasing and Direct payments,Permanent Residential,Gordena Care Limited,5105.52, 27-Aug-2019
1707,Revenue,CAHD,S28A cases,Permanent Residential,Gordena Care Limited,4965.36, 27-Aug-2019
1708,Revenue,CAHD,North - bed purchasing and direct  payments,Permanent Residential,Gordena Care Limited,5175.04, 27-Aug-2019
1709,Revenue,CAHD,Central - Bed Purchasing and Direct Payments,Permanent Residential,Grace Care Centre,4915.20, 27-Aug-2019
1710,Revenue,CAHD,North - bed purchasing and direct  payments,Permanent Residential,Grace Care Centre,5142.86, 27-Aug-2019
1711,Revenue,CAHD,North - bed purchasing and direct  payments,Permanent Residential,Grace Care Centre,4800.00, 27-Aug-2019
1712,Revenue,CAHD,North - bed purchasing and direct  payments,Permanent Residential,Grace Care Centre,5160.00, 27-Aug-2019
1713,Revenue,CAHD,North - bed purchasing and direct  payments,Permanent Residential,Grace Care Centre,2027.14, 27-Aug-2019
1714,Revenue,CAHD,South - Bed Purchasing and Direct payments,Permanent Nursing,Gracefields Nursing Home,3761.76, 27-Aug-2019
1715,Revenue,CAHD,South Glos Users in South Glos Homes,Permanent Nursing,Gracefields Nursing Home,1986.72, 27-Aug-2019
1716,Revenue,CAHD,South Glos Users in South Glos Homes,Permanent Nursing,Gracefields Nursing Home,662.24, 27-Aug-2019
1717,Revenue,CAHD,South Glos Users in South Glos Homes,Permanent Nursing,Gracefields Nursing Home,662.24, 27-Aug-2019
1718,Revenue,CAHD,South - Bed Purchasing and Direct payments,Permanent Nursing,Gracefields Nursing Home,3796.32, 27-Aug-2019
1719,Revenue,CAHD,South Glos Users in South Glos Homes,Permanent Nursing,Gracefields Nursing Home,662.24, 27-Aug-2019
1720,Revenue,CAHD,South - Bed Purchasing and Direct payments,Permanent Nursing,Gracefields Nursing Home,3652.12, 27-Aug-2019
1721,Revenue,CAHD,South Glos Users in South Glos Homes,Permanent Nursing,Gracefields Nursing Home,662.24, 27-Aug-2019
1722,Revenue,CAHD,South Glos Users in South Glos Homes,Permanent Nursing,Gracefields Nursing Home,662.24, 27-Aug-2019
1723,Revenue,CAHD,South Glos Users in South Glos Homes,Permanent Nursing,Gracefields Nursing Home,662.24, 27-Aug-2019
1724,Revenue,CAHD,South - Bed Purchasing and Direct payments,Permanent Nursing,Gracefields Nursing Home,3652.96, 27-Aug-2019
1725,Revenue,CAHD,South Glos Users in South Glos Homes,Permanent Nursing,Gracefields Nursing Home,662.24, 27-Aug-2019
1726,Revenue,CAHD,South - Bed Purchasing and Direct payments,Permanent Nursing,Gracefields Nursing Home,3652.96, 27-Aug-2019
1727,Revenue,CAHD,South Glos Users in South Glos Homes,Permanent Nursing,Gracefields Nursing Home,662.24, 27-Aug-2019
1728,Revenue,CAHD,South - S117,Permanent Nursing,Gracefields Nursing Home,2551.96, 27-Aug-2019
1729,Revenue,CAHD,South Glos Users in South Glos Homes,Permanent Nursing,Gracefields Nursing Home,662.24, 27-Aug-2019
1730,Revenue,CAHD,South - Bed Purchasing and Direct payments,Permanent Nursing,Gracefields Nursing Home,3756.44, 27-Aug-2019
1731,Revenue,CAHD,South Glos Users in South Glos Homes,Permanent Nursing,Gracefields Nursing Home,662.24, 27-Aug-2019
1732,Revenue,CAHD,South - Bed Purchasing and Direct payments,Permanent Nursing,Gracefields Nursing Home,3229.20, 27-Aug-2019
1733,Revenue,CAHD,South Glos Users in South Glos Homes,Permanent Nursing,Gracefields Nursing Home,662.24, 27-Aug-2019
1734,Revenue,CAHD,South Glos Users in South Glos Homes,Permanent Nursing,Gracefields Nursing Home,662.24, 27-Aug-2019
1735,Revenue,CAHD,North - bed purchasing and direct  payments,Permanent Nursing,Gracefields Nursing Home,3571.04, 27-Aug-2019
1736,Revenue,CAHD,South Glos Users in South Glos Homes,Permanent Nursing,Gracefields Nursing Home,662.24, 27-Aug-2019
1737,Revenue,CAHD,South - Bed Purchasing and Direct payments,Permanent Nursing,Gracefields Nursing Home,3874.16, 27-Aug-2019
1738,Revenue,CAHD,South Glos Users in South Glos Homes,Permanent Nursing,Gracefields Nursing Home,662.24, 27-Aug-2019
1739,Revenue,CAHD,Central - Bed Purchasing and Direct Payments,Permanent Nursing,Gracefields Nursing Home,3652.96, 27-Aug-2019
1740,Revenue,CAHD,South Glos Users in South Glos Homes,Permanent Nursing,Gracefields Nursing Home,662.24, 27-Aug-2019
1741,Revenue,CAHD,South Glos Users in South Glos Homes,Permanent Nursing,Gracefields Nursing Home,662.24, 27-Aug-2019
1742,Revenue,CAHD,South Glos Users in South Glos Homes,Permanent Nursing,Gracefields Nursing Home,662.24, 27-Aug-2019
1743,Revenue,CAHD,South - Bed Purchasing and Direct payments,Permanent Nursing,Gracefields Nursing Home,3652.96, 27-Aug-2019
1744,Revenue,CAHD,South Glos Users in South Glos Homes,Permanent Nursing,Gracefields Nursing Home,662.24, 27-Aug-2019
1745,Revenue,CAHD,South Glos Users in South Glos Homes,Permanent Nursing,Gracefields Nursing Home,662.24, 27-Aug-2019
1746,Revenue,CAHD,South Glos Users in South Glos Homes,Permanent Nursing,Gracefields Nursing Home,662.24, 27-Aug-2019
1747,Revenue,CAHD,South - Bed Purchasing and Direct payments,Permanent Nursing,Gracefields Nursing Home,3204.88, 27-Aug-2019
1748,Revenue,CAHD,South Glos Users in South Glos Homes,Permanent Nursing,Gracefields Nursing Home,662.24, 27-Aug-2019
1749,Revenue,CAHD,South Glos Users in South Glos Homes,Permanent Nursing,Gracefields Nursing Home,662.24, 27-Aug-2019
1750,Revenue,CAHD,South Glos Users in South Glos Homes,Permanent Nursing,Gracefields Nursing Home,662.24, 27-Aug-2019
1751,Revenue,CAHD,South - Bed Purchasing and Direct payments,Permanent Nursing,Gracefields Nursing Home,3229.20, 27-Aug-2019
1752,Revenue,CAHD,South Glos Users in South Glos Homes,Permanent Nursing,Gracefields Nursing Home,662.24, 27-Aug-2019
1753,Revenue,CAHD,South Glos Users in South Glos Homes,Permanent Nursing,Gracefields Nursing Home,662.24, 27-Aug-2019
1754,Revenue,CAHD,South Glos Users in South Glos Homes,Permanent Nursing,Gracefields Nursing Home,662.24, 27-Aug-2019
1755,Revenue,CAHD,South Glos Users in South Glos Homes,Permanent Nursing,Gracefields Nursing Home,662.24, 27-Aug-2019
1756,Revenue,CAHD,South Glos Users in South Glos Homes,Permanent Nursing,Gracefields Nursing Home,662.24, 27-Aug-2019
1757,Revenue,CAHD,South Glos Users in South Glos Homes,Permanent Nursing,Gracefields Nursing Home,662.24, 27-Aug-2019
1758,Revenue,CAHD,South Glos Users in South Glos Homes,Permanent Nursing,Gracefields Nursing Home,662.24, 27-Aug-2019
1759,Revenue,CAHD,South Glos Users in South Glos Homes,Permanent Nursing,Gracefields Nursing Home,662.24, 27-Aug-2019
1760,Revenue,CAHD,South Glos Users in South Glos Homes,Permanent Nursing,Gracefields Nursing Home,662.24, 27-Aug-2019
1761,Revenue,CAHD,South Glos Users in South Glos Homes,Permanent Nursing,Gracefields Nursing Home,662.24, 27-Aug-2019
1762,Revenue,CAHD,South - Bed Purchasing and Direct payments,Permanent Nursing,Gracefields Nursing Home,662.24, 27-Aug-2019
1763,Revenue,CAHD,South Glos Users in South Glos Homes,Permanent Nursing,Gracefields Nursing Home,662.24, 27-Aug-2019
1764,Revenue,CAHD,South Glos Users in South Glos Homes,Permanent Nursing,Gracefields Nursing Home,3051.03, 27-Aug-2019
1765,Revenue,CAHD,South Glos Users in South Glos Homes,Permanent Nursing,Gracefields Nursing Home,662.24, 27-Aug-2019
1766,Revenue,CAHD,South Glos Users in South Glos Homes,Permanent Nursing,Gracefields Nursing Home,662.24, 27-Aug-2019
1767,Revenue,CAHD,South - Bed Purchasing and Direct payments,Permanent Nursing,Gracefields Nursing Home,3481.60, 27-Aug-2019
1768,Revenue,CAHD,South Glos Users in South Glos Homes,Permanent Nursing,Gracefields Nursing Home,662.24, 27-Aug-2019
1769,Revenue,CAHD,South - Bed Purchasing and Direct payments,Permanent Nursing,Gracefields Nursing Home,3652.96, 27-Aug-2019
1770,Revenue,CAHD,South - Bed Purchasing and Direct payments,Permanent Nursing,Gracefields Nursing Home,2551.96, 27-Aug-2019
1771,Revenue,CAHD,South Glos Users in South Glos Homes,Permanent Nursing,Gracefields Nursing Home,662.24, 27-Aug-2019
1772,Revenue,CAHD,South - Bed Purchasing and Direct payments,Permanent Nursing,Gracefields Nursing Home,3547.76, 27-Aug-2019
1773,Revenue,CAHD,South Glos Users in South Glos Homes,Permanent Nursing,Gracefields Nursing Home,662.24, 27-Aug-2019
1774,Revenue,CAHD,South Glos Users in South Glos Homes,Permanent Nursing,Gracefields Nursing Home,662.24, 27-Aug-2019
1775,Revenue,CAHD,North - bed purchasing and direct  payments,Permanent Nursing,Gracefields Nursing Home,3565.76, 27-Aug-2019
1776,Revenue,CAHD,North - bed purchasing and direct  payments,Permanent Nursing,Gracefields Nursing Home,1528.18, 27-Aug-2019
1777,Revenue,CAHD,South Glos Users in South Glos Homes,Permanent Nursing,Gracefields Nursing Home,662.24, 27-Aug-2019
1778,Revenue,CAHD,South Glos Users in South Glos Homes,Permanent Nursing,Gracefields Nursing Home,662.24, 27-Aug-2019
1779,Revenue,CAHD,CSC - Residential Placements,Permanent Residential,Greenfields Adolecent Development Limited,26527.14, 30-Aug-2019
1780,Revenue,CAHD,CSC - Residential Placements,Permanent Residential,Greenfields Adolecent Development Limited,21035.71, 30-Aug-2019
1781,Revenue,CAHD,Academy Resource Base Funding,Other Public Bodies,Greenshaw Learning Trust T/A Yate Academy,1010.95, 23-Aug-2019
1782,Revenue,CAHD,Academy Resource Base Funding,Other Public Bodies,Greenshaw Learning Trust T/A Yate Academy,1010.95, 23-Aug-2019
1783,Revenue,CAHD,Academy Resource Base Funding,Other Public Bodies,Greenshaw Learning Trust T/A Yate Academy,1536.63, 23-Aug-2019
1784,Revenue,CAHD,Academy Resource Base Funding,Other Public Bodies,Greenshaw Learning Trust T/A Yate Academy,1172.69, 23-Aug-2019
